{"text_format":"1","workbook":"xlsx","n_sheets":3,"sheets":["1_30","Sheet1","Istruzioni"],"not_rendered":{"charts":0,"images":21,"macros":1,"external_links":0,"defined_names":2,"comments":0,"pivot_tables":0},"unopened":[],"bounds":{"document_bytes":16777216,"sheet_cells":100000,"rows_first":2000,"rows_last":500,"rows_between":2000,"halvings":0,"cell_chars":16384,"cell_head_chars":4096},"cells_cut":0,"cells_raw":0,"read":"whole","date_system":"1900"}

{"sheet":"1_30","index":0,"n_rows":816,"n_cols":79,"rows_kept":816,"cut":false,"hidden":false,"merged":[[0,0,0,1],[29,8,29,9],[28,0,28,1],[28,6,28,8],[1,0,1,1],[29,0,29,1],[28,2,28,5],[0,2,0,5],[0,6,0,8],[55,2,55,5],[83,0,83,1],[56,0,56,1],[56,8,56,9],[83,2,83,5],[83,6,83,8],[55,6,55,8],[55,0,55,1],[111,0,111,1],[111,8,111,9],[138,2,138,5],[138,6,138,8],[110,0,110,1],[84,0,84,1],[84,6,84,7],[84,8,84,9],[110,2,110,5],[110,6,110,8],[165,0,165,1],[139,0,139,1],[139,8,139,9],[165,2,165,5],[165,6,165,8],[138,0,138,1],[194,0,194,1],[194,8,194,9],[220,2,220,5],[220,6,220,8],[193,0,193,1],[166,0,166,1],[166,8,166,9],[193,2,193,5],[193,6,193,8],[248,0,248,1],[221,0,221,1],[221,8,221,9],[248,2,248,5],[248,6,248,8],[220,0,220,1],[276,0,276,1],[276,8,276,9],[303,2,303,5],[303,6,303,8],[275,0,275,1],[249,0,249,1],[249,8,249,9],[275,2,275,5],[275,6,275,8],[330,0,330,1],[304,0,304,1],[304,8,304,9],[330,2,330,5],[330,6,330,8],[303,0,303,1],[359,0,359,1],[359,8,359,9],[385,2,385,5],[385,6,385,8],[358,0,358,1],[331,0,331,1],[331,8,331,9],[358,2,358,5],[358,6,358,8],[413,0,413,1],[386,0,386,1],[386,8,386,9],[413,2,413,5],[413,6,413,8],[385,0,385,1],[441,0,441,1],[441,8,441,9],[468,2,468,5],[468,6,468,8],[440,0,440,1],[414,0,414,1],[414,8,414,9],[440,2,440,5],[440,6,440,8],[495,0,495,1],[469,0,469,1],[469,8,469,9],[495,2,495,5],[495,6,495,8],[468,0,468,1],[524,0,524,1],[524,8,524,9],[550,2,550,5],[550,6,550,8],[523,0,523,1],[496,0,496,1],[496,8,496,9],[523,2,523,5],[523,6,523,8],[551,0,551,1],[551,8,551,9],[578,0,578,1],[578,2,578,5],[578,6,578,8],[550,0,550,1],[606,0,606,1],[606,8,606,9],[633,2,633,5],[633,6,633,8],[605,0,605,1],[579,0,579,1],[579,8,579,9],[605,2,605,5],[605,6,605,8],[744,0,744,1],[744,8,744,9],[1,8,1,9],[716,0,716,1],[716,8,716,9],[743,0,743,1],[743,2,743,5],[743,6,743,8],[715,0,715,1],[689,0,689,1],[660,0,660,1],[634,0,634,1],[634,8,634,9],[660,2,660,5],[660,6,660,8],[633,0,633,1],[689,8,689,9],[715,2,715,5],[715,6,715,8],[688,0,688,1],[661,0,661,1],[661,8,661,9],[688,2,688,5],[688,6,688,8],[798,0,798,1],[798,2,798,5],[798,6,798,8],[799,0,799,1],[799,8,799,9],[770,0,770,1],[770,2,770,5],[770,6,770,8],[771,0,771,1],[771,8,771,9]]}
["2019-07-06",null,"Mano  #    1",null,null,null,"Dichiarante",null,null,"N",null,"ctrl+v",1,"ste-mas",53,63.095238095238095,1,"ste-mas",{"$f":"SUM(U1:AX1)","v":53},{"$f":"IF(S1=0,0,S1/S$18*COUNT(Q$1:Q$16)*50)","v":63.095238095238095},{"$f":"IF($F$3=\"\",\"\",IF(COUNT($F$3:$F$10)<>COUNT($J$3:$J$10),\"\",IF($Q1=\"\",\"\",INDEX($CA$3:$CA$18,MATCH($Q1,$BZ$3:$BZ$18,0)))))","v":2},{"$f":"IF($F$31=\"\",\"\",IF(COUNT($F$31:$F$38)<>COUNT($J$31:$J$38),\"\",IF($Q1=\"\",\"\",INDEX($CA$31:$CA$46,MATCH($Q1,$BZ$31:$BZ$46,0)))))","v":2},{"$f":"IF($F$58=\"\",\"\",IF(COUNT($F$58:$F$65)<>COUNT($J$58:$J$65),\"\",IF($Q1=\"\",\"\",INDEX($CA$58:$CA$73,MATCH($Q1,$BZ$58:$BZ$73,0)))))","v":2},{"$f":"IF($F$86=\"\",\"\",IF(COUNT($F$86:$F$93)<>COUNT($J$86:$J$93),\"\",IF($Q1=\"\",\"\",INDEX($CA$86:$CA$101,MATCH($Q1,$BZ$86:$BZ$101,0)))))","v":1},{"$f":"IF($F$113=\"\",\"\",IF(COUNT($F$113:$F$120)<>COUNT($J$113:$J$120),\"\",IF($Q1=\"\",\"\",INDEX($CA$113:$CA$128,MATCH($Q1,$BZ$113:$BZ$128,0)))))","v":2},{"$f":"IF($F$141=\"\",\"\",IF(COUNT($F$141:$F$148)<>COUNT($J$141:$J$148),\"\",IF($Q1=\"\",\"\",INDEX($CA$141:$CA$156,MATCH($Q1,$BZ$141:$BZ$156,0)))))","v":3},{"$f":"IF($F$168=\"\",\"\",IF(COUNT($F$168:$F$175)<>COUNT($J$168:$J$175),\"\",IF($Q1=\"\",\"\",INDEX($CA$168:$CA$183,MATCH($Q1,$BZ$168:$BZ$183,0)))))","v":4},{"$f":"IF($F$196=\"\",\"\",IF(COUNT($F$196:$F$203)<>COUNT($J$196:$J$203),\"\",IF($Q1=\"\",\"\",INDEX($CA$196:$CA$211,MATCH($Q1,$BZ$196:$BZ$211,0)))))","v":2},{"$f":"IF($F$223=\"\",\"\",IF(COUNT($F$223:$F$230)<>COUNT($J$223:$J$230),\"\",IF($Q1=\"\",\"\",INDEX($CA$223:$CA$238,MATCH($Q1,$BZ$223:$BZ$238,0)))))","v":2},{"$f":"IF($F$251=\"\",\"\",IF(COUNT($F$251:$F$258)<>COUNT($J$251:$J$258),\"\",IF($Q1=\"\",\"\",INDEX($CA$251:$CA$266,MATCH($Q1,$BZ$251:$BZ$266,0)))))","v":4},{"$f":"IF($F$278=\"\",\"\",IF(COUNT($F$278:$F$285)<>COUNT($J$278:$J$285),\"\",IF($Q1=\"\",\"\",INDEX($CA$278:$CA$293,MATCH($Q1,$BZ$278:$BZ$293,0)))))","v":4},{"$f":"IF($F$306=\"\",\"\",IF(COUNT($F$306:$F$313)<>COUNT($J$306:$J$313),\"\",IF($Q1=\"\",\"\",INDEX($CA$306:$CA$321,MATCH($Q1,$BZ$306:$BZ$321,0)))))","v":0},{"$f":"IF($F$333=\"\",\"\",IF(COUNT($F$333:$F$340)<>COUNT($J$333:$J$340),\"\",IF($Q1=\"\",\"\",INDEX($CA$333:$CA$348,MATCH($Q1,$BZ$333:$BZ$348,0)))))","v":4},{"$f":"IF($F$361=\"\",\"\",IF(COUNT($F$361:$F$368)<>COUNT($J$361:$J$368),\"\",IF($Q1=\"\",\"\",INDEX($CA$361:$CA$376,MATCH($Q1,$BZ$361:$BZ$376,0)))))","v":3},{"$f":"IF($F$388=\"\",\"\",IF(COUNT($F$388:$F$395)<>COUNT($J$388:$J$395),\"\",IF($Q1=\"\",\"\",INDEX($CA$388:$CA$403,MATCH($Q1,$BZ$388:$BZ$403,0)))))","v":4},{"$f":"IF($F$416=\"\",\"\",IF(COUNT($F$416:$F$423)<>COUNT($J$416:$J$423),\"\",IF($Q1=\"\",\"\",INDEX($CA$416:$CA$431,MATCH($Q1,$BZ$416:$BZ$431,0)))))","v":2},{"$f":"IF($F$443=\"\",\"\",IF(COUNT($F$443:$F$450)<>COUNT($J$443:$J$450),\"\",IF($Q1=\"\",\"\",INDEX($CA$443:$CA$458,MATCH($Q1,$BZ$443:$BZ$458,0)))))","v":3},{"$f":"IF($F$471=\"\",\"\",IF(COUNT($F$471:$F$478)<>COUNT($J$471:$J$478),\"\",IF($Q1=\"\",\"\",INDEX($CA$471:$CA$486,MATCH($Q1,$BZ$471:$BZ$486,0)))))","v":4},{"$f":"IF($F$498=\"\",\"\",IF(COUNT($F$498:$F$515)<>COUNT($J$498:$J$505),\"\",IF($Q1=\"\",\"\",INDEX($CA$498:$CA$513,MATCH($Q1,$BZ$498:$BZ$513,0)))))","v":3},{"$f":"IF($F$526=\"\",\"\",IF(COUNT($F$526:$F$533)<>COUNT(J$526:$J$533),\"\",IF($Q1=\"\",\"\",INDEX($CA$526:$CA$541,MATCH($Q1,$BZ$526:$BZ$541,0)))))","v":0},{"$f":"IF($F$553=\"\",\"\",IF(COUNT($F$553:$F$560)<>COUNT($J$553:$J$560),\"\",IF($Q1=\"\",\"\",INDEX($CA$553:$CA$568,MATCH($Q1,$BZ$553:$BZ$568,0)))))","v":2},{"$f":"IF($F$581=\"\",\"\",IF(COUNT($F$581:$F$588)<>COUNT($J$581:$J$588),\"\",IF($Q1=\"\",\"\",INDEX($CA$581:$CA$596,MATCH($Q1,$BZ$581:$BZ$596,0)))))","v":""},{"$f":"IF($F$608=\"\",\"\",IF(COUNT($F$608:$F$615)<>COUNT($J$608:$J$615),\"\",IF($Q1=\"\",\"\",INDEX($CA$608:$CA$623,MATCH($Q1,$BZ$608:$BZ$623,0)))))","v":""},{"$f":"IF($F$636=\"\",\"\",IF(COUNT($F$636:$F$643)<>COUNT($J$636:$J$643),\"\",IF($Q1=\"\",\"\",INDEX($CA$636:$CA$651,MATCH($Q1,$BZ$636:$BZ$651,0)))))","v":""},{"$f":"IF($F$663=\"\",\"\",IF(COUNT($F$663:$F$670)<>COUNT($J$663:$J$670),\"\",IF($Q1=\"\",\"\",INDEX($CA$663:$CA$678,MATCH($Q1,$BZ$663:$BZ$678,0)))))","v":""},{"$f":"IF($F$691=\"\",\"\",IF(COUNT($F$691:$F$698)<>COUNT($J$691:$J$698),\"\",IF($Q1=\"\",\"\",INDEX($CA$691:$CA$706,MATCH($Q1,$BZ$691:$BZ$706,0)))))","v":""},{"$f":"IF($F$718=\"\",\"\",IF(COUNT($F$718:$F$725)<>COUNT($J$718:$J$725),\"\",IF($Q1=\"\",\"\",INDEX($CA$718:$CA$733,MATCH($Q1,$BZ$718:$BZ$733,0)))))","v":""},{"$f":"IF($F$746=\"\",\"\",IF(COUNT($F$746:$F$753)<>COUNT($J$746:$J$753),\"\",IF($Q1=\"\",\"\",INDEX($CA$746:$CA$761,MATCH($Q1,$BZ$746:$BZ$761,0)))))","v":""},{"$f":"IF($F$773=\"\",\"\",IF(COUNT($F$773:$F$780)<>COUNT(J$773:$J$780),\"\",IF($Q1=\"\",\"\",INDEX($CA$773:$CA$788,MATCH($Q1,$BZ$773:$BZ$788,0)))))","v":""},{"$f":"IF($F$801=\"\",\"\",IF(COUNT($F$801:$F$808)<>COUNT($J$801:$J$808),\"\",IF($Q1=\"\",\"\",INDEX($CA$801:$CA$816,MATCH($Q1,$BZ$801:$BZ$816,0)))))","v":""}]
["N/S",null,"Contratto","Gioc. da","Att.","Punti NS","NS","EO","E/O",null,"Rank NS","ctrl+c",{"$f":"IF(P2=P1,M1,COUNTA(P$1:P2))","v":2},"ele-ste",47,55.952380952380956,2,"ele-ste",47,{"$f":"IF(S2=0,0,S2/S$18*COUNT(Q$1:Q$16)*50)","v":55.952380952380956},{"$f":"IF($F$3=\"\",\"\",IF(COUNT($F$3:$F$10)<>COUNT($J$3:$J$10),\"\",IF($Q2=\"\",\"\",INDEX($CA$3:$CA$18,MATCH($Q2,$BZ$3:$BZ$18,0)))))","v":4},{"$f":"IF($F$31=\"\",\"\",IF(COUNT($F$31:$F$38)<>COUNT($J$31:$J$38),\"\",IF($Q2=\"\",\"\",INDEX($CA$31:$CA$46,MATCH($Q2,$BZ$31:$BZ$46,0)))))","v":3},{"$f":"IF($F$58=\"\",\"\",IF(COUNT($F$58:$F$65)<>COUNT($J$58:$J$65),\"\",IF($Q2=\"\",\"\",INDEX($CA$58:$CA$73,MATCH($Q2,$BZ$58:$BZ$73,0)))))","v":0},{"$f":"IF($F$86=\"\",\"\",IF(COUNT($F$86:$F$93)<>COUNT($J$86:$J$93),\"\",IF($Q2=\"\",\"\",INDEX($CA$86:$CA$101,MATCH($Q2,$BZ$86:$BZ$101,0)))))","v":2},{"$f":"IF($F$113=\"\",\"\",IF(COUNT($F$113:$F$120)<>COUNT($J$113:$J$120),\"\",IF($Q2=\"\",\"\",INDEX($CA$113:$CA$128,MATCH($Q2,$BZ$113:$BZ$128,0)))))","v":2},{"$f":"IF($F$141=\"\",\"\",IF(COUNT($F$141:$F$148)<>COUNT($J$141:$J$148),\"\",IF($Q2=\"\",\"\",INDEX($CA$141:$CA$156,MATCH($Q2,$BZ$141:$BZ$156,0)))))","v":2},{"$f":"IF($F$168=\"\",\"\",IF(COUNT($F$168:$F$175)<>COUNT($J$168:$J$175),\"\",IF($Q2=\"\",\"\",INDEX($CA$168:$CA$183,MATCH($Q2,$BZ$168:$BZ$183,0)))))","v":4},{"$f":"IF($F$196=\"\",\"\",IF(COUNT($F$196:$F$203)<>COUNT($J$196:$J$203),\"\",IF($Q2=\"\",\"\",INDEX($CA$196:$CA$211,MATCH($Q2,$BZ$196:$BZ$211,0)))))","v":0},{"$f":"IF($F$223=\"\",\"\",IF(COUNT($F$223:$F$230)<>COUNT($J$223:$J$230),\"\",IF($Q2=\"\",\"\",INDEX($CA$223:$CA$238,MATCH($Q2,$BZ$223:$BZ$238,0)))))","v":2},{"$f":"IF($F$251=\"\",\"\",IF(COUNT($F$251:$F$258)<>COUNT($J$251:$J$258),\"\",IF($Q2=\"\",\"\",INDEX($CA$251:$CA$266,MATCH($Q2,$BZ$251:$BZ$266,0)))))","v":0},{"$f":"IF($F$278=\"\",\"\",IF(COUNT($F$278:$F$285)<>COUNT($J$278:$J$285),\"\",IF($Q2=\"\",\"\",INDEX($CA$278:$CA$293,MATCH($Q2,$BZ$278:$BZ$293,0)))))","v":0},{"$f":"IF($F$306=\"\",\"\",IF(COUNT($F$306:$F$313)<>COUNT($J$306:$J$313),\"\",IF($Q2=\"\",\"\",INDEX($CA$306:$CA$321,MATCH($Q2,$BZ$306:$BZ$321,0)))))","v":4},{"$f":"IF($F$333=\"\",\"\",IF(COUNT($F$333:$F$340)<>COUNT($J$333:$J$340),\"\",IF($Q2=\"\",\"\",INDEX($CA$333:$CA$348,MATCH($Q2,$BZ$333:$BZ$348,0)))))","v":0},{"$f":"IF($F$361=\"\",\"\",IF(COUNT($F$361:$F$368)<>COUNT($J$361:$J$368),\"\",IF($Q2=\"\",\"\",INDEX($CA$361:$CA$376,MATCH($Q2,$BZ$361:$BZ$376,0)))))","v":3},{"$f":"IF($F$388=\"\",\"\",IF(COUNT($F$388:$F$395)<>COUNT($J$388:$J$395),\"\",IF($Q2=\"\",\"\",INDEX($CA$388:$CA$403,MATCH($Q2,$BZ$388:$BZ$403,0)))))","v":1},{"$f":"IF($F$416=\"\",\"\",IF(COUNT($F$416:$F$423)<>COUNT($J$416:$J$423),\"\",IF($Q2=\"\",\"\",INDEX($CA$416:$CA$431,MATCH($Q2,$BZ$416:$BZ$431,0)))))","v":4},{"$f":"IF($F$443=\"\",\"\",IF(COUNT($F$443:$F$450)<>COUNT($J$443:$J$450),\"\",IF($Q2=\"\",\"\",INDEX($CA$443:$CA$458,MATCH($Q2,$BZ$443:$BZ$458,0)))))","v":4},{"$f":"IF($F$471=\"\",\"\",IF(COUNT($F$471:$F$478)<>COUNT($J$471:$J$478),\"\",IF($Q2=\"\",\"\",INDEX($CA$471:$CA$486,MATCH($Q2,$BZ$471:$BZ$486,0)))))","v":3},{"$f":"IF($F$498=\"\",\"\",IF(COUNT($F$498:$F$515)<>COUNT($J$498:$J$505),\"\",IF($Q2=\"\",\"\",INDEX($CA$498:$CA$513,MATCH($Q2,$BZ$498:$BZ$513,0)))))","v":3},{"$f":"IF($F$526=\"\",\"\",IF(COUNT($F$526:$F$533)<>COUNT(J$526:$J$533),\"\",IF($Q2=\"\",\"\",INDEX($CA$526:$CA$541,MATCH($Q2,$BZ$526:$BZ$541,0)))))","v":2},{"$f":"IF($F$553=\"\",\"\",IF(COUNT($F$553:$F$560)<>COUNT($J$553:$J$560),\"\",IF($Q2=\"\",\"\",INDEX($CA$553:$CA$568,MATCH($Q2,$BZ$553:$BZ$568,0)))))","v":4},{"$f":"IF($F$581=\"\",\"\",IF(COUNT($F$581:$F$588)<>COUNT($J$581:$J$588),\"\",IF($Q2=\"\",\"\",INDEX($CA$581:$CA$596,MATCH($Q2,$BZ$581:$BZ$596,0)))))","v":""},{"$f":"IF($F$608=\"\",\"\",IF(COUNT($F$608:$F$615)<>COUNT($J$608:$J$615),\"\",IF($Q2=\"\",\"\",INDEX($CA$608:$CA$623,MATCH($Q2,$BZ$608:$BZ$623,0)))))","v":""},{"$f":"IF($F$636=\"\",\"\",IF(COUNT($F$636:$F$643)<>COUNT($J$636:$J$643),\"\",IF($Q2=\"\",\"\",INDEX($CA$636:$CA$651,MATCH($Q2,$BZ$636:$BZ$651,0)))))","v":""},{"$f":"IF($F$663=\"\",\"\",IF(COUNT($F$663:$F$670)<>COUNT($J$663:$J$670),\"\",IF($Q2=\"\",\"\",INDEX($CA$663:$CA$678,MATCH($Q2,$BZ$663:$BZ$678,0)))))","v":""},{"$f":"IF($F$691=\"\",\"\",IF(COUNT($F$691:$F$698)<>COUNT($J$691:$J$698),\"\",IF($Q2=\"\",\"\",INDEX($CA$691:$CA$706,MATCH($Q2,$BZ$691:$BZ$706,0)))))","v":""},{"$f":"IF($F$718=\"\",\"\",IF(COUNT($F$718:$F$725)<>COUNT($J$718:$J$725),\"\",IF($Q2=\"\",\"\",INDEX($CA$718:$CA$733,MATCH($Q2,$BZ$718:$BZ$733,0)))))","v":""},{"$f":"IF($F$746=\"\",\"\",IF(COUNT($F$746:$F$753)<>COUNT($J$746:$J$753),\"\",IF($Q2=\"\",\"\",INDEX($CA$746:$CA$761,MATCH($Q2,$BZ$746:$BZ$761,0)))))","v":""},{"$f":"IF($F$773=\"\",\"\",IF(COUNT($F$773:$F$780)<>COUNT(J$773:$J$780),\"\",IF($Q2=\"\",\"\",INDEX($CA$773:$CA$788,MATCH($Q2,$BZ$773:$BZ$788,0)))))","v":""},{"$f":"IF($F$801=\"\",\"\",IF(COUNT($F$801:$F$808)<>COUNT($J$801:$J$808),\"\",IF($Q2=\"\",\"\",INDEX($CA$801:$CA$816,MATCH($Q2,$BZ$801:$BZ$816,0)))))","v":""}]
[6,{"$f":"IF(A3=\"\",\"\",VLOOKUP(A3,nomi,2))","v":"ant-din"},"3SA","S","QD",400,{"$f":"IF(A3=\"\",\"\",IF(F3=\"\",COUNT(J$3:J$10)-1,2*(COUNT(J$3:J$10)-K3)-COUNTIF(K$3:K$10,K3)+1))","v":1},{"$f":"IF(J3=\"\",\"\",2*(COUNT(J$3:J$10)-1)-G3)","v":3},{"$f":"IF(J3=\"\",\"\",VLOOKUP(J3,nomi,2))","v":"ren-san"},5,{"$f":"IF(F3=\"\",\"\",RANK(F3,F$3:F$10))","v":2},null,{"$f":"IF(P3=P2,M2,COUNTA(P$1:P3))","v":3},"tat-jul",40,47.61904761904762,3,"man-rob",39,46.428571428571431,1,0,3,3,2,1,2,2,2,2,0,2,4,1,3,0,1,3,1,{"$f":"IF($F$526=\"\",\"\",IF(COUNT($F$526:$F$533)<>COUNT(J$526:$J$533),\"\",IF($Q3=\"\",\"\",INDEX($CA$526:$CA$541,MATCH($Q3,$BZ$526:$BZ$541,0)))))","v":4},2,"","","","","","","",{"$f":"IF($F$773=\"\",\"\",IF(COUNT($F$773:$F$780)<>COUNT(J$773:$J$780),\"\",IF($Q3=\"\",\"\",INDEX($CA$773:$CA$788,MATCH($Q3,$BZ$773:$BZ$788,0)))))","v":""},"",null,null,null,null,null,null,null,null,null,null,null,null,null,null,null,null,null,null,null,null,null,null,null,null,null,null,null,{"$f":"A3","v":6},{"$f":"G3","v":1}]
[2,"ele-ste","3SA+1","S","P9",430,{"$f":"IF(A4=\"\",\"\",IF(F4=\"\",COUNT(J$3:J$10)-1,2*(COUNT(J$3:J$10)-K4)-COUNTIF(K$3:K$10,K4)+1))","v":4},{"$f":"IF(J4=\"\",\"\",2*(COUNT(J$3:J$10)-1)-G4)","v":0},"tat-jul",4,{"$f":"IF(F4=\"\",\"\",RANK(F4,F$3:F$10))","v":1},"ctrl+n",{"$f":"IF(P4=P3,M3,COUNTA(P$1:P4))","v":3},"bar-eli",40,47.61904761904762,4,"tat-jul",40,47.61904761904762,0,1,4,3,2,1,2,0,2,2,2,2,2,0,1,4,3,1,4,{"$f":"IF($F$526=\"\",\"\",IF(COUNT($F$526:$F$533)<>COUNT(J$526:$J$533),\"\",IF($Q4=\"\",\"\",INDEX($CA$526:$CA$541,MATCH($Q4,$BZ$526:$BZ$541,0)))))","v":0},4,"","","","","","","",{"$f":"IF($F$773=\"\",\"\",IF(COUNT($F$773:$F$780)<>COUNT(J$773:$J$780),\"\",IF($Q4=\"\",\"\",INDEX($CA$773:$CA$788,MATCH($Q4,$BZ$773:$BZ$788,0)))))","v":""},"",null,null,null,null,null,null,null,null,null,null,null,null,null,null,null,null,null,null,null,null,null,null,null,null,null,null,null,{"$f":"A4","v":2},{"$f":"G4","v":4}]
[3,"man-rob","3SA","S","P6",400,1,3,"bar-eli",7,2,"ctrl+s",{"$f":"IF(P5=P4,M4,COUNTA(P$1:P5))","v":5},"man-rob",39,46.428571428571431,5,"ren-san",36,42.857142857142854,3,1,1,1,2,3,0,4,2,4,2,0,2,2,2,2,1,0,0,{"$f":"IF($F$526=\"\",\"\",IF(COUNT($F$526:$F$533)<>COUNT(J$526:$J$533),\"\",IF($Q5=\"\",\"\",INDEX($CA$526:$CA$541,MATCH($Q5,$BZ$526:$BZ$541,0)))))","v":4},0,"","","","","","","",{"$f":"IF($F$773=\"\",\"\",IF(COUNT($F$773:$F$780)<>COUNT(J$773:$J$780),\"\",IF($Q5=\"\",\"\",INDEX($CA$773:$CA$788,MATCH($Q5,$BZ$773:$BZ$788,0)))))","v":""},"",null,null,null,null,null,null,null,null,null,null,null,null,null,null,null,null,null,null,null,null,null,null,null,null,null,null,null,3,1]
[1,"ste-mas",null,null,null,null,2,"","",null,"","ctrl+e",{"$f":"IF(P6=P5,M5,COUNTA(P$1:P6))","v":5},"ant-din",39,46.428571428571431,6,"ant-din",39,46.428571428571431,1,3,3,4,2,0,2,4,2,2,4,2,0,1,0,2,2,2,1,{"$f":"IF($F$526=\"\",\"\",IF(COUNT($F$526:$F$533)<>COUNT(J$526:$J$533),\"\",IF($Q6=\"\",\"\",INDEX($CA$526:$CA$541,MATCH($Q6,$BZ$526:$BZ$541,0)))))","v":2},0,"","","","","","","",{"$f":"IF($F$773=\"\",\"\",IF(COUNT($F$773:$F$780)<>COUNT(J$773:$J$780),\"\",IF($Q6=\"\",\"\",INDEX($CA$773:$CA$788,MATCH($Q6,$BZ$773:$BZ$788,0)))))","v":""},"",null,null,null,null,null,null,null,null,null,null,null,null,null,null,null,null,null,null,null,null,null,null,null,null,null,null,null,1,2]
[null,"",null,null,null,null,"","","",null,"","ctrl+o",{"$f":"IF(P7=P6,M6,COUNTA(P$1:P7))","v":7},"ren-san",36,42.857142857142854,7,"bar-eli",40,47.61904761904762,3,4,1,0,2,4,0,2,2,0,2,4,2,4,3,0,0,1,2,{"$f":"IF($F$526=\"\",\"\",IF(COUNT($F$526:$F$533)<>COUNT(J$526:$J$533),\"\",IF($Q7=\"\",\"\",INDEX($CA$526:$CA$541,MATCH($Q7,$BZ$526:$BZ$541,0)))))","v":2},2,"","","","","","","",{"$f":"IF($F$773=\"\",\"\",IF(COUNT($F$773:$F$780)<>COUNT(J$773:$J$780),\"\",IF($Q7=\"\",\"\",INDEX($CA$773:$CA$788,MATCH($Q7,$BZ$773:$BZ$788,0)))))","v":""},"",null,null,null,null,null,null,null,null,null,null,null,null,null,null,null,null,null,null,null,null,null,null,null,null,null,null,null,0,""]
[null,"",null,null,null,null,"","","",null,"",null,{"$f":"IF(P8=P7,M7,COUNTA(P$1:P8))","v":8},null,0,0,null,null,0,0,"","","","","","","","","","","","","","","","","","","",{"$f":"IF($F$526=\"\",\"\",IF(COUNT($F$526:$F$533)<>COUNT(J$526:$J$533),\"\",IF($Q8=\"\",\"\",INDEX($CA$526:$CA$541,MATCH($Q8,$BZ$526:$BZ$541,0)))))","v":""},"","","","","","","","",{"$f":"IF($F$773=\"\",\"\",IF(COUNT($F$773:$F$780)<>COUNT(J$773:$J$780),\"\",IF($Q8=\"\",\"\",INDEX($CA$773:$CA$788,MATCH($Q8,$BZ$773:$BZ$788,0)))))","v":""},"",null,null,null,null,null,null,null,null,null,null,null,null,null,null,null,null,null,null,null,null,null,null,null,null,null,null,null,0,""]
[null,"",null,null,null,null,"","","",null,"","ctrl+x",{"$f":"IF(P9=P8,M8,COUNTA(P$1:P9))","v":8},null,0,0,null,null,0,0,"","","","","","","","","","","","","","","","","","","",{"$f":"IF($F$526=\"\",\"\",IF(COUNT($F$526:$F$533)<>COUNT(J$526:$J$533),\"\",IF($Q9=\"\",\"\",INDEX($CA$526:$CA$541,MATCH($Q9,$BZ$526:$BZ$541,0)))))","v":""},"","","","","","","","",{"$f":"IF($F$773=\"\",\"\",IF(COUNT($F$773:$F$780)<>COUNT(J$773:$J$780),\"\",IF($Q9=\"\",\"\",INDEX($CA$773:$CA$788,MATCH($Q9,$BZ$773:$BZ$788,0)))))","v":""},"",null,null,null,null,null,null,null,null,null,null,null,null,null,null,null,null,null,null,null,null,null,null,null,null,null,null,null,0,""]
[null,"",null,null,null,null,"","",{"$f":"IF(J10=\"\",\"\",VLOOKUP(J10,nomi,2))","v":""},null,"",null,{"$f":"IF(P10=P9,M9,COUNTA(P$1:P10))","v":8},null,0,0,null,null,0,0,"","","","","","","","","","","","","","","","","","","",{"$f":"IF($F$526=\"\",\"\",IF(COUNT($F$526:$F$533)<>COUNT(J$526:$J$533),\"\",IF($Q10=\"\",\"\",INDEX($CA$526:$CA$541,MATCH($Q10,$BZ$526:$BZ$541,0)))))","v":""},"","","","","","","","",{"$f":"IF($F$773=\"\",\"\",IF(COUNT($F$773:$F$780)<>COUNT(J$773:$J$780),\"\",IF($Q10=\"\",\"\",INDEX($CA$773:$CA$788,MATCH($Q10,$BZ$773:$BZ$788,0)))))","v":""},"",null,null,null,null,null,null,null,null,null,null,null,null,null,null,null,null,null,null,null,null,null,null,null,null,null,null,null,0,""]
[null,null,null,null,null,null,null,null,null,null,null,null,{"$f":"IF(P11=P10,M10,COUNTA(P$1:P11))","v":8},null,0,0,null,null,0,0,"","","","","","","","","","","","","","","","","","","",{"$f":"IF($F$526=\"\",\"\",IF(COUNT($F$526:$F$533)<>COUNT(J$526:$J$533),\"\",IF($Q11=\"\",\"\",INDEX($CA$526:$CA$541,MATCH($Q11,$BZ$526:$BZ$541,0)))))","v":""},"","","","","","","","",{"$f":"IF($F$773=\"\",\"\",IF(COUNT($F$773:$F$780)<>COUNT(J$773:$J$780),\"\",IF($Q11=\"\",\"\",INDEX($CA$773:$CA$788,MATCH($Q11,$BZ$773:$BZ$788,0)))))","v":""},"",null,null,null,null,null,null,null,null,null,null,null,null,null,null,null,null,null,null,null,null,null,null,null,null,null,null,null,{"$f":"J3","v":5},{"$f":"H3","v":3}]
[null,null,null,null,null,null,null,null,null,null,null,null,{"$f":"IF(P12=P11,M11,COUNTA(P$1:P12))","v":8},null,0,0,null,null,0,0,"","","","","","","","","","","","","","","","","","","",{"$f":"IF($F$526=\"\",\"\",IF(COUNT($F$526:$F$533)<>COUNT(J$526:$J$533),\"\",IF($Q12=\"\",\"\",INDEX($CA$526:$CA$541,MATCH($Q12,$BZ$526:$BZ$541,0)))))","v":""},"","","","","","","","",{"$f":"IF($F$773=\"\",\"\",IF(COUNT($F$773:$F$780)<>COUNT(J$773:$J$780),\"\",IF($Q12=\"\",\"\",INDEX($CA$773:$CA$788,MATCH($Q12,$BZ$773:$BZ$788,0)))))","v":""},"",null,null,null,null,null,null,null,null,null,null,null,null,null,null,null,null,null,null,null,null,null,null,null,null,null,null,null,4,0]
[null,null,null,null,null,null,null,null,null,null,null,null,{"$f":"IF(P13=P12,M12,COUNTA(P$1:P13))","v":8},null,0,0,null,null,0,0,"","","","","","","","","","","","","","","","","","","",{"$f":"IF($F$526=\"\",\"\",IF(COUNT($F$526:$F$533)<>COUNT(J$526:$J$533),\"\",IF($Q13=\"\",\"\",INDEX($CA$526:$CA$541,MATCH($Q13,$BZ$526:$BZ$541,0)))))","v":""},"","","","","","","","",{"$f":"IF($F$773=\"\",\"\",IF(COUNT($F$773:$F$780)<>COUNT(J$773:$J$780),\"\",IF($Q13=\"\",\"\",INDEX($CA$773:$CA$788,MATCH($Q13,$BZ$773:$BZ$788,0)))))","v":""},"",null,null,null,null,null,null,null,null,null,null,null,null,null,null,null,null,null,null,null,null,null,null,null,null,null,null,null,7,3]
[null,null,null,null,null,null,null,null,null,null,null,null,{"$f":"IF(P14=P13,M13,COUNTA(P$1:P14))","v":8},null,0,0,null,null,0,0,"","","","","","","","","","","","","","","","","","","",{"$f":"IF($F$526=\"\",\"\",IF(COUNT($F$526:$F$533)<>COUNT(J$526:$J$533),\"\",IF($Q14=\"\",\"\",INDEX($CA$526:$CA$541,MATCH($Q14,$BZ$526:$BZ$541,0)))))","v":""},"","","","","","","","",{"$f":"IF($F$773=\"\",\"\",IF(COUNT($F$773:$F$780)<>COUNT(J$773:$J$780),\"\",IF($Q14=\"\",\"\",INDEX($CA$773:$CA$788,MATCH($Q14,$BZ$773:$BZ$788,0)))))","v":""},"",null,null,null,null,null,null,null,null,null,null,null,null,null,null,null,null,null,null,null,null,null,null,null,null,null,null,null,0,""]
[null,null,null,null,null,null,null,null,null,null,null,null,{"$f":"IF(P15=P14,M14,COUNTA(P$1:P15))","v":8},null,0,0,null,null,0,0,"","","","","","","","","","","","","","","","","","","",{"$f":"IF($F$526=\"\",\"\",IF(COUNT($F$526:$F$533)<>COUNT(J$526:$J$533),\"\",IF($Q15=\"\",\"\",INDEX($CA$526:$CA$541,MATCH($Q15,$BZ$526:$BZ$541,0)))))","v":""},"","","","","","","","",{"$f":"IF($F$773=\"\",\"\",IF(COUNT($F$773:$F$780)<>COUNT(J$773:$J$780),\"\",IF($Q15=\"\",\"\",INDEX($CA$773:$CA$788,MATCH($Q15,$BZ$773:$BZ$788,0)))))","v":""},"",null,null,null,null,null,null,null,null,null,null,null,null,null,null,null,null,null,null,null,null,null,null,null,null,null,null,null,0,""]
[null,null,null,null,null,null,null,null,null,null,null,null,{"$f":"IF(P16=P15,M15,COUNTA(P$1:P16))","v":8},null,0,0,null,null,0,0,"","","","","","","","","","","","","","","","","","","",{"$f":"IF($F$526=\"\",\"\",IF(COUNT($F$526:$F$533)<>COUNT(J$526:$J$533),\"\",IF($Q16=\"\",\"\",INDEX($CA$526:$CA$541,MATCH($Q16,$BZ$526:$BZ$541,0)))))","v":""},"","","","","","","","",{"$f":"IF($F$773=\"\",\"\",IF(COUNT($F$773:$F$780)<>COUNT(J$773:$J$780),\"\",IF($Q16=\"\",\"\",INDEX($CA$773:$CA$788,MATCH($Q16,$BZ$773:$BZ$788,0)))))","v":""},"",null,null,null,null,null,null,null,null,null,null,null,null,null,null,null,null,null,null,null,null,null,null,null,null,null,null,null,0,""]
[null,null,null,null,null,null,null,null,null,null,null,null,"classifica","coppie","punti","media %","#","coppie","punti","media %",{"$f":"SUM(U1:U16)","v":14},14,14,14,14,14,14,14,14,14,14,14,14,14,14,14,14,14,14,14,14,0,0,0,0,0,0,0,0,0,null,null,null,null,null,null,null,null,null,null,null,null,null,null,null,null,null,null,null,null,null,null,null,null,null,null,null,0,""]
[null,null,null,null,null,null,null,null,null,null,null,null,null,null,{"$f":"SUM(O1:O16)","v":294},{"$f":"SUM(P1:P16)","v":350},null,null,{"$f":"SUM(S1:S16)","v":294},{"$f":"SUM(T1:T16)","v":350},{"$f":"1","v":1},{"$f":"U18+1","v":2},3,4,5,6,7,8,9,10,11,12,13,14,15,16,17,18,19,20,21,22,23,24,25,26,27,28,29,30,null,null,null,null,null,null,null,null,null,null,null,null,null,null,null,null,null,null,null,null,null,null,null,null,null,null,null,0,""]
[]
[]
[]
[]
[]
[]
[]
[]
[]
[]
[{"$f":"$A$1","v":"2019-07-06"},null,"Mano  #    2",null,null,null,"Dichiarante   ",null,null,"E"]
["N/S",null,"Contratto","Gioc. da","Att.","Punti NS","NS","EO","E/O",null,"Rank NS"]
[6,{"$f":"IF(A31=\"\",\"\",VLOOKUP(A31,nomi,2))","v":"ant-din"},"2P-1","S","C9",-100,{"$f":"IF(A31=\"\",\"\",IF(F31=\"\",COUNT(J$31:J$38)-1,2*(COUNT(J$31:J$38)-K31)-COUNTIF(K$31:K$38,K31)+1))","v":3},{"$f":"IF(J31=\"\",\"\",2*(COUNT(J$31:J$38)-1)-G31)","v":1},{"$f":"IF(J31=\"\",\"\",VLOOKUP(J31,nomi,2))","v":"ren-san"},5,{"$f":"IF(F31=\"\",\"\",RANK(F31,F$31:F$38))","v":1},null,null,null,null,null,null,null,null,null,null,null,null,null,null,null,null,null,null,null,null,null,null,null,null,null,null,null,null,null,null,null,null,null,null,null,null,null,null,null,null,null,null,null,null,null,null,null,null,null,null,null,null,null,null,null,null,null,null,null,null,null,null,null,null,null,null,{"$f":"A31","v":6},{"$f":"G31","v":3}]
[2,"ele-ste","2P-1","S","QA",-100,{"$f":"IF(A32=\"\",\"\",IF(F32=\"\",COUNT(J$31:J$38)-1,2*(COUNT(J$31:J$38)-K32)-COUNTIF(K$31:K$38,K32)+1))","v":3},{"$f":"IF(J32=\"\",\"\",2*(COUNT(J$31:J$38)-1)-G32)","v":1},"tat-jul",4,{"$f":"IF(F32=\"\",\"\",RANK(F32,F$31:F$38))","v":1},null,null,null,null,null,null,null,null,null,null,null,null,null,null,null,null,null,null,null,null,null,null,null,null,null,null,null,null,null,null,null,null,null,null,null,null,null,null,null,null,null,null,null,null,null,null,null,null,null,null,null,null,null,null,null,null,null,null,null,null,null,null,null,null,null,null,{"$f":"A32","v":2},{"$f":"G32","v":3}]
[3,"man-rob","2SA-3","N","C8",-300,0,4,"bar-eli",7,3,null,null,null,null,null,null,null,null,null,null,null,null,null,null,null,null,null,null,null,null,null,null,null,null,null,null,null,null,null,null,null,null,null,null,null,null,null,null,null,null,null,null,null,null,null,null,null,null,null,null,null,null,null,null,null,null,null,null,null,null,null,null,null,null,null,null,3,0]
[1,"ste-mas",null,null,null,null,2,"","",null,"",null,null,null,null,null,null,null,null,null,null,null,null,null,null,null,null,null,null,null,null,null,null,null,null,null,null,null,null,null,null,null,null,null,null,null,null,null,null,null,null,null,null,null,null,null,null,null,null,null,null,null,null,null,null,null,null,null,null,null,null,null,null,null,null,null,null,1,2]
[null,"",null,null,null,null,"","","",null,"",null,null,null,null,null,null,null,null,null,null,null,null,null,null,null,null,null,null,null,null,null,null,null,null,null,null,null,null,null,null,null,null,null,null,null,null,null,null,null,null,null,null,null,null,null,null,null,null,null,null,null,null,null,null,null,null,null,null,null,null,null,null,null,null,null,null,0,""]
[null,"",null,null,null,null,"","","",null,"",null,null,null,null,null,null,null,null,null,null,null,null,null,null,null,null,null,null,null,null,null,null,null,null,null,null,null,null,null,null,null,null,null,null,null,null,null,null,null,null,null,null,null,null,null,null,null,null,null,null,null,null,null,null,null,null,null,null,null,null,null,null,null,null,null,null,0,""]
[null,"",null,null,null,null,"","","",null,"",null,null,null,null,null,null,null,null,null,null,null,null,null,null,null,null,null,null,null,null,null,null,null,null,null,null,null,null,null,null,null,null,null,null,null,null,null,null,null,null,null,null,null,null,null,null,null,null,null,null,null,null,null,null,null,null,null,null,null,null,null,null,null,null,null,null,0,""]
[null,"",null,null,null,null,"","",{"$f":"IF(J38=\"\",\"\",VLOOKUP(J38,nomi,2))","v":""},null,"",null,null,null,null,null,null,null,null,null,null,null,null,null,null,null,null,null,null,null,null,null,null,null,null,null,null,null,null,null,null,null,null,null,null,null,null,null,null,null,null,null,null,null,null,null,null,null,null,null,null,null,null,null,null,null,null,null,null,null,null,null,null,null,null,null,null,0,""]
[null,null,null,null,null,null,null,null,null,null,null,null,null,null,null,null,null,null,null,null,null,null,null,null,null,null,null,null,null,null,null,null,null,null,null,null,null,null,null,null,null,null,null,null,null,null,null,null,null,null,null,null,null,null,null,null,null,null,null,null,null,null,null,null,null,null,null,null,null,null,null,null,null,null,null,null,null,{"$f":"J31","v":5},{"$f":"H31","v":1}]
[null,null,null,null,null,null,null,null,null,null,null,null,null,null,null,null,null,null,null,null,null,null,null,null,null,null,null,null,null,null,null,null,null,null,null,null,null,null,null,null,null,null,null,null,null,null,null,null,null,null,null,null,null,null,null,null,null,null,null,null,null,null,null,null,null,null,null,null,null,null,null,null,null,null,null,null,null,4,1]
[null,null,null,null,null,null,null,null,null,null,null,null,null,null,null,null,null,null,null,null,null,null,null,null,null,null,null,null,null,null,null,null,null,null,null,null,null,null,null,null,null,null,null,null,null,null,null,null,null,null,null,null,null,null,null,null,null,null,null,null,null,null,null,null,null,null,null,null,null,null,null,null,null,null,null,null,null,7,4]
[null,null,null,null,null,null,null,null,null,null,null,null,null,null,null,null,null,null,null,null,null,null,null,null,null,null,null,null,null,null,null,null,null,null,null,null,null,null,null,null,null,null,null,null,null,null,null,null,null,null,null,null,null,null,null,null,null,null,null,null,null,null,null,null,null,null,null,null,null,null,null,null,null,null,null,null,null,0,""]
[null,null,null,null,null,null,null,null,null,null,null,null,null,null,null,null,null,null,null,null,null,null,null,null,null,null,null,null,null,null,null,null,null,null,null,null,null,null,null,null,null,null,null,null,null,null,null,null,null,null,null,null,null,null,null,null,null,null,null,null,null,null,null,null,null,null,null,null,null,null,null,null,null,null,null,null,null,0,""]
[null,null,null,null,null,null,null,null,null,null,null,null,null,null,null,null,null,null,null,null,null,null,null,null,null,null,null,null,null,null,null,null,null,null,null,null,null,null,null,null,null,null,null,null,null,null,null,null,null,null,null,null,null,null,null,null,null,null,null,null,null,null,null,null,null,null,null,null,null,null,null,null,null,null,null,null,null,0,""]
[null,null,null,null,null,null,null,null,null,null,null,null,null,null,null,null,null,null,null,null,null,null,null,null,null,null,null,null,null,null,null,null,null,null,null,null,null,null,null,null,null,null,null,null,null,null,null,null,null,null,null,null,null,null,null,null,null,null,null,null,null,null,null,null,null,null,null,null,null,null,null,null,null,null,null,null,null,0,""]
[null,null,null,null,null,null,null,null,null,null,null,null,null,null,null,null,null,null,null,null,null,null,null,null,null,null,null,null,null,null,null,null,null,null,null,null,null,null,null,null,null,null,null,null,null,null,null,null,null,null,null,null,null,null,null,null,null,null,null,null,null,null,null,null,null,null,null,null,null,null,null,null,null,null,null,null,null,0,""]
[]
[]
[]
[]
[]
[]
[]
[]
[]
[{"$f":"$A$1","v":"2019-07-06"},null,"Mano  #    3",null,null,null,"Dichiarante   ",null,null,"S"]
["N/S",null,"Contratto","Gioc. da","Att.","Punti NS","NS","EO","E/O (v)",null,"Rank NS"]
[6,{"$f":"IF(A58=\"\",\"\",VLOOKUP(A58,nomi,2))","v":"ant-din"},"3P+1","S","FD",170,{"$f":"IF(A58=\"\",\"\",IF(F58=\"\",COUNT(J$58:J$65)-1,2*(COUNT(J$58:J$65)-K58)-COUNTIF(K$58:K$65,K58)+1))","v":3},{"$f":"IF(J58=\"\",\"\",2*(COUNT(J$58:J$65)-1)-G58)","v":1},{"$f":"IF(J58=\"\",\"\",VLOOKUP(J58,nomi,2))","v":"ren-san"},5,{"$f":"IF(F58=\"\",\"\",RANK(F58,F$58:F$65))","v":1},null,null,null,null,null,null,null,null,null,null,null,null,null,null,null,null,null,null,null,null,null,null,null,null,null,null,null,null,null,null,null,null,null,null,null,null,null,null,null,null,null,null,null,null,null,null,null,null,null,null,null,null,null,null,null,null,null,null,null,null,null,null,null,null,null,null,{"$f":"A58","v":6},{"$f":"G58","v":3}]
[2,"ele-ste","3P","S","P4",140,{"$f":"IF(A59=\"\",\"\",IF(F59=\"\",COUNT(J$58:J$65)-1,2*(COUNT(J$58:J$65)-K59)-COUNTIF(K$58:K$65,K59)+1))","v":0},{"$f":"IF(J59=\"\",\"\",2*(COUNT(J$58:J$65)-1)-G59)","v":4},"tat-jul",4,{"$f":"IF(F59=\"\",\"\",RANK(F59,F$58:F$65))","v":3},null,null,null,null,null,null,null,null,null,null,null,null,null,null,null,null,null,null,null,null,null,null,null,null,null,null,null,null,null,null,null,null,null,null,null,null,null,null,null,null,null,null,null,null,null,null,null,null,null,null,null,null,null,null,null,null,null,null,null,null,null,null,null,null,null,null,{"$f":"A59","v":2},{"$f":"G59","v":0}]
[3,"man-rob","3P+1","S","FD",170,3,1,"bar-eli",7,1,null,null,null,null,null,null,null,null,null,null,null,null,null,null,null,null,null,null,null,null,null,null,null,null,null,null,null,null,null,null,null,null,null,null,null,null,null,null,null,null,null,null,null,null,null,null,null,null,null,null,null,null,null,null,null,null,null,null,null,null,null,null,null,null,null,null,3,3]
[1,"ste-mas",null,null,null,null,2,"","",null,"",null,null,null,null,null,null,null,null,null,null,null,null,null,null,null,null,null,null,null,null,null,null,null,null,null,null,null,null,null,null,null,null,null,null,null,null,null,null,null,null,null,null,null,null,null,null,null,null,null,null,null,null,null,null,null,null,null,null,null,null,null,null,null,null,null,null,1,2]
[null,"",null,null,null,null,"","","",null,"",null,null,null,null,null,null,null,null,null,null,null,null,null,null,null,null,null,null,null,null,null,null,null,null,null,null,null,null,null,null,null,null,null,null,null,null,null,null,null,null,null,null,null,null,null,null,null,null,null,null,null,null,null,null,null,null,null,null,null,null,null,null,null,null,null,null,0,""]
[null,"",null,null,null,null,"","","",null,"",null,null,null,null,null,null,null,null,null,null,null,null,null,null,null,null,null,null,null,null,null,null,null,null,null,null,null,null,null,null,null,null,null,null,null,null,null,null,null,null,null,null,null,null,null,null,null,null,null,null,null,null,null,null,null,null,null,null,null,null,null,null,null,null,null,null,0,""]
[null,"",null,null,null,null,"","","",null,"",null,null,null,null,null,null,null,null,null,null,null,null,null,null,null,null,null,null,null,null,null,null,null,null,null,null,null,null,null,null,null,null,null,null,null,null,null,null,null,null,null,null,null,null,null,null,null,null,null,null,null,null,null,null,null,null,null,null,null,null,null,null,null,null,null,null,0,""]
[null,"",null,null,null,null,"","",{"$f":"IF(J65=\"\",\"\",VLOOKUP(J65,nomi,2))","v":""},null,"",null,null,null,null,null,null,null,null,null,null,null,null,null,null,null,null,null,null,null,null,null,null,null,null,null,null,null,null,null,null,null,null,null,null,null,null,null,null,null,null,null,null,null,null,null,null,null,null,null,null,null,null,null,null,null,null,null,null,null,null,null,null,null,null,null,null,0,""]
[null,null,null,null,null,null,null,null,null,null,null,null,null,null,null,null,null,null,null,null,null,null,null,null,null,null,null,null,null,null,null,null,null,null,null,null,null,null,null,null,null,null,null,null,null,null,null,null,null,null,null,null,null,null,null,null,null,null,null,null,null,null,null,null,null,null,null,null,null,null,null,null,null,null,null,null,null,{"$f":"J58","v":5},{"$f":"H58","v":1}]
[null,null,null,null,null,null,null,null,null,null,null,null,null,null,null,null,null,null,null,null,null,null,null,null,null,null,null,null,null,null,null,null,null,null,null,null,null,null,null,null,null,null,null,null,null,null,null,null,null,null,null,null,null,null,null,null,null,null,null,null,null,null,null,null,null,null,null,null,null,null,null,null,null,null,null,null,null,4,4]
[null,null,null,null,null,null,null,null,null,null,null,null,null,null,null,null,null,null,null,null,null,null,null,null,null,null,null,null,null,null,null,null,null,null,null,null,null,null,null,null,null,null,null,null,null,null,null,null,null,null,null,null,null,null,null,null,null,null,null,null,null,null,null,null,null,null,null,null,null,null,null,null,null,null,null,null,null,7,1]
[null,null,null,null,null,null,null,null,null,null,null,null,null,null,null,null,null,null,null,null,null,null,null,null,null,null,null,null,null,null,null,null,null,null,null,null,null,null,null,null,null,null,null,null,null,null,null,null,null,null,null,null,null,null,null,null,null,null,null,null,null,null,null,null,null,null,null,null,null,null,null,null,null,null,null,null,null,0,""]
[null,null,null,null,null,null,null,null,null,null,null,null,null,null,null,null,null,null,null,null,null,null,null,null,null,null,null,null,null,null,null,null,null,null,null,null,null,null,null,null,null,null,null,null,null,null,null,null,null,null,null,null,null,null,null,null,null,null,null,null,null,null,null,null,null,null,null,null,null,null,null,null,null,null,null,null,null,0,""]
[null,null,null,null,null,null,null,null,null,null,null,null,null,null,null,null,null,null,null,null,null,null,null,null,null,null,null,null,null,null,null,null,null,null,null,null,null,null,null,null,null,null,null,null,null,null,null,null,null,null,null,null,null,null,null,null,null,null,null,null,null,null,null,null,null,null,null,null,null,null,null,null,null,null,null,null,null,0,""]
[null,null,null,null,null,null,null,null,null,null,null,null,null,null,null,null,null,null,null,null,null,null,null,null,null,null,null,null,null,null,null,null,null,null,null,null,null,null,null,null,null,null,null,null,null,null,null,null,null,null,null,null,null,null,null,null,null,null,null,null,null,null,null,null,null,null,null,null,null,null,null,null,null,null,null,null,null,0,""]
[null,null,null,null,null,null,null,null,null,null,null,null,null,null,null,null,null,null,null,null,null,null,null,null,null,null,null,null,null,null,null,null,null,null,null,null,null,null,null,null,null,null,null,null,null,null,null,null,null,null,null,null,null,null,null,null,null,null,null,null,null,null,null,null,null,null,null,null,null,null,null,null,null,null,null,null,null,0,""]
[]
[]
[]
[]
[]
[]
[]
[]
[]
[]
[{"$f":"$A$1","v":"2019-07-06"},null,"Mano  #    4",null,null,null,"Dichiarante   ",null,null,"O"]
["N/S (v)",null,"Contratto","Gioc. da","Att.","Punti NS","Punti Mano",null,"E/O (v)",null,"Rank NS"]
[7,{"$f":"IF(A86=\"\",\"\",VLOOKUP(A86,nomi,2))","v":"bar-eli"},"4C+1","E","F6",-650,{"$f":"IF(A86=\"\",\"\",IF(F86=\"\",COUNT(J$86:J$93)-1,2*(COUNT(J$86:J$93)-K86)-COUNTIF(K$86:K$93,K86)+1))","v":0},{"$f":"IF(J86=\"\",\"\",2*(COUNT(J$86:J$93)-1)-G86)","v":4},{"$f":"IF(J86=\"\",\"\",VLOOKUP(J86,nomi,2))","v":"ant-din"},6,{"$f":"IF(F86=\"\",\"\",RANK(F86,F$86:F$93))","v":3},null,null,null,null,null,null,null,null,null,null,null,null,null,null,null,null,null,null,null,null,null,null,null,null,null,null,null,null,null,null,null,null,null,null,null,null,null,null,null,null,null,null,null,null,null,null,null,null,null,null,null,null,null,null,null,null,null,null,null,null,null,null,null,null,null,null,{"$f":"A86","v":7},{"$f":"G86","v":0}]
[3,"man-rob","4C","E","F6",-620,{"$f":"IF(A87=\"\",\"\",IF(F87=\"\",COUNT(J$86:J$93)-1,2*(COUNT(J$86:J$93)-K87)-COUNTIF(K$86:K$93,K87)+1))","v":3},{"$f":"IF(J87=\"\",\"\",2*(COUNT(J$86:J$93)-1)-G87)","v":1},"ren-san",5,{"$f":"IF(F87=\"\",\"\",RANK(F87,F$86:F$93))","v":1},null,null,null,null,null,null,null,null,null,null,null,null,null,null,null,null,null,null,null,null,null,null,null,null,null,null,null,null,null,null,null,null,null,null,null,null,null,null,null,null,null,null,null,null,null,null,null,null,null,null,null,null,null,null,null,null,null,null,null,null,null,null,null,null,null,null,{"$f":"A87","v":3},{"$f":"G87","v":3}]
[4,"tat-jul","4C","E","PK",-620,3,1,"ste-mas",1,1,null,null,null,null,null,null,null,null,null,null,null,null,null,null,null,null,null,null,null,null,null,null,null,null,null,null,null,null,null,null,null,null,null,null,null,null,null,null,null,null,null,null,null,null,null,null,null,null,null,null,null,null,null,null,null,null,null,null,null,null,null,null,null,null,null,null,4,3]
[2,"ele-ste",null,null,null,null,2,"","",null,"",null,null,null,null,null,null,null,null,null,null,null,null,null,null,null,null,null,null,null,null,null,null,null,null,null,null,null,null,null,null,null,null,null,null,null,null,null,null,null,null,null,null,null,null,null,null,null,null,null,null,null,null,null,null,null,null,null,null,null,null,null,null,null,null,null,null,2,2]
[null,"",null,null,null,null,"","","",null,"",null,null,null,null,null,null,null,null,null,null,null,null,null,null,null,null,null,null,null,null,null,null,null,null,null,null,null,null,null,null,null,null,null,null,null,null,null,null,null,null,null,null,null,null,null,null,null,null,null,null,null,null,null,null,null,null,null,null,null,null,null,null,null,null,null,null,0,""]
[null,"",null,null,null,null,"","","",null,"",null,null,null,null,null,null,null,null,null,null,null,null,null,null,null,null,null,null,null,null,null,null,null,null,null,null,null,null,null,null,null,null,null,null,null,null,null,null,null,null,null,null,null,null,null,null,null,null,null,null,null,null,null,null,null,null,null,null,null,null,null,null,null,null,null,null,0,""]
[null,"",null,null,null,null,"","","",null,"",null,null,null,null,null,null,null,null,null,null,null,null,null,null,null,null,null,null,null,null,null,null,null,null,null,null,null,null,null,null,null,null,null,null,null,null,null,null,null,null,null,null,null,null,null,null,null,null,null,null,null,null,null,null,null,null,null,null,null,null,null,null,null,null,null,null,0,""]
[null,"",null,null,null,null,"","",{"$f":"IF(J93=\"\",\"\",VLOOKUP(J93,nomi,2))","v":""},null,"",null,null,null,null,null,null,null,null,null,null,null,null,null,null,null,null,null,null,null,null,null,null,null,null,null,null,null,null,null,null,null,null,null,null,null,null,null,null,null,null,null,null,null,null,null,null,null,null,null,null,null,null,null,null,null,null,null,null,null,null,null,null,null,null,null,null,0,""]
[null,null,null,null,null,null,null,null,null,null,null,null,null,null,null,null,null,null,null,null,null,null,null,null,null,null,null,null,null,null,null,null,null,null,null,null,null,null,null,null,null,null,null,null,null,null,null,null,null,null,null,null,null,null,null,null,null,null,null,null,null,null,null,null,null,null,null,null,null,null,null,null,null,null,null,null,null,{"$f":"J86","v":6},{"$f":"H86","v":4}]
[null,null,null,null,null,null,null,null,null,null,null,null,null,null,null,null,null,null,null,null,null,null,null,null,null,null,null,null,null,null,null,null,null,null,null,null,null,null,null,null,null,null,null,null,null,null,null,null,null,null,null,null,null,null,null,null,null,null,null,null,null,null,null,null,null,null,null,null,null,null,null,null,null,null,null,null,null,5,1]
[null,null,null,null,null,null,null,null,null,null,null,null,null,null,null,null,null,null,null,null,null,null,null,null,null,null,null,null,null,null,null,null,null,null,null,null,null,null,null,null,null,null,null,null,null,null,null,null,null,null,null,null,null,null,null,null,null,null,null,null,null,null,null,null,null,null,null,null,null,null,null,null,null,null,null,null,null,1,1]
[null,null,null,null,null,null,null,null,null,null,null,null,null,null,null,null,null,null,null,null,null,null,null,null,null,null,null,null,null,null,null,null,null,null,null,null,null,null,null,null,null,null,null,null,null,null,null,null,null,null,null,null,null,null,null,null,null,null,null,null,null,null,null,null,null,null,null,null,null,null,null,null,null,null,null,null,null,0,""]
[null,null,null,null,null,null,null,null,null,null,null,null,null,null,null,null,null,null,null,null,null,null,null,null,null,null,null,null,null,null,null,null,null,null,null,null,null,null,null,null,null,null,null,null,null,null,null,null,null,null,null,null,null,null,null,null,null,null,null,null,null,null,null,null,null,null,null,null,null,null,null,null,null,null,null,null,null,0,""]
[null,null,null,null,null,null,null,null,null,null,null,null,null,null,null,null,null,null,null,null,null,null,null,null,null,null,null,null,null,null,null,null,null,null,null,null,null,null,null,null,null,null,null,null,null,null,null,null,null,null,null,null,null,null,null,null,null,null,null,null,null,null,null,null,null,null,null,null,null,null,null,null,null,null,null,null,null,0,""]
[null,null,null,null,null,null,null,null,null,null,null,null,null,null,null,null,null,null,null,null,null,null,null,null,null,null,null,null,null,null,null,null,null,null,null,null,null,null,null,null,null,null,null,null,null,null,null,null,null,null,null,null,null,null,null,null,null,null,null,null,null,null,null,null,null,null,null,null,null,null,null,null,null,null,null,null,null,0,""]
[null,null,null,null,null,null,null,null,null,null,null,null,null,null,null,null,null,null,null,null,null,null,null,null,null,null,null,null,null,null,null,null,null,null,null,null,null,null,null,null,null,null,null,null,null,null,null,null,null,null,null,null,null,null,null,null,null,null,null,null,null,null,null,null,null,null,null,null,null,null,null,null,null,null,null,null,null,0,""]
[]
[]
[]
[]
[]
[]
[]
[]
[]
[{"$f":"$A$1","v":"2019-07-06"},null,"Mano  #    5",null,null,null,"Dichiarante   ",null,null,"N"]
["N/S (v)",null,"Contratto","Gioc. da","Att.","Punti NS","NS","EO","E/O",null,"Rank NS"]
[7,{"$f":"IF(A113=\"\",\"\",VLOOKUP(A113,nomi,2))","v":"bar-eli"},"2P+2","N","QA",170,{"$f":"IF(A113=\"\",\"\",IF(F113=\"\",COUNT(J$113:J$120)-1,2*(COUNT(J$113:J$120)-K113)-COUNTIF(K$113:K$120,K113)+1))","v":2},{"$f":"IF(J113=\"\",\"\",2*(COUNT(J$113:J$120)-1)-G113)","v":2},{"$f":"IF(J113=\"\",\"\",VLOOKUP(J113,nomi,2))","v":"ant-din"},6,{"$f":"IF(F113=\"\",\"\",RANK(F113,F$113:F$120))","v":1},null,null,null,null,null,null,null,null,null,null,null,null,null,null,null,null,null,null,null,null,null,null,null,null,null,null,null,null,null,null,null,null,null,null,null,null,null,null,null,null,null,null,null,null,null,null,null,null,null,null,null,null,null,null,null,null,null,null,null,null,null,null,null,null,null,null,{"$f":"A113","v":7},{"$f":"G113","v":2}]
[3,"man-rob","2P+2","N","CJ",170,{"$f":"IF(A114=\"\",\"\",IF(F114=\"\",COUNT(J$113:J$120)-1,2*(COUNT(J$113:J$120)-K114)-COUNTIF(K$113:K$120,K114)+1))","v":2},{"$f":"IF(J114=\"\",\"\",2*(COUNT(J$113:J$120)-1)-G114)","v":2},"ren-san",5,{"$f":"IF(F114=\"\",\"\",RANK(F114,F$113:F$120))","v":1},null,null,null,null,null,null,null,null,null,null,null,null,null,null,null,null,null,null,null,null,null,null,null,null,null,null,null,null,null,null,null,null,null,null,null,null,null,null,null,null,null,null,null,null,null,null,null,null,null,null,null,null,null,null,null,null,null,null,null,null,null,null,null,null,null,null,{"$f":"A114","v":3},{"$f":"G114","v":2}]
[4,"tat-jul","2P+2","N","CJ",170,2,2,"ste-mas",1,1,null,null,null,null,null,null,null,null,null,null,null,null,null,null,null,null,null,null,null,null,null,null,null,null,null,null,null,null,null,null,null,null,null,null,null,null,null,null,null,null,null,null,null,null,null,null,null,null,null,null,null,null,null,null,null,null,null,null,null,null,null,null,null,null,null,null,4,2]
[2,"ele-ste",null,null,null,null,2,"","",null,"",null,null,null,null,null,null,null,null,null,null,null,null,null,null,null,null,null,null,null,null,null,null,null,null,null,null,null,null,null,null,null,null,null,null,null,null,null,null,null,null,null,null,null,null,null,null,null,null,null,null,null,null,null,null,null,null,null,null,null,null,null,null,null,null,null,null,2,2]
[null,"",null,null,null,null,"","","",null,"",null,null,null,null,null,null,null,null,null,null,null,null,null,null,null,null,null,null,null,null,null,null,null,null,null,null,null,null,null,null,null,null,null,null,null,null,null,null,null,null,null,null,null,null,null,null,null,null,null,null,null,null,null,null,null,null,null,null,null,null,null,null,null,null,null,null,0,""]
[null,"",null,null,null,null,"","","",null,"",null,null,null,null,null,null,null,null,null,null,null,null,null,null,null,null,null,null,null,null,null,null,null,null,null,null,null,null,null,null,null,null,null,null,null,null,null,null,null,null,null,null,null,null,null,null,null,null,null,null,null,null,null,null,null,null,null,null,null,null,null,null,null,null,null,null,0,""]
[null,"",null,null,null,null,"","","",null,"",null,null,null,null,null,null,null,null,null,null,null,null,null,null,null,null,null,null,null,null,null,null,null,null,null,null,null,null,null,null,null,null,null,null,null,null,null,null,null,null,null,null,null,null,null,null,null,null,null,null,null,null,null,null,null,null,null,null,null,null,null,null,null,null,null,null,0,""]
[null,"",null,null,null,null,"","",{"$f":"IF(J120=\"\",\"\",VLOOKUP(J120,nomi,2))","v":""},null,"",null,null,null,null,null,null,null,null,null,null,null,null,null,null,null,null,null,null,null,null,null,null,null,null,null,null,null,null,null,null,null,null,null,null,null,null,null,null,null,null,null,null,null,null,null,null,null,null,null,null,null,null,null,null,null,null,null,null,null,null,null,null,null,null,null,null,0,""]
[null,null,null,null,null,null,null,null,null,null,null,null,null,null,null,null,null,null,null,null,null,null,null,null,null,null,null,null,null,null,null,null,null,null,null,null,null,null,null,null,null,null,null,null,null,null,null,null,null,null,null,null,null,null,null,null,null,null,null,null,null,null,null,null,null,null,null,null,null,null,null,null,null,null,null,null,null,{"$f":"J113","v":6},{"$f":"H113","v":2}]
[null,null,null,null,null,null,null,null,null,null,null,null,null,null,null,null,null,null,null,null,null,null,null,null,null,null,null,null,null,null,null,null,null,null,null,null,null,null,null,null,null,null,null,null,null,null,null,null,null,null,null,null,null,null,null,null,null,null,null,null,null,null,null,null,null,null,null,null,null,null,null,null,null,null,null,null,null,5,2]
[null,null,null,null,null,null,null,null,null,null,null,null,null,null,null,null,null,null,null,null,null,null,null,null,null,null,null,null,null,null,null,null,null,null,null,null,null,null,null,null,null,null,null,null,null,null,null,null,null,null,null,null,null,null,null,null,null,null,null,null,null,null,null,null,null,null,null,null,null,null,null,null,null,null,null,null,null,1,2]
[null,null,null,null,null,null,null,null,null,null,null,null,null,null,null,null,null,null,null,null,null,null,null,null,null,null,null,null,null,null,null,null,null,null,null,null,null,null,null,null,null,null,null,null,null,null,null,null,null,null,null,null,null,null,null,null,null,null,null,null,null,null,null,null,null,null,null,null,null,null,null,null,null,null,null,null,null,0,""]
[null,null,null,null,null,null,null,null,null,null,null,null,null,null,null,null,null,null,null,null,null,null,null,null,null,null,null,null,null,null,null,null,null,null,null,null,null,null,null,null,null,null,null,null,null,null,null,null,null,null,null,null,null,null,null,null,null,null,null,null,null,null,null,null,null,null,null,null,null,null,null,null,null,null,null,null,null,0,""]
[null,null,null,null,null,null,null,null,null,null,null,null,null,null,null,null,null,null,null,null,null,null,null,null,null,null,null,null,null,null,null,null,null,null,null,null,null,null,null,null,null,null,null,null,null,null,null,null,null,null,null,null,null,null,null,null,null,null,null,null,null,null,null,null,null,null,null,null,null,null,null,null,null,null,null,null,null,0,""]
[null,null,null,null,null,null,null,null,null,null,null,null,null,null,null,null,null,null,null,null,null,null,null,null,null,null,null,null,null,null,null,null,null,null,null,null,null,null,null,null,null,null,null,null,null,null,null,null,null,null,null,null,null,null,null,null,null,null,null,null,null,null,null,null,null,null,null,null,null,null,null,null,null,null,null,null,null,0,""]
[null,null,null,null,null,null,null,null,null,null,null,null,null,null,null,null,null,null,null,null,null,null,null,null,null,null,null,null,null,null,null,null,null,null,null,null,null,null,null,null,null,null,null,null,null,null,null,null,null,null,null,null,null,null,null,null,null,null,null,null,null,null,null,null,null,null,null,null,null,null,null,null,null,null,null,null,null,0,""]
[]
[]
[]
[]
[]
[]
[]
[]
[]
[]
[{"$f":"$A$1","v":"2019-07-06"},null,"Mano  #    6",null,null,null,"Dichiarante   ",null,null,"E"]
["N/S",null,"Contratto","Gioc. da","Att.","Punti NS","NS","EO","E/O (v)",null,"Rank NS"]
[7,{"$f":"IF(A141=\"\",\"\",VLOOKUP(A141,nomi,2))","v":"bar-eli"},"1SA+1","O","PK",-120,{"$f":"IF(A141=\"\",\"\",IF(F141=\"\",COUNT(J$141:J$148)-1,2*(COUNT(J$141:J$148)-K141)-COUNTIF(K$141:K$148,K141)+1))","v":4},{"$f":"IF(J141=\"\",\"\",2*(COUNT(J$141:J$148)-1)-G141)","v":0},{"$f":"IF(J141=\"\",\"\",VLOOKUP(J141,nomi,2))","v":"ant-din"},6,{"$f":"IF(F141=\"\",\"\",RANK(F141,F$141:F$148))","v":1},null,null,null,null,null,null,null,null,null,null,null,null,null,null,null,null,null,null,null,null,null,null,null,null,null,null,null,null,null,null,null,null,null,null,null,null,null,null,null,null,null,null,null,null,null,null,null,null,null,null,null,null,null,null,null,null,null,null,null,null,null,null,null,null,null,null,{"$f":"A141","v":7},{"$f":"G141","v":4}]
[3,"man-rob","1SA+2","O","P2",-150,{"$f":"IF(A142=\"\",\"\",IF(F142=\"\",COUNT(J$141:J$148)-1,2*(COUNT(J$141:J$148)-K142)-COUNTIF(K$141:K$148,K142)+1))","v":1},{"$f":"IF(J142=\"\",\"\",2*(COUNT(J$141:J$148)-1)-G142)","v":3},"ren-san",5,{"$f":"IF(F142=\"\",\"\",RANK(F142,F$141:F$148))","v":2},null,null,null,null,null,null,null,null,null,null,null,null,null,null,null,null,null,null,null,null,null,null,null,null,null,null,null,null,null,null,null,null,null,null,null,null,null,null,null,null,null,null,null,null,null,null,null,null,null,null,null,null,null,null,null,null,null,null,null,null,null,null,null,null,null,null,{"$f":"A142","v":3},{"$f":"G142","v":1}]
[4,"tat-jul","1SA+2","O","PK",-150,1,3,"ste-mas",1,2,null,null,null,null,null,null,null,null,null,null,null,null,null,null,null,null,null,null,null,null,null,null,null,null,null,null,null,null,null,null,null,null,null,null,null,null,null,null,null,null,null,null,null,null,null,null,null,null,null,null,null,null,null,null,null,null,null,null,null,null,null,null,null,null,null,null,4,1]
[2,"ele-ste",null,null,null,null,2,"","",null,"",null,null,null,null,null,null,null,null,null,null,null,null,null,null,null,null,null,null,null,null,null,null,null,null,null,null,null,null,null,null,null,null,null,null,null,null,null,null,null,null,null,null,null,null,null,null,null,null,null,null,null,null,null,null,null,null,null,null,null,null,null,null,null,null,null,null,2,2]
[null,"",null,null,null,null,"","","",null,"",null,null,null,null,null,null,null,null,null,null,null,null,null,null,null,null,null,null,null,null,null,null,null,null,null,null,null,null,null,null,null,null,null,null,null,null,null,null,null,null,null,null,null,null,null,null,null,null,null,null,null,null,null,null,null,null,null,null,null,null,null,null,null,null,null,null,0,""]
[null,"",null,null,null,null,"","","",null,"",null,null,null,null,null,null,null,null,null,null,null,null,null,null,null,null,null,null,null,null,null,null,null,null,null,null,null,null,null,null,null,null,null,null,null,null,null,null,null,null,null,null,null,null,null,null,null,null,null,null,null,null,null,null,null,null,null,null,null,null,null,null,null,null,null,null,0,""]
[null,"",null,null,null,null,"","","",null,"",null,null,null,null,null,null,null,null,null,null,null,null,null,null,null,null,null,null,null,null,null,null,null,null,null,null,null,null,null,null,null,null,null,null,null,null,null,null,null,null,null,null,null,null,null,null,null,null,null,null,null,null,null,null,null,null,null,null,null,null,null,null,null,null,null,null,0,""]
[null,"",null,null,null,null,"","",{"$f":"IF(J148=\"\",\"\",VLOOKUP(J148,nomi,2))","v":""},null,"",null,null,null,null,null,null,null,null,null,null,null,null,null,null,null,null,null,null,null,null,null,null,null,null,null,null,null,null,null,null,null,null,null,null,null,null,null,null,null,null,null,null,null,null,null,null,null,null,null,null,null,null,null,null,null,null,null,null,null,null,null,null,null,null,null,null,0,""]
[null,null,null,null,null,null,null,null,null,null,null,null,null,null,null,null,null,null,null,null,null,null,null,null,null,null,null,null,null,null,null,null,null,null,null,null,null,null,null,null,null,null,null,null,null,null,null,null,null,null,null,null,null,null,null,null,null,null,null,null,null,null,null,null,null,null,null,null,null,null,null,null,null,null,null,null,null,{"$f":"J141","v":6},{"$f":"H141","v":0}]
[null,null,null,null,null,null,null,null,null,null,null,null,null,null,null,null,null,null,null,null,null,null,null,null,null,null,null,null,null,null,null,null,null,null,null,null,null,null,null,null,null,null,null,null,null,null,null,null,null,null,null,null,null,null,null,null,null,null,null,null,null,null,null,null,null,null,null,null,null,null,null,null,null,null,null,null,null,5,3]
[null,null,null,null,null,null,null,null,null,null,null,null,null,null,null,null,null,null,null,null,null,null,null,null,null,null,null,null,null,null,null,null,null,null,null,null,null,null,null,null,null,null,null,null,null,null,null,null,null,null,null,null,null,null,null,null,null,null,null,null,null,null,null,null,null,null,null,null,null,null,null,null,null,null,null,null,null,1,3]
[null,null,null,null,null,null,null,null,null,null,null,null,null,null,null,null,null,null,null,null,null,null,null,null,null,null,null,null,null,null,null,null,null,null,null,null,null,null,null,null,null,null,null,null,null,null,null,null,null,null,null,null,null,null,null,null,null,null,null,null,null,null,null,null,null,null,null,null,null,null,null,null,null,null,null,null,null,0,""]
[null,null,null,null,null,null,null,null,null,null,null,null,null,null,null,null,null,null,null,null,null,null,null,null,null,null,null,null,null,null,null,null,null,null,null,null,null,null,null,null,null,null,null,null,null,null,null,null,null,null,null,null,null,null,null,null,null,null,null,null,null,null,null,null,null,null,null,null,null,null,null,null,null,null,null,null,null,0,""]
[null,null,null,null,null,null,null,null,null,null,null,null,null,null,null,null,null,null,null,null,null,null,null,null,null,null,null,null,null,null,null,null,null,null,null,null,null,null,null,null,null,null,null,null,null,null,null,null,null,null,null,null,null,null,null,null,null,null,null,null,null,null,null,null,null,null,null,null,null,null,null,null,null,null,null,null,null,0,""]
[null,null,null,null,null,null,null,null,null,null,null,null,null,null,null,null,null,null,null,null,null,null,null,null,null,null,null,null,null,null,null,null,null,null,null,null,null,null,null,null,null,null,null,null,null,null,null,null,null,null,null,null,null,null,null,null,null,null,null,null,null,null,null,null,null,null,null,null,null,null,null,null,null,null,null,null,null,0,""]
[null,null,null,null,null,null,null,null,null,null,null,null,null,null,null,null,null,null,null,null,null,null,null,null,null,null,null,null,null,null,null,null,null,null,null,null,null,null,null,null,null,null,null,null,null,null,null,null,null,null,null,null,null,null,null,null,null,null,null,null,null,null,null,null,null,null,null,null,null,null,null,null,null,null,null,null,null,0,""]
[]
[]
[]
[]
[]
[]
[]
[]
[]
[{"$f":"$A$1","v":"2019-07-06"},null,"Mano  #    7",null,null,null,"Dichiarante   ",null,null,"S"]
["N/S (v)",null,"Contratto","Gioc. da","Att.","Punti NS","NS","EO","E/O (v)",null,"Rank NS"]
[1,{"$f":"IF(A168=\"\",\"\",VLOOKUP(A168,nomi,2))","v":"ste-mas"},"3P-1","O","FK",100,{"$f":"IF(A168=\"\",\"\",IF(F168=\"\",COUNT(J$168:J$175)-1,2*(COUNT(J$168:J$175)-K168)-COUNTIF(K$168:K$175,K168)+1))","v":4},{"$f":"IF(J168=\"\",\"\",2*(COUNT(J$168:J$175)-1)-G168)","v":0},{"$f":"IF(J168=\"\",\"\",VLOOKUP(J168,nomi,2))","v":"bar-eli"},7,{"$f":"IF(F168=\"\",\"\",RANK(F168,F$168:F$175))","v":1},null,null,null,null,null,null,null,null,null,null,null,null,null,null,null,null,null,null,null,null,null,null,null,null,null,null,null,null,null,null,null,null,null,null,null,null,null,null,null,null,null,null,null,null,null,null,null,null,null,null,null,null,null,null,null,null,null,null,null,null,null,null,null,null,null,null,{"$f":"A168","v":1},{"$f":"G168","v":4}]
[4,"tat-jul","2SA","O","FK",-120,{"$f":"IF(A169=\"\",\"\",IF(F169=\"\",COUNT(J$168:J$175)-1,2*(COUNT(J$168:J$175)-K169)-COUNTIF(K$168:K$175,K169)+1))","v":2},{"$f":"IF(J169=\"\",\"\",2*(COUNT(J$168:J$175)-1)-G169)","v":2},"ant-din",6,{"$f":"IF(F169=\"\",\"\",RANK(F169,F$168:F$175))","v":2},null,null,null,null,null,null,null,null,null,null,null,null,null,null,null,null,null,null,null,null,null,null,null,null,null,null,null,null,null,null,null,null,null,null,null,null,null,null,null,null,null,null,null,null,null,null,null,null,null,null,null,null,null,null,null,null,null,null,null,null,null,null,null,null,null,null,{"$f":"A169","v":4},{"$f":"G169","v":2}]
[5,"ren-san","2P+1","O","FK",-140,0,4,"ele-ste",2,3,null,null,null,null,null,null,null,null,null,null,null,null,null,null,null,null,null,null,null,null,null,null,null,null,null,null,null,null,null,null,null,null,null,null,null,null,null,null,null,null,null,null,null,null,null,null,null,null,null,null,null,null,null,null,null,null,null,null,null,null,null,null,null,null,null,null,5,0]
[3,"man-rob",null,null,null,null,2,"","",null,"",null,null,null,null,null,null,null,null,null,null,null,null,null,null,null,null,null,null,null,null,null,null,null,null,null,null,null,null,null,null,null,null,null,null,null,null,null,null,null,null,null,null,null,null,null,null,null,null,null,null,null,null,null,null,null,null,null,null,null,null,null,null,null,null,null,null,3,2]
[null,"",null,null,null,null,"","","",null,"",null,null,null,null,null,null,null,null,null,null,null,null,null,null,null,null,null,null,null,null,null,null,null,null,null,null,null,null,null,null,null,null,null,null,null,null,null,null,null,null,null,null,null,null,null,null,null,null,null,null,null,null,null,null,null,null,null,null,null,null,null,null,null,null,null,null,0,""]
[null,"",null,null,null,null,"","","",null,"",null,null,null,null,null,null,null,null,null,null,null,null,null,null,null,null,null,null,null,null,null,null,null,null,null,null,null,null,null,null,null,null,null,null,null,null,null,null,null,null,null,null,null,null,null,null,null,null,null,null,null,null,null,null,null,null,null,null,null,null,null,null,null,null,null,null,0,""]
[null,"",null,null,null,null,"","","",null,"",null,null,null,null,null,null,null,null,null,null,null,null,null,null,null,null,null,null,null,null,null,null,null,null,null,null,null,null,null,null,null,null,null,null,null,null,null,null,null,null,null,null,null,null,null,null,null,null,null,null,null,null,null,null,null,null,null,null,null,null,null,null,null,null,null,null,0,""]
[null,"",null,null,null,null,"","",{"$f":"IF(J175=\"\",\"\",VLOOKUP(J175,nomi,2))","v":""},null,"",null,null,null,null,null,null,null,null,null,null,null,null,null,null,null,null,null,null,null,null,null,null,null,null,null,null,null,null,null,null,null,null,null,null,null,null,null,null,null,null,null,null,null,null,null,null,null,null,null,null,null,null,null,null,null,null,null,null,null,null,null,null,null,null,null,null,0,""]
[null,null,null,null,null,null,null,null,null,null,null,null,null,null,null,null,null,null,null,null,null,null,null,null,null,null,null,null,null,null,null,null,null,null,null,null,null,null,null,null,null,null,null,null,null,null,null,null,null,null,null,null,null,null,null,null,null,null,null,null,null,null,null,null,null,null,null,null,null,null,null,null,null,null,null,null,null,{"$f":"J168","v":7},{"$f":"H168","v":0}]
[null,null,null,null,null,null,null,null,null,null,null,null,null,null,null,null,null,null,null,null,null,null,null,null,null,null,null,null,null,null,null,null,null,null,null,null,null,null,null,null,null,null,null,null,null,null,null,null,null,null,null,null,null,null,null,null,null,null,null,null,null,null,null,null,null,null,null,null,null,null,null,null,null,null,null,null,null,6,2]
[null,null,null,null,null,null,null,null,null,null,null,null,null,null,null,null,null,null,null,null,null,null,null,null,null,null,null,null,null,null,null,null,null,null,null,null,null,null,null,null,null,null,null,null,null,null,null,null,null,null,null,null,null,null,null,null,null,null,null,null,null,null,null,null,null,null,null,null,null,null,null,null,null,null,null,null,null,2,4]
[null,null,null,null,null,null,null,null,null,null,null,null,null,null,null,null,null,null,null,null,null,null,null,null,null,null,null,null,null,null,null,null,null,null,null,null,null,null,null,null,null,null,null,null,null,null,null,null,null,null,null,null,null,null,null,null,null,null,null,null,null,null,null,null,null,null,null,null,null,null,null,null,null,null,null,null,null,0,""]
[null,null,null,null,null,null,null,null,null,null,null,null,null,null,null,null,null,null,null,null,null,null,null,null,null,null,null,null,null,null,null,null,null,null,null,null,null,null,null,null,null,null,null,null,null,null,null,null,null,null,null,null,null,null,null,null,null,null,null,null,null,null,null,null,null,null,null,null,null,null,null,null,null,null,null,null,null,0,""]
[null,null,null,null,null,null,null,null,null,null,null,null,null,null,null,null,null,null,null,null,null,null,null,null,null,null,null,null,null,null,null,null,null,null,null,null,null,null,null,null,null,null,null,null,null,null,null,null,null,null,null,null,null,null,null,null,null,null,null,null,null,null,null,null,null,null,null,null,null,null,null,null,null,null,null,null,null,0,""]
[null,null,null,null,null,null,null,null,null,null,null,null,null,null,null,null,null,null,null,null,null,null,null,null,null,null,null,null,null,null,null,null,null,null,null,null,null,null,null,null,null,null,null,null,null,null,null,null,null,null,null,null,null,null,null,null,null,null,null,null,null,null,null,null,null,null,null,null,null,null,null,null,null,null,null,null,null,0,""]
[null,null,null,null,null,null,null,null,null,null,null,null,null,null,null,null,null,null,null,null,null,null,null,null,null,null,null,null,null,null,null,null,null,null,null,null,null,null,null,null,null,null,null,null,null,null,null,null,null,null,null,null,null,null,null,null,null,null,null,null,null,null,null,null,null,null,null,null,null,null,null,null,null,null,null,null,null,0,""]
[]
[]
[]
[]
[]
[]
[]
[]
[]
[]
[{"$f":"$A$1","v":"2019-07-06"},null,"Mano  #    8",null,null,null,"Dichiarante   ",null,null,"O"]
["N/S",null,"Contratto","Gioc. da","Att.","Punti NS","NS","EO","E/O",null,"Rank NS"]
[1,{"$f":"IF(A196=\"\",\"\",VLOOKUP(A196,nomi,2))","v":"ste-mas"},"4P","S","P2",420,{"$f":"IF(A196=\"\",\"\",IF(F196=\"\",COUNT(J$196:J$203)-1,2*(COUNT(J$196:J$203)-K196)-COUNTIF(K$196:K$203,K196)+1))","v":2},{"$f":"IF(J196=\"\",\"\",2*(COUNT(J$196:J$203)-1)-G196)","v":2},{"$f":"IF(J196=\"\",\"\",VLOOKUP(J196,nomi,2))","v":"bar-eli"},7,{"$f":"IF(F196=\"\",\"\",RANK(F196,F$196:F$203))","v":2},null,null,null,null,null,null,null,null,null,null,null,null,null,null,null,null,null,null,null,null,null,null,null,null,null,null,null,null,null,null,null,null,null,null,null,null,null,null,null,null,null,null,null,null,null,null,null,null,null,null,null,null,null,null,null,null,null,null,null,null,null,null,null,null,null,null,{"$f":"A196","v":1},{"$f":"G196","v":2}]
[4,"tat-jul","3P+1","S","C6",170,{"$f":"IF(A197=\"\",\"\",IF(F197=\"\",COUNT(J$196:J$203)-1,2*(COUNT(J$196:J$203)-K197)-COUNTIF(K$196:K$203,K197)+1))","v":0},{"$f":"IF(J197=\"\",\"\",2*(COUNT(J$196:J$203)-1)-G197)","v":4},"ant-din",6,{"$f":"IF(F197=\"\",\"\",RANK(F197,F$196:F$203))","v":3},null,null,null,null,null,null,null,null,null,null,null,null,null,null,null,null,null,null,null,null,null,null,null,null,null,null,null,null,null,null,null,null,null,null,null,null,null,null,null,null,null,null,null,null,null,null,null,null,null,null,null,null,null,null,null,null,null,null,null,null,null,null,null,null,null,null,{"$f":"A197","v":4},{"$f":"G197","v":0}]
[5,"ren-san","3SA+1","S","Q2",430,4,0,"ele-ste",2,1,null,null,null,null,null,null,null,null,null,null,null,null,null,null,null,null,null,null,null,null,null,null,null,null,null,null,null,null,null,null,null,null,null,null,null,null,null,null,null,null,null,null,null,null,null,null,null,null,null,null,null,null,null,null,null,null,null,null,null,null,null,null,null,null,null,null,5,4]
[3,"man-rob",null,null,null,null,2,"","",null,"",null,null,null,null,null,null,null,null,null,null,null,null,null,null,null,null,null,null,null,null,null,null,null,null,null,null,null,null,null,null,null,null,null,null,null,null,null,null,null,null,null,null,null,null,null,null,null,null,null,null,null,null,null,null,null,null,null,null,null,null,null,null,null,null,null,null,3,2]
[null,"",null,null,null,null,"","","",null,"",null,null,null,null,null,null,null,null,null,null,null,null,null,null,null,null,null,null,null,null,null,null,null,null,null,null,null,null,null,null,null,null,null,null,null,null,null,null,null,null,null,null,null,null,null,null,null,null,null,null,null,null,null,null,null,null,null,null,null,null,null,null,null,null,null,null,0,""]
[null,"",null,null,null,null,"","","",null,"",null,null,null,null,null,null,null,null,null,null,null,null,null,null,null,null,null,null,null,null,null,null,null,null,null,null,null,null,null,null,null,null,null,null,null,null,null,null,null,null,null,null,null,null,null,null,null,null,null,null,null,null,null,null,null,null,null,null,null,null,null,null,null,null,null,null,0,""]
[null,"",null,null,null,null,"","","",null,"",null,null,null,null,null,null,null,null,null,null,null,null,null,null,null,null,null,null,null,null,null,null,null,null,null,null,null,null,null,null,null,null,null,null,null,null,null,null,null,null,null,null,null,null,null,null,null,null,null,null,null,null,null,null,null,null,null,null,null,null,null,null,null,null,null,null,0,""]
[null,"",null,null,null,null,"","",{"$f":"IF(J203=\"\",\"\",VLOOKUP(J203,nomi,2))","v":""},null,"",null,null,null,null,null,null,null,null,null,null,null,null,null,null,null,null,null,null,null,null,null,null,null,null,null,null,null,null,null,null,null,null,null,null,null,null,null,null,null,null,null,null,null,null,null,null,null,null,null,null,null,null,null,null,null,null,null,null,null,null,null,null,null,null,null,null,0,""]
[null,null,null,null,null,null,null,null,null,null,null,null,null,null,null,null,null,null,null,null,null,null,null,null,null,null,null,null,null,null,null,null,null,null,null,null,null,null,null,null,null,null,null,null,null,null,null,null,null,null,null,null,null,null,null,null,null,null,null,null,null,null,null,null,null,null,null,null,null,null,null,null,null,null,null,null,null,{"$f":"J196","v":7},{"$f":"H196","v":2}]
[null,null,null,null,null,null,null,null,null,null,null,null,null,null,null,null,null,null,null,null,null,null,null,null,null,null,null,null,null,null,null,null,null,null,null,null,null,null,null,null,null,null,null,null,null,null,null,null,null,null,null,null,null,null,null,null,null,null,null,null,null,null,null,null,null,null,null,null,null,null,null,null,null,null,null,null,null,6,4]
[null,null,null,null,null,null,null,null,null,null,null,null,null,null,null,null,null,null,null,null,null,null,null,null,null,null,null,null,null,null,null,null,null,null,null,null,null,null,null,null,null,null,null,null,null,null,null,null,null,null,null,null,null,null,null,null,null,null,null,null,null,null,null,null,null,null,null,null,null,null,null,null,null,null,null,null,null,2,0]
[null,null,null,null,null,null,null,null,null,null,null,null,null,null,null,null,null,null,null,null,null,null,null,null,null,null,null,null,null,null,null,null,null,null,null,null,null,null,null,null,null,null,null,null,null,null,null,null,null,null,null,null,null,null,null,null,null,null,null,null,null,null,null,null,null,null,null,null,null,null,null,null,null,null,null,null,null,0,""]
[null,null,null,null,null,null,null,null,null,null,null,null,null,null,null,null,null,null,null,null,null,null,null,null,null,null,null,null,null,null,null,null,null,null,null,null,null,null,null,null,null,null,null,null,null,null,null,null,null,null,null,null,null,null,null,null,null,null,null,null,null,null,null,null,null,null,null,null,null,null,null,null,null,null,null,null,null,0,""]
[null,null,null,null,null,null,null,null,null,null,null,null,null,null,null,null,null,null,null,null,null,null,null,null,null,null,null,null,null,null,null,null,null,null,null,null,null,null,null,null,null,null,null,null,null,null,null,null,null,null,null,null,null,null,null,null,null,null,null,null,null,null,null,null,null,null,null,null,null,null,null,null,null,null,null,null,null,0,""]
[null,null,null,null,null,null,null,null,null,null,null,null,null,null,null,null,null,null,null,null,null,null,null,null,null,null,null,null,null,null,null,null,null,null,null,null,null,null,null,null,null,null,null,null,null,null,null,null,null,null,null,null,null,null,null,null,null,null,null,null,null,null,null,null,null,null,null,null,null,null,null,null,null,null,null,null,null,0,""]
[null,null,null,null,null,null,null,null,null,null,null,null,null,null,null,null,null,null,null,null,null,null,null,null,null,null,null,null,null,null,null,null,null,null,null,null,null,null,null,null,null,null,null,null,null,null,null,null,null,null,null,null,null,null,null,null,null,null,null,null,null,null,null,null,null,null,null,null,null,null,null,null,null,null,null,null,null,0,""]
[]
[]
[]
[]
[]
[]
[]
[]
[]
[{"$f":"$A$1","v":"2019-07-06"},null,"Mano  #    9",null,null,null,"Dichiarante   ",null,null,"N"]
["N/S",null,"Contratto","Gioc. da","Att.","Punti NS","NS","EO","E/O (v)",null,"Rank NS"]
[1,{"$f":"IF(A223=\"\",\"\",VLOOKUP(A223,nomi,2))","v":"ste-mas"},"4P+2","E","QJ",-680,{"$f":"IF(A223=\"\",\"\",IF(F223=\"\",COUNT(J$223:J$230)-1,2*(COUNT(J$223:J$230)-K223)-COUNTIF(K$223:K$230,K223)+1))","v":2},{"$f":"IF(J223=\"\",\"\",2*(COUNT(J$223:J$230)-1)-G223)","v":2},{"$f":"IF(J223=\"\",\"\",VLOOKUP(J223,nomi,2))","v":"bar-eli"},7,{"$f":"IF(F223=\"\",\"\",RANK(F223,F$223:F$230))","v":1},null,null,null,null,null,null,null,null,null,null,null,null,null,null,null,null,null,null,null,null,null,null,null,null,null,null,null,null,null,null,null,null,null,null,null,null,null,null,null,null,null,null,null,null,null,null,null,null,null,null,null,null,null,null,null,null,null,null,null,null,null,null,null,null,null,null,{"$f":"A223","v":1},{"$f":"G223","v":2}]
[4,"tat-jul","4P+2","E","QJ",-680,{"$f":"IF(A224=\"\",\"\",IF(F224=\"\",COUNT(J$223:J$230)-1,2*(COUNT(J$223:J$230)-K224)-COUNTIF(K$223:K$230,K224)+1))","v":2},{"$f":"IF(J224=\"\",\"\",2*(COUNT(J$223:J$230)-1)-G224)","v":2},"ant-din",6,{"$f":"IF(F224=\"\",\"\",RANK(F224,F$223:F$230))","v":1},null,null,null,null,null,null,null,null,null,null,null,null,null,null,null,null,null,null,null,null,null,null,null,null,null,null,null,null,null,null,null,null,null,null,null,null,null,null,null,null,null,null,null,null,null,null,null,null,null,null,null,null,null,null,null,null,null,null,null,null,null,null,null,null,null,null,{"$f":"A224","v":4},{"$f":"G224","v":2}]
[5,"ren-san","4P+2","E","P8",-680,2,2,"ele-ste",2,1,null,null,null,null,null,null,null,null,null,null,null,null,null,null,null,null,null,null,null,null,null,null,null,null,null,null,null,null,null,null,null,null,null,null,null,null,null,null,null,null,null,null,null,null,null,null,null,null,null,null,null,null,null,null,null,null,null,null,null,null,null,null,null,null,null,null,5,2]
[3,"man-rob",null,null,null,null,2,"","",null,"",null,null,null,null,null,null,null,null,null,null,null,null,null,null,null,null,null,null,null,null,null,null,null,null,null,null,null,null,null,null,null,null,null,null,null,null,null,null,null,null,null,null,null,null,null,null,null,null,null,null,null,null,null,null,null,null,null,null,null,null,null,null,null,null,null,null,3,2]
[null,"",null,null,null,null,"","","",null,"",null,null,null,null,null,null,null,null,null,null,null,null,null,null,null,null,null,null,null,null,null,null,null,null,null,null,null,null,null,null,null,null,null,null,null,null,null,null,null,null,null,null,null,null,null,null,null,null,null,null,null,null,null,null,null,null,null,null,null,null,null,null,null,null,null,null,0,""]
[null,"",null,null,null,null,"","","",null,"",null,null,null,null,null,null,null,null,null,null,null,null,null,null,null,null,null,null,null,null,null,null,null,null,null,null,null,null,null,null,null,null,null,null,null,null,null,null,null,null,null,null,null,null,null,null,null,null,null,null,null,null,null,null,null,null,null,null,null,null,null,null,null,null,null,null,0,""]
[null,"",null,null,null,null,"","","",null,"",null,null,null,null,null,null,null,null,null,null,null,null,null,null,null,null,null,null,null,null,null,null,null,null,null,null,null,null,null,null,null,null,null,null,null,null,null,null,null,null,null,null,null,null,null,null,null,null,null,null,null,null,null,null,null,null,null,null,null,null,null,null,null,null,null,null,0,""]
[null,"",null,null,null,null,"","",{"$f":"IF(J230=\"\",\"\",VLOOKUP(J230,nomi,2))","v":""},null,"",null,null,null,null,null,null,null,null,null,null,null,null,null,null,null,null,null,null,null,null,null,null,null,null,null,null,null,null,null,null,null,null,null,null,null,null,null,null,null,null,null,null,null,null,null,null,null,null,null,null,null,null,null,null,null,null,null,null,null,null,null,null,null,null,null,null,0,""]
[null,null,null,null,null,null,null,null,null,null,null,null,null,null,null,null,null,null,null,null,null,null,null,null,null,null,null,null,null,null,null,null,null,null,null,null,null,null,null,null,null,null,null,null,null,null,null,null,null,null,null,null,null,null,null,null,null,null,null,null,null,null,null,null,null,null,null,null,null,null,null,null,null,null,null,null,null,{"$f":"J223","v":7},{"$f":"H223","v":2}]
[null,null,null,null,null,null,null,null,null,null,null,null,null,null,null,null,null,null,null,null,null,null,null,null,null,null,null,null,null,null,null,null,null,null,null,null,null,null,null,null,null,null,null,null,null,null,null,null,null,null,null,null,null,null,null,null,null,null,null,null,null,null,null,null,null,null,null,null,null,null,null,null,null,null,null,null,null,6,2]
[null,null,null,null,null,null,null,null,null,null,null,null,null,null,null,null,null,null,null,null,null,null,null,null,null,null,null,null,null,null,null,null,null,null,null,null,null,null,null,null,null,null,null,null,null,null,null,null,null,null,null,null,null,null,null,null,null,null,null,null,null,null,null,null,null,null,null,null,null,null,null,null,null,null,null,null,null,2,2]
[null,null,null,null,null,null,null,null,null,null,null,null,null,null,null,null,null,null,null,null,null,null,null,null,null,null,null,null,null,null,null,null,null,null,null,null,null,null,null,null,null,null,null,null,null,null,null,null,null,null,null,null,null,null,null,null,null,null,null,null,null,null,null,null,null,null,null,null,null,null,null,null,null,null,null,null,null,0,""]
[null,null,null,null,null,null,null,null,null,null,null,null,null,null,null,null,null,null,null,null,null,null,null,null,null,null,null,null,null,null,null,null,null,null,null,null,null,null,null,null,null,null,null,null,null,null,null,null,null,null,null,null,null,null,null,null,null,null,null,null,null,null,null,null,null,null,null,null,null,null,null,null,null,null,null,null,null,0,""]
[null,null,null,null,null,null,null,null,null,null,null,null,null,null,null,null,null,null,null,null,null,null,null,null,null,null,null,null,null,null,null,null,null,null,null,null,null,null,null,null,null,null,null,null,null,null,null,null,null,null,null,null,null,null,null,null,null,null,null,null,null,null,null,null,null,null,null,null,null,null,null,null,null,null,null,null,null,0,""]
[null,null,null,null,null,null,null,null,null,null,null,null,null,null,null,null,null,null,null,null,null,null,null,null,null,null,null,null,null,null,null,null,null,null,null,null,null,null,null,null,null,null,null,null,null,null,null,null,null,null,null,null,null,null,null,null,null,null,null,null,null,null,null,null,null,null,null,null,null,null,null,null,null,null,null,null,null,0,""]
[null,null,null,null,null,null,null,null,null,null,null,null,null,null,null,null,null,null,null,null,null,null,null,null,null,null,null,null,null,null,null,null,null,null,null,null,null,null,null,null,null,null,null,null,null,null,null,null,null,null,null,null,null,null,null,null,null,null,null,null,null,null,null,null,null,null,null,null,null,null,null,null,null,null,null,null,null,0,""]
[]
[]
[]
[]
[]
[]
[]
[]
[]
[]
[{"$f":"$A$1","v":"2019-07-06"},null,"Mano  #    10",null,null,null,"Dichiarante   ",null,null,"E"]
["N/S (v)",null,"Contratto","Gioc. da","Att.","Punti NS","NS","EO","E/O (v)",null,"Rank NS"]
[6,{"$f":"IF(A251=\"\",\"\",VLOOKUP(A251,nomi,2))","v":"ant-din"},"3SA-1","N","P10",-100,{"$f":"IF(A251=\"\",\"\",IF(F251=\"\",COUNT(J$251:J$258)-1,2*(COUNT(J$251:J$258)-K251)-COUNTIF(K$251:K$258,K251)+1))","v":2},{"$f":"IF(J251=\"\",\"\",2*(COUNT(J$251:J$258)-1)-G251)","v":2},{"$f":"IF(J251=\"\",\"\",VLOOKUP(J251,nomi,2))","v":"man-rob"},3,{"$f":"IF(F251=\"\",\"\",RANK(F251,F$251:F$258))","v":2},null,null,null,null,null,null,null,null,null,null,null,null,null,null,null,null,null,null,null,null,null,null,null,null,null,null,null,null,null,null,null,null,null,null,null,null,null,null,null,null,null,null,null,null,null,null,null,null,null,null,null,null,null,null,null,null,null,null,null,null,null,null,null,null,null,null,{"$f":"A251","v":6},{"$f":"G251","v":2}]
[2,"ele-ste","5F-2","S","P9",-200,{"$f":"IF(A252=\"\",\"\",IF(F252=\"\",COUNT(J$251:J$258)-1,2*(COUNT(J$251:J$258)-K252)-COUNTIF(K$251:K$258,K252)+1))","v":0},{"$f":"IF(J252=\"\",\"\",2*(COUNT(J$251:J$258)-1)-G252)","v":4},"ste-mas",1,{"$f":"IF(F252=\"\",\"\",RANK(F252,F$251:F$258))","v":3},null,null,null,null,null,null,null,null,null,null,null,null,null,null,null,null,null,null,null,null,null,null,null,null,null,null,null,null,null,null,null,null,null,null,null,null,null,null,null,null,null,null,null,null,null,null,null,null,null,null,null,null,null,null,null,null,null,null,null,null,null,null,null,null,null,null,{"$f":"A252","v":2},{"$f":"G252","v":0}]
[5,"ren-san","2SA","N","PA",120,4,0,"bar-eli",7,1,null,null,null,null,null,null,null,null,null,null,null,null,null,null,null,null,null,null,null,null,null,null,null,null,null,null,null,null,null,null,null,null,null,null,null,null,null,null,null,null,null,null,null,null,null,null,null,null,null,null,null,null,null,null,null,null,null,null,null,null,null,null,null,null,null,null,5,4]
[4,"tat-jul",null,null,null,null,2,"","",null,"",null,null,null,null,null,null,null,null,null,null,null,null,null,null,null,null,null,null,null,null,null,null,null,null,null,null,null,null,null,null,null,null,null,null,null,null,null,null,null,null,null,null,null,null,null,null,null,null,null,null,null,null,null,null,null,null,null,null,null,null,null,null,null,null,null,null,4,2]
[null,"",null,null,null,null,"","","",null,"",null,null,null,null,null,null,null,null,null,null,null,null,null,null,null,null,null,null,null,null,null,null,null,null,null,null,null,null,null,null,null,null,null,null,null,null,null,null,null,null,null,null,null,null,null,null,null,null,null,null,null,null,null,null,null,null,null,null,null,null,null,null,null,null,null,null,0,""]
[null,"",null,null,null,null,"","","",null,"",null,null,null,null,null,null,null,null,null,null,null,null,null,null,null,null,null,null,null,null,null,null,null,null,null,null,null,null,null,null,null,null,null,null,null,null,null,null,null,null,null,null,null,null,null,null,null,null,null,null,null,null,null,null,null,null,null,null,null,null,null,null,null,null,null,null,0,""]
[null,"",null,null,null,null,"","","",null,"",null,null,null,null,null,null,null,null,null,null,null,null,null,null,null,null,null,null,null,null,null,null,null,null,null,null,null,null,null,null,null,null,null,null,null,null,null,null,null,null,null,null,null,null,null,null,null,null,null,null,null,null,null,null,null,null,null,null,null,null,null,null,null,null,null,null,0,""]
[null,"",null,null,null,null,"","",{"$f":"IF(J258=\"\",\"\",VLOOKUP(J258,nomi,2))","v":""},null,"",null,null,null,null,null,null,null,null,null,null,null,null,null,null,null,null,null,null,null,null,null,null,null,null,null,null,null,null,null,null,null,null,null,null,null,null,null,null,null,null,null,null,null,null,null,null,null,null,null,null,null,null,null,null,null,null,null,null,null,null,null,null,null,null,null,null,0,""]
[null,null,null,null,null,null,null,null,null,null,null,null,null,null,null,null,null,null,null,null,null,null,null,null,null,null,null,null,null,null,null,null,null,null,null,null,null,null,null,null,null,null,null,null,null,null,null,null,null,null,null,null,null,null,null,null,null,null,null,null,null,null,null,null,null,null,null,null,null,null,null,null,null,null,null,null,null,{"$f":"J251","v":3},{"$f":"H251","v":2}]
[null,null,null,null,null,null,null,null,null,null,null,null,null,null,null,null,null,null,null,null,null,null,null,null,null,null,null,null,null,null,null,null,null,null,null,null,null,null,null,null,null,null,null,null,null,null,null,null,null,null,null,null,null,null,null,null,null,null,null,null,null,null,null,null,null,null,null,null,null,null,null,null,null,null,null,null,null,1,4]
[null,null,null,null,null,null,null,null,null,null,null,null,null,null,null,null,null,null,null,null,null,null,null,null,null,null,null,null,null,null,null,null,null,null,null,null,null,null,null,null,null,null,null,null,null,null,null,null,null,null,null,null,null,null,null,null,null,null,null,null,null,null,null,null,null,null,null,null,null,null,null,null,null,null,null,null,null,7,0]
[null,null,null,null,null,null,null,null,null,null,null,null,null,null,null,null,null,null,null,null,null,null,null,null,null,null,null,null,null,null,null,null,null,null,null,null,null,null,null,null,null,null,null,null,null,null,null,null,null,null,null,null,null,null,null,null,null,null,null,null,null,null,null,null,null,null,null,null,null,null,null,null,null,null,null,null,null,0,""]
[null,null,null,null,null,null,null,null,null,null,null,null,null,null,null,null,null,null,null,null,null,null,null,null,null,null,null,null,null,null,null,null,null,null,null,null,null,null,null,null,null,null,null,null,null,null,null,null,null,null,null,null,null,null,null,null,null,null,null,null,null,null,null,null,null,null,null,null,null,null,null,null,null,null,null,null,null,0,""]
[null,null,null,null,null,null,null,null,null,null,null,null,null,null,null,null,null,null,null,null,null,null,null,null,null,null,null,null,null,null,null,null,null,null,null,null,null,null,null,null,null,null,null,null,null,null,null,null,null,null,null,null,null,null,null,null,null,null,null,null,null,null,null,null,null,null,null,null,null,null,null,null,null,null,null,null,null,0,""]
[null,null,null,null,null,null,null,null,null,null,null,null,null,null,null,null,null,null,null,null,null,null,null,null,null,null,null,null,null,null,null,null,null,null,null,null,null,null,null,null,null,null,null,null,null,null,null,null,null,null,null,null,null,null,null,null,null,null,null,null,null,null,null,null,null,null,null,null,null,null,null,null,null,null,null,null,null,0,""]
[null,null,null,null,null,null,null,null,null,null,null,null,null,null,null,null,null,null,null,null,null,null,null,null,null,null,null,null,null,null,null,null,null,null,null,null,null,null,null,null,null,null,null,null,null,null,null,null,null,null,null,null,null,null,null,null,null,null,null,null,null,null,null,null,null,null,null,null,null,null,null,null,null,null,null,null,null,0,""]
[]
[]
[]
[]
[]
[]
[]
[]
[]
[{"$f":"$A$1","v":"2019-07-06"},null,"Mano  #    11",null,null,null,"Dichiarante   ",null,null,"S"]
["N/S",null,"Contratto","Gioc. da","Att.","Punti NS","NS","EO","E/O",null,"Rank NS"]
[6,{"$f":"IF(A278=\"\",\"\",VLOOKUP(A278,nomi,2))","v":"ant-din"},"2C+1","S","PA",140,{"$f":"IF(A278=\"\",\"\",IF(F278=\"\",COUNT(J$278:J$285)-1,2*(COUNT(J$278:J$285)-K278)-COUNTIF(K$278:K$285,K278)+1))","v":4},{"$f":"IF(J278=\"\",\"\",2*(COUNT(J$278:J$285)-1)-G278)","v":0},{"$f":"IF(J278=\"\",\"\",VLOOKUP(J278,nomi,2))","v":"man-rob"},3,{"$f":"IF(F278=\"\",\"\",RANK(F278,F$278:F$285))","v":1},null,null,null,null,null,null,null,null,null,null,null,null,null,null,null,null,null,null,null,null,null,null,null,null,null,null,null,null,null,null,null,null,null,null,null,null,null,null,null,null,null,null,null,null,null,null,null,null,null,null,null,null,null,null,null,null,null,null,null,null,null,null,null,null,null,null,{"$f":"A278","v":6},{"$f":"G278","v":4}]
[2,"ele-ste","2C-1","S","Q8",-50,{"$f":"IF(A279=\"\",\"\",IF(F279=\"\",COUNT(J$278:J$285)-1,2*(COUNT(J$278:J$285)-K279)-COUNTIF(K$278:K$285,K279)+1))","v":0},{"$f":"IF(J279=\"\",\"\",2*(COUNT(J$278:J$285)-1)-G279)","v":4},"ste-mas",1,{"$f":"IF(F279=\"\",\"\",RANK(F279,F$278:F$285))","v":3},null,null,null,null,null,null,null,null,null,null,null,null,null,null,null,null,null,null,null,null,null,null,null,null,null,null,null,null,null,null,null,null,null,null,null,null,null,null,null,null,null,null,null,null,null,null,null,null,null,null,null,null,null,null,null,null,null,null,null,null,null,null,null,null,null,null,{"$f":"A279","v":2},{"$f":"G279","v":0}]
[5,"ren-san","3Q-1","E","P8",50,2,2,"bar-eli",7,2,null,null,null,null,null,null,null,null,null,null,null,null,null,null,null,null,null,null,null,null,null,null,null,null,null,null,null,null,null,null,null,null,null,null,null,null,null,null,null,null,null,null,null,null,null,null,null,null,null,null,null,null,null,null,null,null,null,null,null,null,null,null,null,null,null,null,5,2]
[4,"tat-jul",null,null,null,null,2,"","",null,"",null,null,null,null,null,null,null,null,null,null,null,null,null,null,null,null,null,null,null,null,null,null,null,null,null,null,null,null,null,null,null,null,null,null,null,null,null,null,null,null,null,null,null,null,null,null,null,null,null,null,null,null,null,null,null,null,null,null,null,null,null,null,null,null,null,null,4,2]
[null,"",null,null,null,null,"","","",null,"",null,null,null,null,null,null,null,null,null,null,null,null,null,null,null,null,null,null,null,null,null,null,null,null,null,null,null,null,null,null,null,null,null,null,null,null,null,null,null,null,null,null,null,null,null,null,null,null,null,null,null,null,null,null,null,null,null,null,null,null,null,null,null,null,null,null,0,""]
[null,"",null,null,null,null,"","","",null,"",null,null,null,null,null,null,null,null,null,null,null,null,null,null,null,null,null,null,null,null,null,null,null,null,null,null,null,null,null,null,null,null,null,null,null,null,null,null,null,null,null,null,null,null,null,null,null,null,null,null,null,null,null,null,null,null,null,null,null,null,null,null,null,null,null,null,0,""]
[null,"",null,null,null,null,"","","",null,"",null,null,null,null,null,null,null,null,null,null,null,null,null,null,null,null,null,null,null,null,null,null,null,null,null,null,null,null,null,null,null,null,null,null,null,null,null,null,null,null,null,null,null,null,null,null,null,null,null,null,null,null,null,null,null,null,null,null,null,null,null,null,null,null,null,null,0,""]
[null,"",null,null,null,null,"","",{"$f":"IF(J285=\"\",\"\",VLOOKUP(J285,nomi,2))","v":""},null,"",null,null,null,null,null,null,null,null,null,null,null,null,null,null,null,null,null,null,null,null,null,null,null,null,null,null,null,null,null,null,null,null,null,null,null,null,null,null,null,null,null,null,null,null,null,null,null,null,null,null,null,null,null,null,null,null,null,null,null,null,null,null,null,null,null,null,0,""]
[null,null,null,null,null,null,null,null,null,null,"",null,null,null,null,null,null,null,null,null,null,null,null,null,null,null,null,null,null,null,null,null,null,null,null,null,null,null,null,null,null,null,null,null,null,null,null,null,null,null,null,null,null,null,null,null,null,null,null,null,null,null,null,null,null,null,null,null,null,null,null,null,null,null,null,null,null,{"$f":"J278","v":3},{"$f":"H278","v":0}]
[null,null,null,null,null,null,null,null,null,null,null,null,null,null,null,null,null,null,null,null,null,null,null,null,null,null,null,null,null,null,null,null,null,null,null,null,null,null,null,null,null,null,null,null,null,null,null,null,null,null,null,null,null,null,null,null,null,null,null,null,null,null,null,null,null,null,null,null,null,null,null,null,null,null,null,null,null,1,4]
[null,null,null,null,null,null,null,null,null,null,null,null,null,null,null,null,null,null,null,null,null,null,null,null,null,null,null,null,null,null,null,null,null,null,null,null,null,null,null,null,null,null,null,null,null,null,null,null,null,null,null,null,null,null,null,null,null,null,null,null,null,null,null,null,null,null,null,null,null,null,null,null,null,null,null,null,null,7,2]
[null,null,null,null,null,null,null,null,null,null,null,null,null,null,null,null,null,null,null,null,null,null,null,null,null,null,null,null,null,null,null,null,null,null,null,null,null,null,null,null,null,null,null,null,null,null,null,null,null,null,null,null,null,null,null,null,null,null,null,null,null,null,null,null,null,null,null,null,null,null,null,null,null,null,null,null,null,0,""]
[null,null,null,null,null,null,null,null,null,null,null,null,null,null,null,null,null,null,null,null,null,null,null,null,null,null,null,null,null,null,null,null,null,null,null,null,null,null,null,null,null,null,null,null,null,null,null,null,null,null,null,null,null,null,null,null,null,null,null,null,null,null,null,null,null,null,null,null,null,null,null,null,null,null,null,null,null,0,""]
[null,null,null,null,null,null,null,null,null,null,null,null,null,null,null,null,null,null,null,null,null,null,null,null,null,null,null,null,null,null,null,null,null,null,null,null,null,null,null,null,null,null,null,null,null,null,null,null,null,null,null,null,null,null,null,null,null,null,null,null,null,null,null,null,null,null,null,null,null,null,null,null,null,null,null,null,null,0,""]
[null,null,null,null,null,null,null,null,null,null,null,null,null,null,null,null,null,null,null,null,null,null,null,null,null,null,null,null,null,null,null,null,null,null,null,null,null,null,null,null,null,null,null,null,null,null,null,null,null,null,null,null,null,null,null,null,null,null,null,null,null,null,null,null,null,null,null,null,null,null,null,null,null,null,null,null,null,0,""]
[null,null,null,null,null,null,null,null,null,null,null,null,null,null,null,null,null,null,null,null,null,null,null,null,null,null,null,null,null,null,null,null,null,null,null,null,null,null,null,null,null,null,null,null,null,null,null,null,null,null,null,null,null,null,null,null,null,null,null,null,null,null,null,null,null,null,null,null,null,null,null,null,null,null,null,null,null,0,""]
[]
[]
[]
[]
[]
[]
[]
[]
[]
[]
[{"$f":"$A$1","v":"2019-07-06"},null,"Mano  #    12",null,null,null,"Dichiarante   ",null,null,"O"]
["N/S (v)",null,"Contratto","Gioc. da","Att.","Punti NS","NS","EO","E/O",null,"Rank NS"]
[6,{"$f":"IF(A306=\"\",\"\",VLOOKUP(A306,nomi,2))","v":"ant-din"},"3P-1","E","CK",50,{"$f":"IF(A306=\"\",\"\",IF(F306=\"\",COUNT(J$306:J$313)-1,2*(COUNT(J$306:J$313)-K306)-COUNTIF(K$306:K$313,K306)+1))","v":2},{"$f":"IF(J306=\"\",\"\",2*(COUNT(J$306:J$313)-1)-G306)","v":2},{"$f":"IF(J306=\"\",\"\",VLOOKUP(J306,nomi,2))","v":"man-rob"},3,{"$f":"IF(F306=\"\",\"\",RANK(F306,F$306:F$313))","v":2},null,null,null,null,null,null,null,null,null,null,null,null,null,null,null,null,null,null,null,null,null,null,null,null,null,null,null,null,null,null,null,null,null,null,null,null,null,null,null,null,null,null,null,null,null,null,null,null,null,null,null,null,null,null,null,null,null,null,null,null,null,null,null,null,null,null,{"$f":"A306","v":6},{"$f":"G306","v":2}]
[2,"ele-ste","3P-2","E","CA",100,{"$f":"IF(A307=\"\",\"\",IF(F307=\"\",COUNT(J$306:J$313)-1,2*(COUNT(J$306:J$313)-K307)-COUNTIF(K$306:K$313,K307)+1))","v":4},{"$f":"IF(J307=\"\",\"\",2*(COUNT(J$306:J$313)-1)-G307)","v":0},"ste-mas",1,{"$f":"IF(F307=\"\",\"\",RANK(F307,F$306:F$313))","v":1},null,null,null,null,null,null,null,null,null,null,null,null,null,null,null,null,null,null,null,null,null,null,null,null,null,null,null,null,null,null,null,null,null,null,null,null,null,null,null,null,null,null,null,null,null,null,null,null,null,null,null,null,null,null,null,null,null,null,null,null,null,null,null,null,null,null,{"$f":"A307","v":2},{"$f":"G307","v":4}]
[5,"ren-san","TUTTI PASSANO",null,null,0,0,4,"bar-eli",7,3,null,null,null,null,null,null,null,null,null,null,null,null,null,null,null,null,null,null,null,null,null,null,null,null,null,null,null,null,null,null,null,null,null,null,null,null,null,null,null,null,null,null,null,null,null,null,null,null,null,null,null,null,null,null,null,null,null,null,null,null,null,null,null,null,null,null,5,0]
[4,"tat-jul",null,null,null,null,2,"","",null,"",null,null,null,null,null,null,null,null,null,null,null,null,null,null,null,null,null,null,null,null,null,null,null,null,null,null,null,null,null,null,null,null,null,null,null,null,null,null,null,null,null,null,null,null,null,null,null,null,null,null,null,null,null,null,null,null,null,null,null,null,null,null,null,null,null,null,4,2]
[null,"",null,null,null,null,"","","",null,"",null,null,null,null,null,null,null,null,null,null,null,null,null,null,null,null,null,null,null,null,null,null,null,null,null,null,null,null,null,null,null,null,null,null,null,null,null,null,null,null,null,null,null,null,null,null,null,null,null,null,null,null,null,null,null,null,null,null,null,null,null,null,null,null,null,null,0,""]
[null,"",null,null,null,null,"","","",null,"",null,null,null,null,null,null,null,null,null,null,null,null,null,null,null,null,null,null,null,null,null,null,null,null,null,null,null,null,null,null,null,null,null,null,null,null,null,null,null,null,null,null,null,null,null,null,null,null,null,null,null,null,null,null,null,null,null,null,null,null,null,null,null,null,null,null,0,""]
[null,"",null,null,null,null,"","","",null,"",null,null,null,null,null,null,null,null,null,null,null,null,null,null,null,null,null,null,null,null,null,null,null,null,null,null,null,null,null,null,null,null,null,null,null,null,null,null,null,null,null,null,null,null,null,null,null,null,null,null,null,null,null,null,null,null,null,null,null,null,null,null,null,null,null,null,0,""]
[null,"",null,null,null,null,"","",{"$f":"IF(J313=\"\",\"\",VLOOKUP(J313,nomi,2))","v":""},null,"",null,null,null,null,null,null,null,null,null,null,null,null,null,null,null,null,null,null,null,null,null,null,null,null,null,null,null,null,null,null,null,null,null,null,null,null,null,null,null,null,null,null,null,null,null,null,null,null,null,null,null,null,null,null,null,null,null,null,null,null,null,null,null,null,null,null,0,""]
[null,null,null,null,null,null,null,null,null,null,null,null,null,null,null,null,null,null,null,null,null,null,null,null,null,null,null,null,null,null,null,null,null,null,null,null,null,null,null,null,null,null,null,null,null,null,null,null,null,null,null,null,null,null,null,null,null,null,null,null,null,null,null,null,null,null,null,null,null,null,null,null,null,null,null,null,null,{"$f":"J306","v":3},{"$f":"H306","v":2}]
[null,null,null,null,null,null,null,null,null,null,null,null,null,null,null,null,null,null,null,null,null,null,null,null,null,null,null,null,null,null,null,null,null,null,null,null,null,null,null,null,null,null,null,null,null,null,null,null,null,null,null,null,null,null,null,null,null,null,null,null,null,null,null,null,null,null,null,null,null,null,null,null,null,null,null,null,null,1,0]
[null,null,null,null,null,null,null,null,null,null,null,null,null,null,null,null,null,null,null,null,null,null,null,null,null,null,null,null,null,null,null,null,null,null,null,null,null,null,null,null,null,null,null,null,null,null,null,null,null,null,null,null,null,null,null,null,null,null,null,null,null,null,null,null,null,null,null,null,null,null,null,null,null,null,null,null,null,7,4]
[null,null,null,null,null,null,null,null,null,null,null,null,null,null,null,null,null,null,null,null,null,null,null,null,null,null,null,null,null,null,null,null,null,null,null,null,null,null,null,null,null,null,null,null,null,null,null,null,null,null,null,null,null,null,null,null,null,null,null,null,null,null,null,null,null,null,null,null,null,null,null,null,null,null,null,null,null,0,""]
[null,null,null,null,null,null,null,null,null,null,null,null,null,null,null,null,null,null,null,null,null,null,null,null,null,null,null,null,null,null,null,null,null,null,null,null,null,null,null,null,null,null,null,null,null,null,null,null,null,null,null,null,null,null,null,null,null,null,null,null,null,null,null,null,null,null,null,null,null,null,null,null,null,null,null,null,null,0,""]
[null,null,null,null,null,null,null,null,null,null,null,null,null,null,null,null,null,null,null,null,null,null,null,null,null,null,null,null,null,null,null,null,null,null,null,null,null,null,null,null,null,null,null,null,null,null,null,null,null,null,null,null,null,null,null,null,null,null,null,null,null,null,null,null,null,null,null,null,null,null,null,null,null,null,null,null,null,0,""]
[null,null,null,null,null,null,null,null,null,null,null,null,null,null,null,null,null,null,null,null,null,null,null,null,null,null,null,null,null,null,null,null,null,null,null,null,null,null,null,null,null,null,null,null,null,null,null,null,null,null,null,null,null,null,null,null,null,null,null,null,null,null,null,null,null,null,null,null,null,null,null,null,null,null,null,null,null,0,""]
[null,null,null,null,null,null,null,null,null,null,null,null,null,null,null,null,null,null,null,null,null,null,null,null,null,null,null,null,null,null,null,null,null,null,null,null,null,null,null,null,null,null,null,null,null,null,null,null,null,null,null,null,null,null,null,null,null,null,null,null,null,null,null,null,null,null,null,null,null,null,null,null,null,null,null,null,null,0,""]
[]
[]
[]
[]
[]
[]
[]
[]
[]
[{"$f":"$A$1","v":"2019-07-06"},null,"Mano  #    13",null,null,null,"Dichiarante   ",null,null,"N"]
["N/S (v)",null,"Contratto","Gioc. da","Att.","Punti NS","NS","EO","E/O (v)",null,"Rank NS"]
[7,{"$f":"IF(A333=\"\",\"\",VLOOKUP(A333,nomi,2))","v":"bar-eli"},"2SA","N","CK",120,{"$f":"IF(A333=\"\",\"\",IF(F333=\"\",COUNT(J$333:J$340)-1,2*(COUNT(J$333:J$340)-K333)-COUNTIF(K$333:K$340,K333)+1))","v":2},{"$f":"IF(J333=\"\",\"\",2*(COUNT(J$333:J$340)-1)-G333)","v":2},{"$f":"IF(J333=\"\",\"\",VLOOKUP(J333,nomi,2))","v":"tat-jul"},4,{"$f":"IF(F333=\"\",\"\",RANK(F333,F$333:F$340))","v":2},null,null,null,null,null,null,null,null,null,null,null,null,null,null,null,null,null,null,null,null,null,null,null,null,null,null,null,null,null,null,null,null,null,null,null,null,null,null,null,null,null,null,null,null,null,null,null,null,null,null,null,null,null,null,null,null,null,null,null,null,null,null,null,null,null,null,{"$f":"A333","v":7},{"$f":"G333","v":2}]
[3,"man-rob","2P+2","N","CK",170,{"$f":"IF(A334=\"\",\"\",IF(F334=\"\",COUNT(J$333:J$340)-1,2*(COUNT(J$333:J$340)-K334)-COUNTIF(K$333:K$340,K334)+1))","v":4},{"$f":"IF(J334=\"\",\"\",2*(COUNT(J$333:J$340)-1)-G334)","v":0},"ele-ste",2,{"$f":"IF(F334=\"\",\"\",RANK(F334,F$333:F$340))","v":1},null,null,null,null,null,null,null,null,null,null,null,null,null,null,null,null,null,null,null,null,null,null,null,null,null,null,null,null,null,null,null,null,null,null,null,null,null,null,null,null,null,null,null,null,null,null,null,null,null,null,null,null,null,null,null,null,null,null,null,null,null,null,null,null,null,null,{"$f":"A334","v":3},{"$f":"G334","v":4}]
[6,"ant-din","2P-1","N","P2",-100,0,4,"ste-mas",1,3,null,null,null,null,null,null,null,null,null,null,null,null,null,null,null,null,null,null,null,null,null,null,null,null,null,null,null,null,null,null,null,null,null,null,null,null,null,null,null,null,null,null,null,null,null,null,null,null,null,null,null,null,null,null,null,null,null,null,null,null,null,null,null,null,null,null,6,0]
[5,"ren-san",null,null,null,null,2,"","",null,"",null,null,null,null,null,null,null,null,null,null,null,null,null,null,null,null,null,null,null,null,null,null,null,null,null,null,null,null,null,null,null,null,null,null,null,null,null,null,null,null,null,null,null,null,null,null,null,null,null,null,null,null,null,null,null,null,null,null,null,null,null,null,null,null,null,null,5,2]
[null,"",null,null,null,null,"","","",null,"",null,null,null,null,null,null,null,null,null,null,null,null,null,null,null,null,null,null,null,null,null,null,null,null,null,null,null,null,null,null,null,null,null,null,null,null,null,null,null,null,null,null,null,null,null,null,null,null,null,null,null,null,null,null,null,null,null,null,null,null,null,null,null,null,null,null,0,""]
[null,"",null,null,null,null,"","","",null,"",null,null,null,null,null,null,null,null,null,null,null,null,null,null,null,null,null,null,null,null,null,null,null,null,null,null,null,null,null,null,null,null,null,null,null,null,null,null,null,null,null,null,null,null,null,null,null,null,null,null,null,null,null,null,null,null,null,null,null,null,null,null,null,null,null,null,0,""]
[null,"",null,null,null,null,"","","",null,"",null,null,null,null,null,null,null,null,null,null,null,null,null,null,null,null,null,null,null,null,null,null,null,null,null,null,null,null,null,null,null,null,null,null,null,null,null,null,null,null,null,null,null,null,null,null,null,null,null,null,null,null,null,null,null,null,null,null,null,null,null,null,null,null,null,null,0,""]
[null,"",null,null,null,null,"","",{"$f":"IF(J340=\"\",\"\",VLOOKUP(J340,nomi,2))","v":""},null,"",null,null,null,null,null,null,null,null,null,null,null,null,null,null,null,null,null,null,null,null,null,null,null,null,null,null,null,null,null,null,null,null,null,null,null,null,null,null,null,null,null,null,null,null,null,null,null,null,null,null,null,null,null,null,null,null,null,null,null,null,null,null,null,null,null,null,0,""]
[null,null,null,null,null,null,null,null,null,null,null,null,null,null,null,null,null,null,null,null,null,null,null,null,null,null,null,null,null,null,null,null,null,null,null,null,null,null,null,null,null,null,null,null,null,null,null,null,null,null,null,null,null,null,null,null,null,null,null,null,null,null,null,null,null,null,null,null,null,null,null,null,null,null,null,null,null,{"$f":"J333","v":4},{"$f":"H333","v":2}]
[null,null,null,null,null,null,null,null,null,null,null,null,null,null,null,null,null,null,null,null,null,null,null,null,null,null,null,null,null,null,null,null,null,null,null,null,null,null,null,null,null,null,null,null,null,null,null,null,null,null,null,null,null,null,null,null,null,null,null,null,null,null,null,null,null,null,null,null,null,null,null,null,null,null,null,null,null,2,0]
[null,null,null,null,null,null,null,null,null,null,null,null,null,null,null,null,null,null,null,null,null,null,null,null,null,null,null,null,null,null,null,null,null,null,null,null,null,null,null,null,null,null,null,null,null,null,null,null,null,null,null,null,null,null,null,null,null,null,null,null,null,null,null,null,null,null,null,null,null,null,null,null,null,null,null,null,null,1,4]
[null,null,null,null,null,null,null,null,null,null,null,null,null,null,null,null,null,null,null,null,null,null,null,null,null,null,null,null,null,null,null,null,null,null,null,null,null,null,null,null,null,null,null,null,null,null,null,null,null,null,null,null,null,null,null,null,null,null,null,null,null,null,null,null,null,null,null,null,null,null,null,null,null,null,null,null,null,0,""]
[null,null,null,null,null,null,null,null,null,null,null,null,null,null,null,null,null,null,null,null,null,null,null,null,null,null,null,null,null,null,null,null,null,null,null,null,null,null,null,null,null,null,null,null,null,null,null,null,null,null,null,null,null,null,null,null,null,null,null,null,null,null,null,null,null,null,null,null,null,null,null,null,null,null,null,null,null,0,""]
[null,null,null,null,null,null,null,null,null,null,null,null,null,null,null,null,null,null,null,null,null,null,null,null,null,null,null,null,null,null,null,null,null,null,null,null,null,null,null,null,null,null,null,null,null,null,null,null,null,null,null,null,null,null,null,null,null,null,null,null,null,null,null,null,null,null,null,null,null,null,null,null,null,null,null,null,null,0,""]
[null,null,null,null,null,null,null,null,null,null,null,null,null,null,null,null,null,null,null,null,null,null,null,null,null,null,null,null,null,null,null,null,null,null,null,null,null,null,null,null,null,null,null,null,null,null,null,null,null,null,null,null,null,null,null,null,null,null,null,null,null,null,null,null,null,null,null,null,null,null,null,null,null,null,null,null,null,0,""]
[null,null,null,null,null,null,null,null,null,null,null,null,null,null,null,null,null,null,null,null,null,null,null,null,null,null,null,null,null,null,null,null,null,null,null,null,null,null,null,null,null,null,null,null,null,null,null,null,null,null,null,null,null,null,null,null,null,null,null,null,null,null,null,null,null,null,null,null,null,null,null,null,null,null,null,null,null,0,""]
[]
[]
[]
[]
[]
[]
[]
[]
[]
[]
[{"$f":"$A$1","v":"2019-07-06"},null,"Mano  #    14",null,null,null,"Dichiarante   ",null,null,"E"]
["N/S",null,"Contratto","Gioc. da","Att.","Punti NS","NS","EO","E/O",null,"Rank NS"]
[7,{"$f":"IF(A361=\"\",\"\",VLOOKUP(A361,nomi,2))","v":"bar-eli"},"4P-1","O","CD",50,{"$f":"IF(A361=\"\",\"\",IF(F361=\"\",COUNT(J$361:J$368)-1,2*(COUNT(J$361:J$368)-K361)-COUNTIF(K$361:K$368,K361)+1))","v":4},{"$f":"IF(J361=\"\",\"\",2*(COUNT(J$361:J$368)-1)-G361)","v":0},{"$f":"IF(J361=\"\",\"\",VLOOKUP(J361,nomi,2))","v":"tat-jul"},4,{"$f":"IF(F361=\"\",\"\",RANK(F361,F$361:F$368))","v":1},null,null,null,null,null,null,null,null,null,null,null,null,null,null,null,null,null,null,null,null,null,null,null,null,null,null,null,null,null,null,null,null,null,null,null,null,null,null,null,null,null,null,null,null,null,null,null,null,null,null,null,null,null,null,null,null,null,null,null,null,null,null,null,null,null,null,{"$f":"A361","v":7},{"$f":"G361","v":4}]
[3,"man-rob","3P","O","CD",-140,{"$f":"IF(A362=\"\",\"\",IF(F362=\"\",COUNT(J$361:J$368)-1,2*(COUNT(J$361:J$368)-K362)-COUNTIF(K$361:K$368,K362)+1))","v":1},{"$f":"IF(J362=\"\",\"\",2*(COUNT(J$361:J$368)-1)-G362)","v":3},"ele-ste",2,{"$f":"IF(F362=\"\",\"\",RANK(F362,F$361:F$368))","v":2},null,null,null,null,null,null,null,null,null,null,null,null,null,null,null,null,null,null,null,null,null,null,null,null,null,null,null,null,null,null,null,null,null,null,null,null,null,null,null,null,null,null,null,null,null,null,null,null,null,null,null,null,null,null,null,null,null,null,null,null,null,null,null,null,null,null,{"$f":"A362","v":3},{"$f":"G362","v":1}]
[6,"ant-din","3P","O","CD",-140,1,3,"ste-mas",1,2,null,null,null,null,null,null,null,null,null,null,null,null,null,null,null,null,null,null,null,null,null,null,null,null,null,null,null,null,null,null,null,null,null,null,null,null,null,null,null,null,null,null,null,null,null,null,null,null,null,null,null,null,null,null,null,null,null,null,null,null,null,null,null,null,null,null,6,1]
[5,"ren-san",null,null,null,null,2,"","",null,"",null,null,null,null,null,null,null,null,null,null,null,null,null,null,null,null,null,null,null,null,null,null,null,null,null,null,null,null,null,null,null,null,null,null,null,null,null,null,null,null,null,null,null,null,null,null,null,null,null,null,null,null,null,null,null,null,null,null,null,null,null,null,null,null,null,null,5,2]
[null,"",null,null,null,null,"","","",null,"",null,null,null,null,null,null,null,null,null,null,null,null,null,null,null,null,null,null,null,null,null,null,null,null,null,null,null,null,null,null,null,null,null,null,null,null,null,null,null,null,null,null,null,null,null,null,null,null,null,null,null,null,null,null,null,null,null,null,null,null,null,null,null,null,null,null,0,""]
[null,"",null,null,null,null,"","","",null,"",null,null,null,null,null,null,null,null,null,null,null,null,null,null,null,null,null,null,null,null,null,null,null,null,null,null,null,null,null,null,null,null,null,null,null,null,null,null,null,null,null,null,null,null,null,null,null,null,null,null,null,null,null,null,null,null,null,null,null,null,null,null,null,null,null,null,0,""]
[null,"",null,null,null,null,"","","",null,"",null,null,null,null,null,null,null,null,null,null,null,null,null,null,null,null,null,null,null,null,null,null,null,null,null,null,null,null,null,null,null,null,null,null,null,null,null,null,null,null,null,null,null,null,null,null,null,null,null,null,null,null,null,null,null,null,null,null,null,null,null,null,null,null,null,null,0,""]
[null,"",null,null,null,null,"","",{"$f":"IF(J368=\"\",\"\",VLOOKUP(J368,nomi,2))","v":""},null,"",null,null,null,null,null,null,null,null,null,null,null,null,null,null,null,null,null,null,null,null,null,null,null,null,null,null,null,null,null,null,null,null,null,null,null,null,null,null,null,null,null,null,null,null,null,null,null,null,null,null,null,null,null,null,null,null,null,null,null,null,null,null,null,null,null,null,0,""]
[null,null,null,null,null,null,null,null,null,null,null,null,null,null,null,null,null,null,null,null,null,null,null,null,null,null,null,null,null,null,null,null,null,null,null,null,null,null,null,null,null,null,null,null,null,null,null,null,null,null,null,null,null,null,null,null,null,null,null,null,null,null,null,null,null,null,null,null,null,null,null,null,null,null,null,null,null,{"$f":"J361","v":4},{"$f":"H361","v":0}]
[null,null,null,null,null,null,null,null,null,null,null,null,null,null,null,null,null,null,null,null,null,null,null,null,null,null,null,null,null,null,null,null,null,null,null,null,null,null,null,null,null,null,null,null,null,null,null,null,null,null,null,null,null,null,null,null,null,null,null,null,null,null,null,null,null,null,null,null,null,null,null,null,null,null,null,null,null,2,3]
[null,null,null,null,null,null,null," ",null,null,null,null,null,null,null,null,null,null,null,null,null,null,null,null,null,null,null,null,null,null,null,null,null,null,null,null,null,null,null,null,null,null,null,null,null,null,null,null,null,null,null,null,null,null,null,null,null,null,null,null,null,null,null,null,null,null,null,null,null,null,null,null,null,null,null,null,null,1,3]
[null,null,null,null,null,null,null,null,null,null,null,null,null,null,null,null,null,null,null,null,null,null,null,null,null,null,null,null,null,null,null,null,null,null,null,null,null,null,null,null,null,null,null,null,null,null,null,null,null,null,null,null,null,null,null,null,null,null,null,null,null,null,null,null,null,null,null,null,null,null,null,null,null,null,null,null,null,0,""]
[null,null,null,null,null,null,null,null,null,null,null,null,null,null,null,null,null,null,null,null,null,null,null,null,null,null,null,null,null,null,null,null,null,null,null,null,null,null,null,null,null,null,null,null,null,null,null,null,null,null,null,null,null,null,null,null,null,null,null,null,null,null,null,null,null,null,null,null,null,null,null,null,null,null,null,null,null,0,""]
[null,null,null,null,null,null,null,null,null,null,null,null,null,null,null,null,null,null,null,null,null,null,null,null,null,null,null,null,null,null,null,null,null,null,null,null,null,null,null,null,null,null,null,null,null,null,null,null,null,null,null,null,null,null,null,null,null,null,null,null,null,null,null,null,null,null,null,null,null,null,null,null,null,null,null,null,null,0,""]
[null,null,null,null,null,null,null,null,null,null,null,null,null,null,null,null,null,null,null,null,null,null,null,null,null,null,null,null,null,null,null,null,null,null,null,null,null,null,null,null,null,null,null,null,null,null,null,null,null,null,null,null,null,null,null,null,null,null,null,null,null,null,null,null,null,null,null,null,null,null,null,null,null,null,null,null,null,0,""]
[null,null,null,null,null,null,null,null,null,null,null,null,null,null,null,null,null,null,null,null,null,null,null,null,null,null,null,null,null,null,null,null,null,null,null,null,null,null,null,null,null,null,null,null,null,null,null,null,null,null,null,null,null,null,null,null,null,null,null,null,null,null,null,null,null,null,null,null,null,null,null,null,null,null,null,null,null,0,""]
[]
[]
[]
[]
[]
[]
[]
[]
[]
[{"$f":"$A$1","v":"2019-07-06"},null,"Mano  #    15",null,null,null,"Dichiarante   ",null,null,"S"]
["N/S (v)",null,"Contratto","Gioc. da","Att.","Punti NS","NS","EO","E/O",null,"Rank NS"]
[7,{"$f":"IF(A388=\"\",\"\",VLOOKUP(A388,nomi,2))","v":"bar-eli"},"3SA-1","S","C8",-100,{"$f":"IF(A388=\"\",\"\",IF(F388=\"\",COUNT(J$388:J$395)-1,2*(COUNT(J$388:J$395)-K388)-COUNTIF(K$388:K$395,K388)+1))","v":3},{"$f":"IF(J388=\"\",\"\",2*(COUNT(J$388:J$395)-1)-G388)","v":1},{"$f":"IF(J388=\"\",\"\",VLOOKUP(J388,nomi,2))","v":"tat-jul"},4,{"$f":"IF(F388=\"\",\"\",RANK(F388,F$388:F$395))","v":1},null,null,null,null,null,null,null,null,null,null,null,null,null,null,null,null,null,null,null,null,null,null,null,null,null,null,null,null,null,null,null,null,null,null,null,null,null,null,null,null,null,null,null,null,null,null,null,null,null,null,null,null,null,null,null,null,null,null,null,null,null,null,null,null,null,null,{"$f":"A388","v":7},{"$f":"G388","v":3}]
[3,"man-rob","2SA-1","S","Q10",-100,{"$f":"IF(A389=\"\",\"\",IF(F389=\"\",COUNT(J$388:J$395)-1,2*(COUNT(J$388:J$395)-K389)-COUNTIF(K$388:K$395,K389)+1))","v":3},{"$f":"IF(J389=\"\",\"\",2*(COUNT(J$388:J$395)-1)-G389)","v":1},"ele-ste",2,{"$f":"IF(F389=\"\",\"\",RANK(F389,F$388:F$395))","v":1},null,null,null,null,null,null,null,null,null,null,null,null,null,null,null,null,null,null,null,null,null,null,null,null,null,null,null,null,null,null,null,null,null,null,null,null,null,null,null,null,null,null,null,null,null,null,null,null,null,null,null,null,null,null,null,null,null,null,null,null,null,null,null,null,null,null,{"$f":"A389","v":3},{"$f":"G389","v":3}]
[6,"ant-din","3SA-3","S","F5",-300,0,4,"ste-mas",1,3,null,null,null,null,null,null,null,null,null,null,null,null,null,null,null,null,null,null,null,null,null,null,null,null,null,null,null,null,null,null,null,null,null,null,null,null,null,null,null,null,null,null,null,null,null,null,null,null,null,null,null,null,null,null,null,null,null,null,null,null,null,null,null,null,null,null,6,0]
[5,"ren-san",null,null,null,null,2,"","",null,"",null,null,null,null,null,null,null,null,null,null,null,null,null,null,null,null,null,null,null,null,null,null,null,null,null,null,null,null,null,null,null,null,null,null,null,null,null,null,null,null,null,null,null,null,null,null,null,null,null,null,null,null,null,null,null,null,null,null,null,null,null,null,null,null,null,null,5,2]
[null,"",null,null,null,null,"","","",null,"",null,null,null,null,null,null,null,null,null,null,null,null,null,null,null,null,null,null,null,null,null,null,null,null,null,null,null,null,null,null,null,null,null,null,null,null,null,null,null,null,null,null,null,null,null,null,null,null,null,null,null,null,null,null,null,null,null,null,null,null,null,null,null,null,null,null,0,""]
[null,"",null,null,null,null,"","","",null,"",null,null,null,null,null,null,null,null,null,null,null,null,null,null,null,null,null,null,null,null,null,null,null,null,null,null,null,null,null,null,null,null,null,null,null,null,null,null,null,null,null,null,null,null,null,null,null,null,null,null,null,null,null,null,null,null,null,null,null,null,null,null,null,null,null,null,0,""]
[null,"",null,null,null,null,"","","",null,"",null,null,null,null,null,null,null,null,null,null,null,null,null,null,null,null,null,null,null,null,null,null,null,null,null,null,null,null,null,null,null,null,null,null,null,null,null,null,null,null,null,null,null,null,null,null,null,null,null,null,null,null,null,null,null,null,null,null,null,null,null,null,null,null,null,null,0,""]
[null,"",null,null,null,null,"","",{"$f":"IF(J395=\"\",\"\",VLOOKUP(J395,nomi,2))","v":""},null,"",null,null,null,null,null,null,null,null,null,null,null,null,null,null,null,null,null,null,null,null,null,null,null,null,null,null,null,null,null,null,null,null,null,null,null,null,null,null,null,null,null,null,null,null,null,null,null,null,null,null,null,null,null,null,null,null,null,null,null,null,null,null,null,null,null,null,0,""]
[null,null,null,null,null,null,null,null,null,null,null,null,null,null,null,null,null,null,null,null,null,null,null,null,null,null,null,null,null,null,null,null,null,null,null,null,null,null,null,null,null,null,null,null,null,null,null,null,null,null,null,null,null,null,null,null,null,null,null,null,null,null,null,null,null,null,null,null,null,null,null,null,null,null,null,null,null,{"$f":"J388","v":4},{"$f":"H388","v":1}]
[null,null,null,null,null,null,null,null,null,null,null,null,null,null,null,null,null,null,null,null,null,null,null,null,null,null,null,null,null,null,null,null,null,null,null,null,null,null,null,null,null,null,null,null,null,null,null,null,null,null,null,null,null,null,null,null,null,null,null,null,null,null,null,null,null,null,null,null,null,null,null,null,null,null,null,null,null,2,1]
[null,null,null,null,null,null,null,null,null,null,null,null,null,null,null,null,null,null,null,null,null,null,null,null,null,null,null,null,null,null,null,null,null,null,null,null,null,null,null,null,null,null,null,null,null,null,null,null,null,null,null,null,null,null,null,null,null,null,null,null,null,null,null,null,null,null,null,null,null,null,null,null,null,null,null,null,null,1,4]
[null,null,null,null,null,null,null,null,null,null,null,null,null,null,null,null,null,null,null,null,null,null,null,null,null,null,null,null,null,null,null,null,null,null,null,null,null,null,null,null,null,null,null,null,null,null,null,null,null,null,null,null,null,null,null,null,null,null,null,null,null,null,null,null,null,null,null,null,null,null,null,null,null,null,null,null,null,0,""]
[null,null,null,null,null,null,null,null,null,null,null,null,null,null,null,null,null,null,null,null,null,null,null,null,null,null,null,null,null,null,null,null,null,null,null,null,null,null,null,null,null,null,null,null,null,null,null,null,null,null,null,null,null,null,null,null,null,null,null,null,null,null,null,null,null,null,null,null,null,null,null,null,null,null,null,null,null,0,""]
[null,null,null,null,null,null,null,null,null,null,null,null,null,null,null,null,null,null,null,null,null,null,null,null,null,null,null,null,null,null,null,null,null,null,null,null,null,null,null,null,null,null,null,null,null,null,null,null,null,null,null,null,null,null,null,null,null,null,null,null,null,null,null,null,null,null,null,null,null,null,null,null,null,null,null,null,null,0,""]
[null,null,null,null,null,null,null,null,null,null,null,null,null,null,null,null,null,null,null,null,null,null,null,null,null,null,null,null,null,null,null,null,null,null,null,null,null,null,null,null,null,null,null,null,null,null,null,null,null,null,null,null,null,null,null,null,null,null,null,null,null,null,null,null,null,null,null,null,null,null,null,null,null,null,null,null,null,0,""]
[null,null,null,null,null,null,null,null,null,null,null,null,null,null,null,null,null,null,null,null,null,null,null,null,null,null,null,null,null,null,null,null,null,null,null,null,null,null,null,null,null,null,null,null,null,null,null,null,null,null,null,null,null,null,null,null,null,null,null,null,null,null,null,null,null,null,null,null,null,null,null,null,null,null,null,null,null,0,""]
[]
[]
[]
[]
[]
[]
[]
[]
[]
[]
[{"$f":"$A$1","v":"2019-07-06"},null,"Mano  #    16",null,null,null,"Dichiarante   ",null,null,"O"]
["N/S",null,"Contratto","Gioc. da","Att.","Punti NS","NS","EO","E/O (v)",null,"Rank NS"]
[7,{"$f":"IF(A416=\"\",\"\",VLOOKUP(A416,nomi,2))","v":"bar-eli"},"1SA+1","S","F9",120,{"$f":"IF(A416=\"\",\"\",IF(F416=\"\",COUNT(J$416:J$423)-1,2*(COUNT(J$416:J$423)-K416)-COUNTIF(K$416:K$423,K416)+1))","v":0},{"$f":"IF(J416=\"\",\"\",2*(COUNT(J$416:J$423)-1)-G416)","v":4},{"$f":"IF(J416=\"\",\"\",VLOOKUP(J416,nomi,2))","v":"ele-ste"},2,{"$f":"IF(F416=\"\",\"\",RANK(F416,F$416:F$423))","v":3},null,null,null,null,null,null,null,null,null,null,null,null,null,null,null,null,null,null,null,null,null,null,null,null,null,null,null,null,null,null,null,null,null,null,null,null,null,null,null,null,null,null,null,null,null,null,null,null,null,null,null,null,null,null,null,null,null,null,null,null,null,null,null,null,null,null,{"$f":"A416","v":7},{"$f":"G416","v":0}]
[1,"ste-mas","1SA+2","S","F7",150,{"$f":"IF(A417=\"\",\"\",IF(F417=\"\",COUNT(J$416:J$423)-1,2*(COUNT(J$416:J$423)-K417)-COUNTIF(K$416:K$423,K417)+1))","v":2},{"$f":"IF(J417=\"\",\"\",2*(COUNT(J$416:J$423)-1)-G417)","v":2},"ren-san",5,{"$f":"IF(F417=\"\",\"\",RANK(F417,F$416:F$423))","v":2},null,null,null,null,null,null,null,null,null,null,null,null,null,null,null,null,null,null,null,null,null,null,null,null,null,null,null,null,null,null,null,null,null,null,null,null,null,null,null,null,null,null,null,null,null,null,null,null,null,null,null,null,null,null,null,null,null,null,null,null,null,null,null,null,null,null,{"$f":"A417","v":1},{"$f":"G417","v":2}]
[4,"tat-jul","2SA+2","S","F7",180,4,0,"man-rob",3,1,null,null,null,null,null,null,null,null,null,null,null,null,null,null,null,null,null,null,null,null,null,null,null,null,null,null,null,null,null,null,null,null,null,null,null,null,null,null,null,null,null,null,null,null,null,null,null,null,null,null,null,null,null,null,null,null,null,null,null,null,null,null,null,null,null,null,4,4]
[6,"ant-din",null,null,null,null,2,"","",null,"",null,null,null,null,null,null,null,null,null,null,null,null,null,null,null,null,null,null,null,null,null,null,null,null,null,null,null,null,null,null,null,null,null,null,null,null,null,null,null,null,null,null,null,null,null,null,null,null,null,null,null,null,null,null,null,null,null,null,null,null,null,null,null,null,null,null,6,2]
[null,"",null,null,null,null,"","","",null,"",null,null,null,null,null,null,null,null,null,null,null,null,null,null,null,null,null,null,null,null,null,null,null,null,null,null,null,null,null,null,null,null,null,null,null,null,null,null,null,null,null,null,null,null,null,null,null,null,null,null,null,null,null,null,null,null,null,null,null,null,null,null,null,null,null,null,0,""]
[null,"",null,null,null,null,"","","",null,"",null,null,null,null,null,null,null,null,null,null,null,null,null,null,null,null,null,null,null,null,null,null,null,null,null,null,null,null,null,null,null,null,null,null,null,null,null,null,null,null,null,null,null,null,null,null,null,null,null,null,null,null,null,null,null,null,null,null,null,null,null,null,null,null,null,null,0,""]
[null,"",null,null,null,null,"","","",null,"",null,null,null,null,null,null,null,null,null,null,null,null,null,null,null,null,null,null,null,null,null,null,null,null,null,null,null,null,null,null,null,null,null,null,null,null,null,null,null,null,null,null,null,null,null,null,null,null,null,null,null,null,null,null,null,null,null,null,null,null,null,null,null,null,null,null,0,""]
[null,"",null,null,null,null,"","",{"$f":"IF(J423=\"\",\"\",VLOOKUP(J423,nomi,2))","v":""},null,"",null,null,null,null,null,null,null,null,null,null,null,null,null,null,null,null,null,null,null,null,null,null,null,null,null,null,null,null,null,null,null,null,null,null,null,null,null,null,null,null,null,null,null,null,null,null,null,null,null,null,null,null,null,null,null,null,null,null,null,null,null,null,null,null,null,null,0,""]
[null,null,null,null,null,null,null,null,null,null,null,null,null,null,null,null,null,null,null,null,null,null,null,null,null,null,null,null,null,null,null,null,null,null,null,null,null,null,null,null,null,null,null,null,null,null,null,null,null,null,null,null,null,null,null,null,null,null,null,null,null,null,null,null,null,null,null,null,null,null,null,null,null,null,null,null,null,{"$f":"J416","v":2},{"$f":"H416","v":4}]
[null,null,null,null,null,null,null,null,null,null,null,null,null,null,null,null,null,null,null,null,null,null,null,null,null,null,null,null,null,null,null,null,null,null,null,null,null,null,null,null,null,null,null,null,null,null,null,null,null,null,null,null,null,null,null,null,null,null,null,null,null,null,null,null,null,null,null,null,null,null,null,null,null,null,null,null,null,5,2]
[null,null,null,null,null,null,null,null,null,null,null,null,null,null,null,null,null,null,null,null,null,null,null,null,null,null,null,null,null,null,null,null,null,null,null,null,null,null,null,null,null,null,null,null,null,null,null,null,null,null,null,null,null,null,null,null,null,null,null,null,null,null,null,null,null,null,null,null,null,null,null,null,null,null,null,null,null,3,0]
[null,null,null,null,null,null,null,null,null,null,null,null,null,null,null,null,null,null,null,null,null,null,null,null,null,null,null,null,null,null,null,null,null,null,null,null,null,null,null,null,null,null,null,null,null,null,null,null,null,null,null,null,null,null,null,null,null,null,null,null,null,null,null,null,null,null,null,null,null,null,null,null,null,null,null,null,null,0,""]
[null,null,null,null,null,null,null,null,null,null,null,null,null,null,null,null,null,null,null,null,null,null,null,null,null,null,null,null,null,null,null,null,null,null,null,null,null,null,null,null,null,null,null,null,null,null,null,null,null,null,null,null,null,null,null,null,null,null,null,null,null,null,null,null,null,null,null,null,null,null,null,null,null,null,null,null,null,0,""]
[null,null,null,null,null,null,null,null,null,null,null,null,null,null,null,null,null,null,null,null,null,null,null,null,null,null,null,null,null,null,null,null,null,null,null,null,null,null,null,null,null,null,null,null,null,null,null,null,null,null,null,null,null,null,null,null,null,null,null,null,null,null,null,null,null,null,null,null,null,null,null,null,null,null,null,null,null,0,""]
[null,null,null,null,null,null,null,null,null,null,null,null,null,null,null,null,null,null,null,null,null,null,null,null,null,null,null,null,null,null,null,null,null,null,null,null,null,null,null,null,null,null,null,null,null,null,null,null,null,null,null,null,null,null,null,null,null,null,null,null,null,null,null,null,null,null,null,null,null,null,null,null,null,null,null,null,null,0,""]
[null,null,null,null,null,null,null,null,null,null,null,null,null,null,null,null,null,null,null,null,null,null,null,null,null,null,null,null,null,null,null,null,null,null,null,null,null,null,null,null,null,null,null,null,null,null,null,null,null,null,null,null,null,null,null,null,null,null,null,null,null,null,null,null,null,null,null,null,null,null,null,null,null,null,null,null,null,0,""]
[]
[]
[]
[]
[]
[]
[]
[]
[]
[{"$f":"$A$1","v":"2019-07-06"},null,"Mano  #    17",null,null,null,"Dichiarante   ",null,null,"N"]
["N/S",null,"Contratto","Gioc. da","Att.","Punti NS","NS","EO","E/O",null,"Rank NS"]
[7,{"$f":"IF(A443=\"\",\"\",VLOOKUP(A443,nomi,2))","v":"bar-eli"},"5F","O","CK",-400,{"$f":"IF(A443=\"\",\"\",IF(F443=\"\",COUNT(J$443:J$450)-1,2*(COUNT(J$443:J$450)-K443)-COUNTIF(K$443:K$450,K443)+1))","v":0},{"$f":"IF(J443=\"\",\"\",2*(COUNT(J$443:J$450)-1)-G443)","v":4},{"$f":"IF(J443=\"\",\"\",VLOOKUP(J443,nomi,2))","v":"ele-ste"},2,{"$f":"IF(F443=\"\",\"\",RANK(F443,F$443:F$450))","v":3},null,null,null,null,null,null,null,null,null,null,null,null,null,null,null,null,null,null,null,null,null,null,null,null,null,null,null,null,null,null,null,null,null,null,null,null,null,null,null,null,null,null,null,null,null,null,null,null,null,null,null,null,null,null,null,null,null,null,null,null,null,null,null,null,null,null,{"$f":"A443","v":7},{"$f":"G443","v":0}]
[1,"ste-mas","2Q+1","N","PK",110,{"$f":"IF(A444=\"\",\"\",IF(F444=\"\",COUNT(J$443:J$450)-1,2*(COUNT(J$443:J$450)-K444)-COUNTIF(K$443:K$450,K444)+1))","v":3},{"$f":"IF(J444=\"\",\"\",2*(COUNT(J$443:J$450)-1)-G444)","v":1},"ren-san",5,{"$f":"IF(F444=\"\",\"\",RANK(F444,F$443:F$450))","v":1},null,null,null,null,null,null,null,null,null,null,null,null,null,null,null,null,null,null,null,null,null,null,null,null,null,null,null,null,null,null,null,null,null,null,null,null,null,null,null,null,null,null,null,null,null,null,null,null,null,null,null,null,null,null,null,null,null,null,null,null,null,null,null,null,null,null,{"$f":"A444","v":1},{"$f":"G444","v":3}]
[4,"tat-jul","2Q+1","N","PK",110,3,1,"man-rob",3,1,null,null,null,null,null,null,null,null,null,null,null,null,null,null,null,null,null,null,null,null,null,null,null,null,null,null,null,null,null,null,null,null,null,null,null,null,null,null,null,null,null,null,null,null,null,null,null,null,null,null,null,null,null,null,null,null,null,null,null,null,null,null,null,null,null,null,4,3]
[6,"ant-din",null,null,null,null,2,"","",null,"",null,null,null,null,null,null,null,null,null,null,null,null,null,null,null,null,null,null,null,null,null,null,null,null,null,null,null,null,null,null,null,null,null,null,null,null,null,null,null,null,null,null,null,null,null,null,null,null,null,null,null,null,null,null,null,null,null,null,null,null,null,null,null,null,null,null,6,2]
[null,"",null,null,null,null,"","","",null,"",null,null,null,null,null,null,null,null,null,null,null,null,null,null,null,null,null,null,null,null,null,null,null,null,null,null,null,null,null,null,null,null,null,null,null,null,null,null,null,null,null,null,null,null,null,null,null,null,null,null,null,null,null,null,null,null,null,null,null,null,null,null,null,null,null,null,0,""]
[null,"",null,null,null,null,"","","",null,"",null,null,null,null,null,null,null,null,null,null,null,null,null,null,null,null,null,null,null,null,null,null,null,null,null,null,null,null,null,null,null,null,null,null,null,null,null,null,null,null,null,null,null,null,null,null,null,null,null,null,null,null,null,null,null,null,null,null,null,null,null,null,null,null,null,null,0,""]
[null,"",null,null,null,null,"","","",null,"",null,null,null,null,null,null,null,null,null,null,null,null,null,null,null,null,null,null,null,null,null,null,null,null,null,null,null,null,null,null,null,null,null,null,null,null,null,null,null,null,null,null,null,null,null,null,null,null,null,null,null,null,null,null,null,null,null,null,null,null,null,null,null,null,null,null,0,""]
[null,"",null,null,null,null,"","",{"$f":"IF(J450=\"\",\"\",VLOOKUP(J450,nomi,2))","v":""},null,"",null,null,null,null,null,null,null,null,null,null,null,null,null,null,null,null,null,null,null,null,null,null,null,null,null,null,null,null,null,null,null,null,null,null,null,null,null,null,null,null,null,null,null,null,null,null,null,null,null,null,null,null,null,null,null,null,null,null,null,null,null,null,null,null,null,null,0,""]
[null,null,null,null,null,null,null,null,null,null,"",null,null,null,null,null,null,null,null,null,null,null,null,null,null,null,null,null,null,null,null,null,null,null,null,null,null,null,null,null,null,null,null,null,null,null,null,null,null,null,null,null,null,null,null,null,null,null,null,null,null,null,null,null,null,null,null,null,null,null,null,null,null,null,null,null,null,{"$f":"J443","v":2},{"$f":"H443","v":4}]
[null,null,null,null,null,null,null,null,null,null,null,null,null,null,null,null,null,null,null,null,null,null,null,null,null,null,null,null,null,null,null,null,null,null,null,null,null,null,null,null,null,null,null,null,null,null,null,null,null,null,null,null,null,null,null,null,null,null,null,null,null,null,null,null,null,null,null,null,null,null,null,null,null,null,null,null,null,5,1]
[null,null,null,null,null,null,null,null,null,null,null,null,null,null,null,null,null,null,null,null,null,null,null,null,null,null,null,null,null,null,null,null,null,null,null,null,null,null,null,null,null,null,null,null,null,null,null,null,null,null,null,null,null,null,null,null,null,null,null,null,null,null,null,null,null,null,null,null,null,null,null,null,null,null,null,null,null,3,1]
[null,null,null,null,null,null,null,null,null,null,null,null,null,null,null,null,null,null,null,null,null,null,null,null,null,null,null,null,null,null,null,null,null,null,null,null,null,null,null,null,null,null,null,null,null,null,null,null,null,null,null,null,null,null,null,null,null,null,null,null,null,null,null,null,null,null,null,null,null,null,null,null,null,null,null,null,null,0,""]
[null,null,null,null,null,null,null,null,null,null,null,null,null,null,null,null,null,null,null,null,null,null,null,null,null,null,null,null,null,null,null,null,null,null,null,null,null,null,null,null,null,null,null,null,null,null,null,null,null,null,null,null,null,null,null,null,null,null,null,null,null,null,null,null,null,null,null,null,null,null,null,null,null,null,null,null,null,0,""]
[null,null,null,null,null,null,null,null,null,null,null,null,null,null,null,null,null,null,null,null,null,null,null,null,null,null,null,null,null,null,null,null,null,null,null,null,null,null,null,null,null,null,null,null,null,null,null,null,null,null,null,null,null,null,null,null,null,null,null,null,null,null,null,null,null,null,null,null,null,null,null,null,null,null,null,null,null,0,""]
[null,null,null,null,null,null,null,null,null,null,null,null,null,null,null,null,null,null,null,null,null,null,null,null,null,null,null,null,null,null,null,null,null,null,null,null,null,null,null,null,null,null,null,null,null,null,null,null,null,null,null,null,null,null,null,null,null,null,null,null,null,null,null,null,null,null,null,null,null,null,null,null,null,null,null,null,null,0,""]
[null,null,null,null,null,null,null,null,null,null,null,null,null,null,null,null,null,null,null,null,null,null,null,null,null,null,null,null,null,null,null,null,null,null,null,null,null,null,null,null,null,null,null,null,null,null,null,null,null,null,null,null,null,null,null,null,null,null,null,null,null,null,null,null,null,null,null,null,null,null,null,null,null,null,null,null,null,0,""]
[]
[]
[]
[]
[]
[]
[]
[]
[]
[]
[{"$f":"$A$1","v":"2019-07-06"},null,"Mano  #    18",null,null,null,"Dichiarante   ",null,null,"E"]
["N/S (v)",null,"Contratto","Gioc. da","Att.","Punti NS","NS","EO","E/O",null,"Rank NS"]
[7,{"$f":"IF(A471=\"\",\"\",VLOOKUP(A471,nomi,2))","v":"bar-eli"},"4C-2","S","PA",-200,{"$f":"IF(A471=\"\",\"\",IF(F471=\"\",COUNT(J$471:J$478)-1,2*(COUNT(J$471:J$478)-K471)-COUNTIF(K$471:K$478,K471)+1))","v":1},{"$f":"IF(J471=\"\",\"\",2*(COUNT(J$471:J$478)-1)-G471)","v":3},{"$f":"IF(J471=\"\",\"\",VLOOKUP(J471,nomi,2))","v":"ele-ste"},2,{"$f":"IF(F471=\"\",\"\",RANK(F471,F$471:F$478))","v":2},null,null,null,null,null,null,null,null,null,null,null,null,null,null,null,null,null,null,null,null,null,null,null,null,null,null,null,null,null,null,null,null,null,null,null,null,null,null,null,null,null,null,null,null,null,null,null,null,null,null,null,null,null,null,null,null,null,null,null,null,null,null,null,null,null,null,{"$f":"A471","v":7},{"$f":"G471","v":1}]
[1,"ste-mas","2C","S","QA",110,{"$f":"IF(A472=\"\",\"\",IF(F472=\"\",COUNT(J$471:J$478)-1,2*(COUNT(J$471:J$478)-K472)-COUNTIF(K$471:K$478,K472)+1))","v":4},{"$f":"IF(J472=\"\",\"\",2*(COUNT(J$471:J$478)-1)-G472)","v":0},"ren-san",5,{"$f":"IF(F472=\"\",\"\",RANK(F472,F$471:F$478))","v":1},null,null,null,null,null,null,null,null,null,null,null,null,null,null,null,null,null,null,null,null,null,null,null,null,null,null,null,null,null,null,null,null,null,null,null,null,null,null,null,null,null,null,null,null,null,null,null,null,null,null,null,null,null,null,null,null,null,null,null,null,null,null,null,null,null,null,{"$f":"A472","v":1},{"$f":"G472","v":4}]
[4,"tat-jul","4C-2","S","PA",-200,1,3,"man-rob",3,2,null,null,null,null,null,null,null,null,null,null,null,null,null,null,null,null,null,null,null,null,null,null,null,null,null,null,null,null,null,null,null,null,null,null,null,null,null,null,null,null,null,null,null,null,null,null,null,null,null,null,null,null,null,null,null,null,null,null,null,null,null,null,null,null,null,null,4,1]
[6,"ant-din",null,null,null,null,2,"","",null,"",null,null,null,null,null,null,null,null,null,null,null,null,null,null,null,null,null,null,null,null,null,null,null,null,null,null,null,null,null,null,null,null,null,null,null,null,null,null,null,null,null,null,null,null,null,null,null,null,null,null,null,null,null,null,null,null,null,null,null,null,null,null,null,null,null,null,6,2]
[null,"",null,null,null,null,"","","",null,"",null,null,null,null,null,null,null,null,null,null,null,null,null,null,null,null,null,null,null,null,null,null,null,null,null,null,null,null,null,null,null,null,null,null,null,null,null,null,null,null,null,null,null,null,null,null,null,null,null,null,null,null,null,null,null,null,null,null,null,null,null,null,null,null,null,null,0,""]
[null,"",null,null,null,null,"","","",null,"",null,null,null,null,null,null,null,null,null,null,null,null,null,null,null,null,null,null,null,null,null,null,null,null,null,null,null,null,null,null,null,null,null,null,null,null,null,null,null,null,null,null,null,null,null,null,null,null,null,null,null,null,null,null,null,null,null,null,null,null,null,null,null,null,null,null,0,""]
[null,"",null,null,null,null,"","","",null,"",null,null,null,null,null,null,null,null,null,null,null,null,null,null,null,null,null,null,null,null,null,null,null,null,null,null,null,null,null,null,null,null,null,null,null,null,null,null,null,null,null,null,null,null,null,null,null,null,null,null,null,null,null,null,null,null,null,null,null,null,null,null,null,null,null,null,0,""]
[null,"",null,null,null,null,"","",{"$f":"IF(J478=\"\",\"\",VLOOKUP(J478,nomi,2))","v":""},null,"",null,null,null,null,null,null,null,null,null,null,null,null,null,null,null,null,null,null,null,null,null,null,null,null,null,null,null,null,null,null,null,null,null,null,null,null,null,null,null,null,null,null,null,null,null,null,null,null,null,null,null,null,null,null,null,null,null,null,null,null,null,null,null,null,null,null,0,""]
[null,null,null,null,null,null,null,null,null,null,null,null,null,null,null,null,null,null,null,null,null,null,null,null,null,null,null,null,null,null,null,null,null,null,null,null,null,null,null,null,null,null,null,null,null,null,null,null,null,null,null,null,null,null,null,null,null,null,null,null,null,null,null,null,null,null,null,null,null,null,null,null,null,null,null,null,null,{"$f":"J471","v":2},{"$f":"H471","v":3}]
[null,null,null,null,null,null,null,null,null,null,null,null,null,null,null,null,null,null,null,null,null,null,null,null,null,null,null,null,null,null,null,null,null,null,null,null,null,null,null,null,null,null,null,null,null,null,null,null,null,null,null,null,null,null,null,null,null,null,null,null,null,null,null,null,null,null,null,null,null,null,null,null,null,null,null,null,null,5,0]
[null,null,null,null,null,null,null,null,null,null,null,null,null,null,null,null,null,null,null,null,null,null,null,null,null,null,null,null,null,null,null,null,null,null,null,null,null,null,null,null,null,null,null,null,null,null,null,null,null,null,null,null,null,null,null,null,null,null,null,null,null,null,null,null,null,null,null,null,null,null,null,null,null,null,null,null,null,3,3]
[null,null,null,null,null,null,null,null,null,null,null,null,null,null,null,null,null,null,null,null,null,null,null,null,null,null,null,null,null,null,null,null,null,null,null,null,null,null,null,null,null,null,null,null,null,null,null,null,null,null,null,null,null,null,null,null,null,null,null,null,null,null,null,null,null,null,null,null,null,null,null,null,null,null,null,null,null,0,""]
[null,null,null,null,null,null,null,null,null,null,null,null,null,null,null,null,null,null,null,null,null,null,null,null,null,null,null,null,null,null,null,null,null,null,null,null,null,null,null,null,null,null,null,null,null,null,null,null,null,null,null,null,null,null,null,null,null,null,null,null,null,null,null,null,null,null,null,null,null,null,null,null,null,null,null,null,null,0,""]
[null,null,null,null,null,null,null,null,null,null,null,null,null,null,null,null,null,null,null,null,null,null,null,null,null,null,null,null,null,null,null,null,null,null,null,null,null,null,null,null,null,null,null,null,null,null,null,null,null,null,null,null,null,null,null,null,null,null,null,null,null,null,null,null,null,null,null,null,null,null,null,null,null,null,null,null,null,0,""]
[null,null,null,null,null,null,null,null,null,null,null,null,null,null,null,null,null,null,null,null,null,null,null,null,null,null,null,null,null,null,null,null,null,null,null,null,null,null,null,null,null,null,null,null,null,null,null,null,null,null,null,null,null,null,null,null,null,null,null,null,null,null,null,null,null,null,null,null,null,null,null,null,null,null,null,null,null,0,""]
[null,null,null,null,null,null,null,null,null,null,null,null,null,null,null,null,null,null,null,null,null,null,null,null,null,null,null,null,null,null,null,null,null,null,null,null,null,null,null,null,null,null,null,null,null,null,null,null,null,null,null,null,null,null,null,null,null,null,null,null,null,null,null,null,null,null,null,null,null,null,null,null,null,null,null,null,null,0,""]
[]
[]
[]
[]
[]
[]
[]
[]
[]
[{"$f":"$A$1","v":"2019-07-06"},null,"Mano  #    19",null,null,null,"Dichiarante   ",null,null,"S"]
["N/S",null,"Contratto","Gioc. da","Att.","Punti NS","NS","EO","E/O (v)",null,"Rank NS"]
[5,{"$f":"IF(A498=\"\",\"\",VLOOKUP(A498,nomi,2))","v":"ren-san"},"2P+1","O","CK",-140,{"$f":"IF(A498=\"\",\"\",IF(F498=\"\",COUNT(J$498:J$505)-1,2*(COUNT(J$498:J$505)-K498)-COUNTIF(K$498:K$505,K498)+1))","v":0},{"$f":"IF(J498=\"\",\"\",2*(COUNT(J$498:J$505)-1)-G498)","v":4},{"$f":"IF(J498=\"\",\"\",VLOOKUP(J498,nomi,2))","v":"tat-jul"},4,{"$f":"IF(F498=\"\",\"\",RANK(F498,F$498:F$505))","v":3},null,null,null,null,null,null,null,null,null,null,null,null,null,null,null,null,null,null,null,null,null,null,null,null,null,null,null,null,null,null,null,null,null,null,null,null,null,null,null,null,null,null,null,null,null,null,null,null,null,null,null,null,null,null,null,null,null,null,null,null,null,null,null,null,null,null,{"$f":"A498","v":5},{"$f":"G498","v":0}]
[1,"ste-mas","3SA-1","O","CA",100,{"$f":"IF(A499=\"\",\"\",IF(F499=\"\",COUNT(J$498:J$505)-1,2*(COUNT(J$498:J$505)-K499)-COUNTIF(K$498:K$505,K499)+1))","v":3},{"$f":"IF(J499=\"\",\"\",2*(COUNT(J$498:J$505)-1)-G499)","v":1},"man-rob",3,{"$f":"IF(F499=\"\",\"\",RANK(F499,F$498:F$505))","v":1},null,null,null,null,null,null,null,null,null,null,null,null,null,null,null,null,null,null,null,null,null,null,null,null,null,null,null,null,null,null,null,null,null,null,null,null,null,null,null,null,null,null,null,null,null,null,null,null,null,null,null,null,null,null,null,null,null,null,null,null,null,null,null,null,null,null,{"$f":"A499","v":1},{"$f":"G499","v":3}]
[2,"ele-ste","4P-1","O","CA",100,3,1,"ant-din",6,1,null,null,null,null,null,null,null,null,null,null,null,null,null,null,null,null,null,null,null,null,null,null,null,null,null,null,null,null,null,null,null,null,null,null,null,null,null,null,null,null,null,null,null,null,null,null,null,null,null,null,null,null,null,null,null,null,null,null,null,null,null,null,null,null,null,null,2,3]
[7,"bar-eli",null,null,null,null,2,"","",null,"",null,null,null,null,null,null,null,null,null,null,null,null,null,null,null,null,null,null,null,null,null,null,null,null,null,null,null,null,null,null,null,null,null,null,null,null,null,null,null,null,null,null,null,null,null,null,null,null,null,null,null,null,null,null,null,null,null,null,null,null,null,null,null,null,null,null,7,2]
[null,"",null,null,null,null,"","","",null,"",null,null,null,null,null,null,null,null,null,null,null,null,null,null,null,null,null,null,null,null,null,null,null,null,null,null,null,null,null,null,null,null,null,null,null,null,null,null,null,null,null,null,null,null,null,null,null,null,null,null,null,null,null,null,null,null,null,null,null,null,null,null,null,null,null,null,0,""]
[null,"",null,null,null,null,"","","",null,"",null,null,null,null,null,null,null,null,null,null,null,null,null,null,null,null,null,null,null,null,null,null,null,null,null,null,null,null,null,null,null,null,null,null,null,null,null,null,null,null,null,null,null,null,null,null,null,null,null,null,null,null,null,null,null,null,null,null,null,null,null,null,null,null,null,null,0,""]
[null,"",null,null,null,null,"","","",null,"",null,null,null,null,null,null,null,null,null,null,null,null,null,null,null,null,null,null,null,null,null,null,null,null,null,null,null,null,null,null,null,null,null,null,null,null,null,null,null,null,null,null,null,null,null,null,null,null,null,null,null,null,null,null,null,null,null,null,null,null,null,null,null,null,null,null,0,""]
[null,"",null,null,null,null,"","",{"$f":"IF(J505=\"\",\"\",VLOOKUP(J505,nomi,2))","v":""},null,"",null,null,null,null,null,null,null,null,null,null,null,null,null,null,null,null,null,null,null,null,null,null,null,null,null,null,null,null,null,null,null,null,null,null,null,null,null,null,null,null,null,null,null,null,null,null,null,null,null,null,null,null,null,null,null,null,null,null,null,null,null,null,null,null,null,null,0,""]
[null,null,null,null,null,null,null,null,null,null,null,null,null,null,null,null,null,null,null,null,null,null,null,null,null,null,null,null,null,null,null,null,null,null,null,null,null,null,null,null,null,null,null,null,null,null,null,null,null,null,null,null,null,null,null,null,null,null,null,null,null,null,null,null,null,null,null,null,null,null,null,null,null,null,null,null,null,{"$f":"J498","v":4},{"$f":"H498","v":4}]
[null,null,null,null,null,null,null,null,null,null,null,null,null,null,null,null,null,null,null,null,null,null,null,null,null,null,null,null,null,null,null,null,null,null,null,null,null,null,null,null,null,null,null,null,null,null,null,null,null,null,null,null,null,null,null,null,null,null,null,null,null,null,null,null,null,null,null,null,null,null,null,null,null,null,null,null,null,3,1]
[null,null,null,null,null,null,null,null,null,null,null,null,null,null,null,null,null,null,null,null,null,null,null,null,null,null,null,null,null,null,null,null,null,null,null,null,null,null,null,null,null,null,null,null,null,null,null,null,null,null,null,null,null,null,null,null,null,null,null,null,null,null,null,null,null,null,null,null,null,null,null,null,null,null,null,null,null,6,1]
[null,null,null,null,null,null,null,null,null,null,null,null,null,null,null,null,null,null,null,null,null,null,null,null,null,null,null,null,null,null,null,null,null,null,null,null,null,null,null,null,null,null,null,null,null,null,null,null,null,null,null,null,null,null,null,null,null,null,null,null,null,null,null,null,null,null,null,null,null,null,null,null,null,null,null,null,null,0,""]
[null,null,null,null,null,null,null,null,null,null,null,null,null,null,null,null,null,null,null,null,null,null,null,null,null,null,null,null,null,null,null,null,null,null,null,null,null,null,null,null,null,null,null,null,null,null,null,null,null,null,null,null,null,null,null,null,null,null,null,null,null,null,null,null,null,null,null,null,null,null,null,null,null,null,null,null,null,0,""]
[null,null,null,null,null,null,null,null,null,null,null,null,null,null,null,null,null,null,null,null,null,null,null,null,null,null,null,null,null,null,null,null,null,null,null,null,null,null,null,null,null,null,null,null,null,null,null,null,null,null,null,null,null,null,null,null,null,null,null,null,null,null,null,null,null,null,null,null,null,null,null,null,null,null,null,null,null,0,""]
[null,null,null,null,null,null,null,null,null,null,null,null,null,null,null,null,null,null,null,null,null,null,null,null,null,null,null,null,null,null,null,null,null,null,null,null,null,null,null,null,null,null,null,null,null,null,null,null,null,null,null,null,null,null,null,null,null,null,null,null,null,null,null,null,null,null,null,null,null,null,null,null,null,null,null,null,null,0,""]
[null,null,null,null,null,null,null,null,null,null,null,null,null,null,null,null,null,null,null,null,null,null,null,null,null,null,null,null,null,null,null,null,null,null,null,null,null,null,null,null,null,null,null,null,null,null,null,null,null,null,null,null,null,null,null,null,null,null,null,null,null,null,null,null,null,null,null,null,null,null,null,null,null,null,null,null,null,0,""]
[]
[]
[]
[]
[]
[]
[]
[]
[]
[]
[{"$f":"$A$1","v":"2019-07-06"},null,"Mano  #    20",null,null,null,"Dichiarante   ",null,null,"O"]
["N/S (v)",null,"Contratto","Gioc. da","Att.","Punti NS","NS","EO","E/O (v)",null,"Rank NS"]
[5,{"$f":"IF(A526=\"\",\"\",VLOOKUP(A526,nomi,2))","v":"ren-san"},"3SA","N","PJ",600,{"$f":"IF(A526=\"\",\"\",IF(F526=\"\",COUNT(J$526:J$533)-1,2*(COUNT(J$526:J$533)-K526)-COUNTIF(K$526:K$533,K526)+1))","v":4},{"$f":"IF(J526=\"\",\"\",2*(COUNT(J$526:J$533)-1)-G526)","v":0},{"$f":"IF(J526=\"\",\"\",VLOOKUP(J526,nomi,2))","v":"tat-jul"},4,{"$f":"IF(F526=\"\",\"\",RANK(F526,F$526:F$533))","v":1},null,null,null,null,null,null,null,null,null,null,null,null,null,null,null,null,null,null,null,null,null,null,null,null,null,null,null,null,null,null,null,null,null,null,null,null,null,null,null,null,null,null,null,null,null,null,null,null,null,null,null,null,null,null,null,null,null,null,null,null,null,null,null,null,null,null,{"$f":"A526","v":5},{"$f":"G526","v":4}]
[1,"ste-mas","2SA+1","N","PJ",150,{"$f":"IF(A527=\"\",\"\",IF(F527=\"\",COUNT(J$526:J$533)-1,2*(COUNT(J$526:J$533)-K527)-COUNTIF(K$526:K$533,K527)+1))","v":0},{"$f":"IF(J527=\"\",\"\",2*(COUNT(J$526:J$533)-1)-G527)","v":4},"man-rob",3,{"$f":"IF(F527=\"\",\"\",RANK(F527,F$526:F$533))","v":3},null,null,null,null,null,null,null,null,null,null,null,null,null,null,null,null,null,null,null,null,null,null,null,null,null,null,null,null,null,null,null,null,null,null,null,null,null,null,null,null,null,null,null,null,null,null,null,null,null,null,null,null,null,null,null,null,null,null,null,null,null,null,null,null,null,null,{"$f":"A527","v":1},{"$f":"G527","v":0}]
[2,"ele-ste","3P+1","S","P7",170,2,2,"ant-din",6,2,null,null,null,null,null,null,null,null,null,null,null,null,null,null,null,null,null,null,null,null,null,null,null,null,null,null,null,null,null,null,null,null,null,null,null,null,null,null,null,null,null,null,null,null,null,null,null,null,null,null,null,null,null,null,null,null,null,null,null,null,null,null,null,null,null,null,2,2]
[7,"bar-eli",null,null,null,null,2,"","",null,"",null,null,null,null,null,null,null,null,null,null,null,null,null,null,null,null,null,null,null,null,null,null,null,null,null,null,null,null,null,null,null,null,null,null,null,null,null,null,null,null,null,null,null,null,null,null,null,null,null,null,null,null,null,null,null,null,null,null,null,null,null,null,null,null,null,null,7,2]
[null,"",null,null,null,null,"","","",null,"",null,null,null,null,null,null,null,null,null,null,null,null,null,null,null,null,null,null,null,null,null,null,null,null,null,null,null,null,null,null,null,null,null,null,null,null,null,null,null,null,null,null,null,null,null,null,null,null,null,null,null,null,null,null,null,null,null,null,null,null,null,null,null,null,null,null,0,""]
[null,"",null,null,null,null,"","","",null,"",null,null,null,null,null,null,null,null,null,null,null,null,null,null,null,null,null,null,null,null,null,null,null,null,null,null,null,null,null,null,null,null,null,null,null,null,null,null,null,null,null,null,null,null,null,null,null,null,null,null,null,null,null,null,null,null,null,null,null,null,null,null,null,null,null,null,0,""]
[null,"",null,null,null,null,"","","",null,"",null,null,null,null,null,null,null,null,null,null,null,null,null,null,null,null,null,null,null,null,null,null,null,null,null,null,null,null,null,null,null,null,null,null,null,null,null,null,null,null,null,null,null,null,null,null,null,null,null,null,null,null,null,null,null,null,null,null,null,null,null,null,null,null,null,null,0,""]
[null,"",null,null,null,null,"","",{"$f":"IF(J533=\"\",\"\",VLOOKUP(J533,nomi,2))","v":""},null,"",null,null,null,null,null,null,null,null,null,null,null,null,null,null,null,null,null,null,null,null,null,null,null,null,null,null,null,null,null,null,null,null,null,null,null,null,null,null,null,null,null,null,null,null,null,null,null,null,null,null,null,null,null,null,null,null,null,null,null,null,null,null,null,null,null,null,0,""]
[null,null,null,null,null,null,null,null,null,null,null,null,null,null,null,null,null,null,null,null,null,null,null,null,null,null,null,null,null,null,null,null,null,null,null,null,null,null,null,null,null,null,null,null,null,null,null,null,null,null,null,null,null,null,null,null,null,null,null,null,null,null,null,null,null,null,null,null,null,null,null,null,null,null,null,null,null,{"$f":"J526","v":4},{"$f":"H526","v":0}]
[null,null,null,null,null,null,null,null,null,null,null,null,null,null,null,null,null,null,null,null,null,null,null,null,null,null,null,null,null,null,null,null,null,null,null,null,null,null,null,null,null,null,null,null,null,null,null,null,null,null,null,null,null,null,null,null,null,null,null,null,null,null,null,null,null,null,null,null,null,null,null,null,null,null,null,null,null,3,4]
[null,null,null,null,null,null,null,null,null,null,null,null,null,null,null,null,null,null,null,null,null,null,null,null,null,null,null,null,null,null,null,null,null,null,null,null,null,null,null,null,null,null,null,null,null,null,null,null,null,null,null,null,null,null,null,null,null,null,null,null,null,null,null,null,null,null,null,null,null,null,null,null,null,null,null,null,null,6,2]
[null,null,null,null,null,null,null,null,null,null,null,null,null,null,null,null,null,null,null,null,null,null,null,null,null,null,null,null,null,null,null,null,null,null,null,null,null,null,null,null,null,null,null,null,null,null,null,null,null,null,null,null,null,null,null,null,null,null,null,null,null,null,null,null,null,null,null,null,null,null,null,null,null,null,null,null,null,0,""]
[null,null,null,null,null,null,null,null,null,null,null,null,null,null,null,null,null,null,null,null,null,null,null,null,null,null,null,null,null,null,null,null,null,null,null,null,null,null,null,null,null,null,null,null,null,null,null,null,null,null,null,null,null,null,null,null,null,null,null,null,null,null,null,null,null,null,null,null,null,null,null,null,null,null,null,null,null,0,""]
[null,null,null,null,null,null,null,null,null,null,null,null,null,null,null,null,null,null,null,null,null,null,null,null,null,null,null,null,null,null,null,null,null,null,null,null,null,null,null,null,null,null,null,null,null,null,null,null,null,null,null,null,null,null,null,null,null,null,null,null,null,null,null,null,null,null,null,null,null,null,null,null,null,null,null,null,null,0,""]
[null,null,null,null,null,null,null,null,null,null,null,null,null,null,null,null,null,null,null,null,null,null,null,null,null,null,null,null,null,null,null,null,null,null,null,null,null,null,null,null,null,null,null,null,null,null,null,null,null,null,null,null,null,null,null,null,null,null,null,null,null,null,null,null,null,null,null,null,null,null,null,null,null,null,null,null,null,0,""]
[null,null,null,null,null,null,null,null,null,null,null,null,null,null,null,null,null,null,null,null,null,null,null,null,null,null,null,null,null,null,null,null,null,null,null,null,null,null,null,null,null,null,null,null,null,null,null,null,null,null,null,null,null,null,null,null,null,null,null,null,null,null,null,null,null,null,null,null,null,null,null,null,null,null,null,null,null,0,""]
[]
[]
[]
[]
[]
[]
[]
[]
[]
[{"$f":"$A$1","v":"2019-07-06"},null,"Mano  #    21",null,null,null,"Dichiarante   ",null,null,"N"]
["N/S (v)",null,"Contratto","Gioc. da","Att.","Punti NS","NS","EO","E/O",null,"Rank NS"]
[5,{"$f":"IF(A553=\"\",\"\",VLOOKUP(A553,nomi,2))","v":"ren-san"},"1SA-3","N","CJ",-300,{"$f":"IF(A553=\"\",\"\",IF(F553=\"\",COUNT(J$553:J$560)-1,2*(COUNT(J$553:J$560)-K553)-COUNTIF(K$553:K$560,K553)+1))","v":0},{"$f":"IF(J553=\"\",\"\",2*(COUNT(J$553:J$560)-1)-G553)","v":4},{"$f":"IF(J553=\"\",\"\",VLOOKUP(J553,nomi,2))","v":"tat-jul"},4,{"$f":"IF(F553=\"\",\"\",RANK(F553,F$553:F$560))","v":3},null,null,null,null,null,null,null,null,null,null,null,null,null,null,null,null,null,null,null,null,null,null,null,null,null,null,null,null,null,null,null,null,null,null,null,null,null,null,null,null,null,null,null,null,null,null,null,null,null,null,null,null,null,null,null,null,null,null,null,null,null,null,null,null,null,null,{"$f":"A553","v":5},{"$f":"G553","v":0}]
[1,"ste-mas","2P+1","E","QA",-140,{"$f":"IF(A554=\"\",\"\",IF(F554=\"\",COUNT(J$553:J$560)-1,2*(COUNT(J$553:J$560)-K554)-COUNTIF(K$553:K$560,K554)+1))","v":2},{"$f":"IF(J554=\"\",\"\",2*(COUNT(J$553:J$560)-1)-G554)","v":2},"man-rob",3,{"$f":"IF(F554=\"\",\"\",RANK(F554,F$553:F$560))","v":2},null,null,null,null,null,null,null,null,null,null,null,null,null,null,null,null,null,null,null,null,null,null,null,null,null,null,null,null,null,null,null,null,null,null,null,null,null,null,null,null,null,null,null,null,null,null,null,null,null,null,null,null,null,null,null,null,null,null,null,null,null,null,null,null,null,null,{"$f":"A554","v":1},{"$f":"G554","v":2}]
[2,"ele-ste","3P-1","E","QA",50,4,0,"ant-din",6,1,null,null,null,null,null,null,null,null,null,null,null,null,null,null,null,null,null,null,null,null,null,null,null,null,null,null,null,null,null,null,null,null,null,null,null,null,null,null,null,null,null,null,null,null,null,null,null,null,null,null,null,null,null,null,null,null,null,null,null,null,null,null,null,null,null,null,2,4]
[7,"bar-eli",null,null,null,null,2,"","",null,"",null,null,null,null,null,null,null,null,null,null,null,null,null,null,null,null,null,null,null,null,null,null,null,null,null,null,null,null,null,null,null,null,null,null,null,null,null,null,null,null,null,null,null,null,null,null,null,null,null,null,null,null,null,null,null,null,null,null,null,null,null,null,null,null,null,null,7,2]
[null,"",null,null,null,null,"","","",null,"",null,null,null,null,null,null,null,null,null,null,null,null,null,null,null,null,null,null,null,null,null,null,null,null,null,null,null,null,null,null,null,null,null,null,null,null,null,null,null,null,null,null,null,null,null,null,null,null,null,null,null,null,null,null,null,null,null,null,null,null,null,null,null,null,null,null,0,""]
[null,"",null,null,null,null,"","","",null,"",null,null,null,null,null,null,null,null,null,null,null,null,null,null,null,null,null,null,null,null,null,null,null,null,null,null,null,null,null,null,null,null,null,null,null,null,null,null,null,null,null,null,null,null,null,null,null,null,null,null,null,null,null,null,null,null,null,null,null,null,null,null,null,null,null,null,0,""]
[null,"",null,null,null,null,"","","",null,"",null,null,null,null,null,null,null,null,null,null,null,null,null,null,null,null,null,null,null,null,null,null,null,null,null,null,null,null,null,null,null,null,null,null,null,null,null,null,null,null,null,null,null,null,null,null,null,null,null,null,null,null,null,null,null,null,null,null,null,null,null,null,null,null,null,null,0,""]
[null,"",null,null,null,null,"","",{"$f":"IF(J560=\"\",\"\",VLOOKUP(J560,nomi,2))","v":""},null,"",null,null,null,null,null,null,null,null,null,null,null,null,null,null,null,null,null,null,null,null,null,null,null,null,null,null,null,null,null,null,null,null,null,null,null,null,null,null,null,null,null,null,null,null,null,null,null,null,null,null,null,null,null,null,null,null,null,null,null,null,null,null,null,null,null,null,0,""]
[null,null,null,null,null,null,null,null,null,null,null,null,null,null,null,null,null,null,null,null,null,null,null,null,null,null,null,null,null,null,null,null,null,null,null,null,null,null,null,null,null,null,null,null,null,null,null,null,null,null,null,null,null,null,null,null,null,null,null,null,null,null,null,null,null,null,null,null,null,null,null,null,null,null,null,null,null,{"$f":"J553","v":4},{"$f":"H553","v":4}]
[null,null,null,null,null,null,null,null,null,null,null,null,null,null,null,null,null,null,null,null,null,null,null,null,null,null,null,null,null,null,null,null,null,null,null,null,null,null,null,null,null,null,null,null,null,null,null,null,null,null,null,null,null,null,null,null,null,null,null,null,null,null,null,null,null,null,null,null,null,null,null,null,null,null,null,null,null,3,2]
[null,null,null,null,null,null,null,null,null,null,null,null,null,null,null,null,null,null,null,null,null,null,null,null,null,null,null,null,null,null,null,null,null,null,null,null,null,null,null,null,null,null,null,null,null,null,null,null,null,null,null,null,null,null,null,null,null,null,null,null,null,null,null,null,null,null,null,null,null,null,null,null,null,null,null,null,null,6,0]
[null,null,null,null,null,null,null,null,null,null,null,null,null,null,null,null,null,null,null,null,null,null,null,null,null,null,null,null,null,null,null,null,null,null,null,null,null,null,null,null,null,null,null,null,null,null,null,null,null,null,null,null,null,null,null,null,null,null,null,null,null,null,null,null,null,null,null,null,null,null,null,null,null,null,null,null,null,0,""]
[null,null,null,null,null,null,null,null,null,null,null,null,null,null,null,null,null,null,null,null,null,null,null,null,null,null,null,null,null,null,null,null,null,null,null,null,null,null,null,null,null,null,null,null,null,null,null,null,null,null,null,null,null,null,null,null,null,null,null,null,null,null,null,null,null,null,null,null,null,null,null,null,null,null,null,null,null,0,""]
[null,null,null,null,null,null,null,null,null,null,null,null,null,null,null,null,null,null,null,null,null,null,null,null,null,null,null,null,null,null,null,null,null,null,null,null,null,null,null,null,null,null,null,null,null,null,null,null,null,null,null,null,null,null,null,null,null,null,null,null,null,null,null,null,null,null,null,null,null,null,null,null,null,null,null,null,null,0,""]
[null,null,null,null,null,null,null,null,null,null,null,null,null,null,null,null,null,null,null,null,null,null,null,null,null,null,null,null,null,null,null,null,null,null,null,null,null,null,null,null,null,null,null,null,null,null,null,null,null,null,null,null,null,null,null,null,null,null,null,null,null,null,null,null,null,null,null,null,null,null,null,null,null,null,null,null,null,0,""]
[null,null,null,null,null,null,null,null,null,null,null,null,null,null,null,null,null,null,null,null,null,null,null,null,null,null,null,null,null,null,null,null,null,null,null,null,null,null,null,null,null,null,null,null,null,null,null,null,null,null,null,null,null,null,null,null,null,null,null,null,null,null,null,null,null,null,null,null,null,null,null,null,null,null,null,null,null,0,""]
[]
[]
[]
[]
[]
[]
[]
[]
[]
[]
[{"$f":"$A$1","v":"2019-07-06"},null,"Mano  #    22",null,null,null,"Dichiarante   "]
["N/S",null,"Contratto","Gioc. da","Att.","Punti NS","NS","EO","E/O",null,"Rank NS"]
[null,{"$f":"IF(A581=\"\",\"\",VLOOKUP(A581,nomi,2))","v":""},null,null,null,null,{"$f":"IF(A581=\"\",\"\",IF(F581=\"\",COUNT(J$581:J$588)-1,2*(COUNT(J$581:J$588)-K581)-COUNTIF(K$581:K$588,K581)+1))","v":""},{"$f":"IF(J581=\"\",\"\",2*(COUNT(J$581:J$588)-1)-G581)","v":""},{"$f":"IF(J581=\"\",\"\",VLOOKUP(J581,nomi,2))","v":""},null,{"$f":"IF(F581=\"\",\"\",RANK(F581,F$581:F$588))","v":""},null,null,null,null,null,null,null,null,null,null,null,null,null,null,null,null,null,null,null,null,null,null,null,null,null,null,null,null,null,null,null,null,null,null,null,null,null,null,null,null,null,null,null,null,null,null,null,null,null,null,null,null,null,null,null,null,null,null,null,null,null,null,null,null,null,null,{"$f":"A581","v":0},{"$f":"G581","v":""}]
[null,"",null,null,null,null,{"$f":"IF(A582=\"\",\"\",IF(F582=\"\",COUNT(J$581:J$588)-1,2*(COUNT(J$581:J$588)-K582)-COUNTIF(K$581:K$588,K582)+1))","v":""},{"$f":"IF(J582=\"\",\"\",2*(COUNT(J$581:J$588)-1)-G582)","v":""},"",null,{"$f":"IF(F582=\"\",\"\",RANK(F582,F$581:F$588))","v":""},null,null,null,null,null,null,null,null,null,null,null,null,null,null,null,null,null,null,null,null,null,null,null,null,null,null,null,null,null,null,null,null,null,null,null,null,null,null,null,null,null,null,null,null,null,null,null,null,null,null,null,null,null,null,null,null,null,null,null,null,null,null,null,null,null,null,{"$f":"A582","v":0},{"$f":"G582","v":""}]
[null,"",null,null,null,null,"","","",null,"",null,null,null,null,null,null,null,null,null,null,null,null,null,null,null,null,null,null,null,null,null,null,null,null,null,null,null,null,null,null,null,null,null,null,null,null,null,null,null,null,null,null,null,null,null,null,null,null,null,null,null,null,null,null,null,null,null,null,null,null,null,null,null,null,null,null,0,""]
[null,"",null,null,null,null,"","","",null,"",null,null,null,null,null,null,null,null,null,null,null,null,null,null,null,null,null,null,null,null,null,null,null,null,null,null,null,null,null,null,null,null,null,null,null,null,null,null,null,null,null,null,null,null,null,null,null,null,null,null,null,null,null,null,null,null,null,null,null,null,null,null,null,null,null,null,0,""]
[null,"",null,null,null,null,"","","",null,"",null,null,null,null,null,null,null,null,null,null,null,null,null,null,null,null,null,null,null,null,null,null,null,null,null,null,null,null,null,null,null,null,null,null,null,null,null,null,null,null,null,null,null,null,null,null,null,null,null,null,null,null,null,null,null,null,null,null,null,null,null,null,null,null,null,null,0,""]
[null,"",null,null,null,null,"","","",null,"",null,null,null,null,null,null,null,null,null,null,null,null,null,null,null,null,null,null,null,null,null,null,null,null,null,null,null,null,null,null,null,null,null,null,null,null,null,null,null,null,null,null,null,null,null,null,null,null,null,null,null,null,null,null,null,null,null,null,null,null,null,null,null,null,null,null,0,""]
[null,"",null,null,null,null,"","","",null,"",null,null,null,null,null,null,null,null,null,null,null,null,null,null,null,null,null,null,null,null,null,null,null,null,null,null,null,null,null,null,null,null,null,null,null,null,null,null,null,null,null,null,null,null,null,null,null,null,null,null,null,null,null,null,null,null,null,null,null,null,null,null,null,null,null,null,0,""]
[null,"",null,null,null,null,"","",{"$f":"IF(J588=\"\",\"\",VLOOKUP(J588,nomi,2))","v":""},null,"",null,null,null,null,null,null,null,null,null,null,null,null,null,null,null,null,null,null,null,null,null,null,null,null,null,null,null,null,null,null,null,null,null,null,null,null,null,null,null,null,null,null,null,null,null,null,null,null,null,null,null,null,null,null,null,null,null,null,null,null,null,null,null,null,null,null,0,""]
[null,null,null,null,null,null,null,null,null,null,null,null,null,null,null,null,null,null,null,null,null,null,null,null,null,null,null,null,null,null,null,null,null,null,null,null,null,null,null,null,null,null,null,null,null,null,null,null,null,null,null,null,null,null,null,null,null,null,null,null,null,null,null,null,null,null,null,null,null,null,null,null,null,null,null,null,null,{"$f":"J581","v":0},{"$f":"H581","v":""}]
[null,null,null,null,null,null,null,null,null,null,null,null,null,null,null,null,null,null,null,null,null,null,null,null,null,null,null,null,null,null,null,null,null,null,null,null,null,null,null,null,null,null,null,null,null,null,null,null,null,null,null,null,null,null,null,null,null,null,null,null,null,null,null,null,null,null,null,null,null,null,null,null,null,null,null,null,null,0,""]
[null,null,null,null,null,null,null,null,null,null,null,null,null,null,null,null,null,null,null,null,null,null,null,null,null,null,null,null,null,null,null,null,null,null,null,null,null,null,null,null,null,null,null,null,null,null,null,null,null,null,null,null,null,null,null,null,null,null,null,null,null,null,null,null,null,null,null,null,null,null,null,null,null,null,null,null,null,0,""]
[null,null,null,null,null,null,null,null,null,null,null,null,null,null,null,null,null,null,null,null,null,null,null,null,null,null,null,null,null,null,null,null,null,null,null,null,null,null,null,null,null,null,null,null,null,null,null,null,null,null,null,null,null,null,null,null,null,null,null,null,null,null,null,null,null,null,null,null,null,null,null,null,null,null,null,null,null,0,""]
[null,null,null,null,null,null,null,null,null,null,null,null,null,null,null,null,null,null,null,null,null,null,null,null,null,null,null,null,null,null,null,null,null,null,null,null,null,null,null,null,null,null,null,null,null,null,null,null,null,null,null,null,null,null,null,null,null,null,null,null,null,null,null,null,null,null,null,null,null,null,null,null,null,null,null,null,null,0,""]
[null,null,null,null,null,null,null,null,null,null,null,null,null,null,null,null,null,null,null,null,null,null,null,null,null,null,null,null,null,null,null,null,null,null,null,null,null,null,null,null,null,null,null,null,null,null,null,null,null,null,null,null,null,null,null,null,null,null,null,null,null,null,null,null,null,null,null,null,null,null,null,null,null,null,null,null,null,0,""]
[null,null,null,null,null,null,null,null,null,null,null,null,null,null,null,null,null,null,null,null,null,null,null,null,null,null,null,null,null,null,null,null,null,null,null,null,null,null,null,null,null,null,null,null,null,null,null,null,null,null,null,null,null,null,null,null,null,null,null,null,null,null,null,null,null,null,null,null,null,null,null,null,null,null,null,null,null,0,""]
[null,null,null,null,null,null,null,null,null,null,null,null,null,null,null,null,null,null,null,null,null,null,null,null,null,null,null,null,null,null,null,null,null,null,null,null,null,null,null,null,null,null,null,null,null,null,null,null,null,null,null,null,null,null,null,null,null,null,null,null,null,null,null,null,null,null,null,null,null,null,null,null,null,null,null,null,null,0,""]
[]
[]
[]
[]
[]
[]
[]
[]
[]
[{"$f":"$A$1","v":"2019-07-06"},null,"Mano  #    23",null,null,null,"Dichiarante   "]
["N/S",null,"Contratto","Gioc. da","Att.","Punti NS","NS","EO","E/O",null,"Rank NS"]
[null,{"$f":"IF(A608=\"\",\"\",VLOOKUP(A608,nomi,2))","v":""},null,null,null,null,{"$f":"IF(A608=\"\",\"\",IF(F608=\"\",COUNT(J$608:J$615)-1,2*(COUNT(J$608:J$615)-K608)-COUNTIF(K$608:K$615,K608)+1))","v":""},{"$f":"IF(J608=\"\",\"\",2*(COUNT(J$608:J$615)-1)-G608)","v":""},{"$f":"IF(J608=\"\",\"\",VLOOKUP(J608,nomi,2))","v":""},null,{"$f":"IF(F608=\"\",\"\",RANK(F608,F$608:F$615))","v":""},null,null,null,null,null,null,null,null,null,null,null,null,null,null,null,null,null,null,null,null,null,null,null,null,null,null,null,null,null,null,null,null,null,null,null,null,null,null,null,null,null,null,null,null,null,null,null,null,null,null,null,null,null,null,null,null,null,null,null,null,null,null,null,null,null,null,{"$f":"A608","v":0},{"$f":"G608","v":""}]
[null,"",null,null,null,null,{"$f":"IF(A609=\"\",\"\",IF(F609=\"\",COUNT(J$608:J$615)-1,2*(COUNT(J$608:J$615)-K609)-COUNTIF(K$608:K$615,K609)+1))","v":""},{"$f":"IF(J609=\"\",\"\",2*(COUNT(J$608:J$615)-1)-G609)","v":""},"",null,{"$f":"IF(F609=\"\",\"\",RANK(F609,F$608:F$615))","v":""},null,null,null,null,null,null,null,null,null,null,null,null,null,null,null,null,null,null,null,null,null,null,null,null,null,null,null,null,null,null,null,null,null,null,null,null,null,null,null,null,null,null,null,null,null,null,null,null,null,null,null,null,null,null,null,null,null,null,null,null,null,null,null,null,null,null,{"$f":"A609","v":0},{"$f":"G609","v":""}]
[null,"",null,null,null,null,"","","",null,"",null,null,null,null,null,null,null,null,null,null,null,null,null,null,null,null,null,null,null,null,null,null,null,null,null,null,null,null,null,null,null,null,null,null,null,null,null,null,null,null,null,null,null,null,null,null,null,null,null,null,null,null,null,null,null,null,null,null,null,null,null,null,null,null,null,null,0,""]
[null,"",null,null,null,null,"","","",null,"",null,null,null,null,null,null,null,null,null,null,null,null,null,null,null,null,null,null,null,null,null,null,null,null,null,null,null,null,null,null,null,null,null,null,null,null,null,null,null,null,null,null,null,null,null,null,null,null,null,null,null,null,null,null,null,null,null,null,null,null,null,null,null,null,null,null,0,""]
[null,"",null,null,null,null,"","","",null,"",null,null,null,null,null,null,null,null,null,null,null,null,null,null,null,null,null,null,null,null,null,null,null,null,null,null,null,null,null,null,null,null,null,null,null,null,null,null,null,null,null,null,null,null,null,null,null,null,null,null,null,null,null,null,null,null,null,null,null,null,null,null,null,null,null,null,0,""]
[null,"",null,null,null,null,"","","",null,"",null,null,null,null,null,null,null,null,null,null,null,null,null,null,null,null,null,null,null,null,null,null,null,null,null,null,null,null,null,null,null,null,null,null,null,null,null,null,null,null,null,null,null,null,null,null,null,null,null,null,null,null,null,null,null,null,null,null,null,null,null,null,null,null,null,null,0,""]
[null,"",null,null,null,null,"","","",null,"",null,null,null,null,null,null,null,null,null,null,null,null,null,null,null,null,null,null,null,null,null,null,null,null,null,null,null,null,null,null,null,null,null,null,null,null,null,null,null,null,null,null,null,null,null,null,null,null,null,null,null,null,null,null,null,null,null,null,null,null,null,null,null,null,null,null,0,""]
[null,"",null,null,null,null,"","",{"$f":"IF(J615=\"\",\"\",VLOOKUP(J615,nomi,2))","v":""},null,"",null,null,null,null,null,null,null,null,null,null,null,null,null,null,null,null,null,null,null,null,null,null,null,null,null,null,null,null,null,null,null,null,null,null,null,null,null,null,null,null,null,null,null,null,null,null,null,null,null,null,null,null,null,null,null,null,null,null,null,null,null,null,null,null,null,null,0,""]
[null,null,null,null,null,null,null,null,null,null,"",null,null,null,null,null,null,null,null,null,null,null,null,null,null,null,null,null,null,null,null,null,null,null,null,null,null,null,null,null,null,null,null,null,null,null,null,null,null,null,null,null,null,null,null,null,null,null,null,null,null,null,null,null,null,null,null,null,null,null,null,null,null,null,null,null,null,{"$f":"J608","v":0},{"$f":"H608","v":""}]
[null,null,null,null,null,null,null,null,null,null,null,null,null,null,null,null,null,null,null,null,null,null,null,null,null,null,null,null,null,null,null,null,null,null,null,null,null,null,null,null,null,null,null,null,null,null,null,null,null,null,null,null,null,null,null,null,null,null,null,null,null,null,null,null,null,null,null,null,null,null,null,null,null,null,null,null,null,0,""]
[null,null,null,null,null,null,null,null,null,null,null,null,null,null,null,null,null,null,null,null,null,null,null,null,null,null,null,null,null,null,null,null,null,null,null,null,null,null,null,null,null,null,null,null,null,null,null,null,null,null,null,null,null,null,null,null,null,null,null,null,null,null,null,null,null,null,null,null,null,null,null,null,null,null,null,null,null,0,""]
[null,null,null,null,null,null,null,null,null,null,null,null,null,null,null,null,null,null,null,null,null,null,null,null,null,null,null,null,null,null,null,null,null,null,null,null,null,null,null,null,null,null,null,null,null,null,null,null,null,null,null,null,null,null,null,null,null,null,null,null,null,null,null,null,null,null,null,null,null,null,null,null,null,null,null,null,null,0,""]
[null,null,null,null,null,null,null,null,null,null,null,null,null,null,null,null,null,null,null,null,null,null,null,null,null,null,null,null,null,null,null,null,null,null,null,null,null,null,null,null,null,null,null,null,null,null,null,null,null,null,null,null,null,null,null,null,null,null,null,null,null,null,null,null,null,null,null,null,null,null,null,null,null,null,null,null,null,0,""]
[null,null,null,null,null,null,null,null,null,null,null,null,null,null,null,null,null,null,null,null,null,null,null,null,null,null,null,null,null,null,null,null,null,null,null,null,null,null,null,null,null,null,null,null,null,null,null,null,null,null,null,null,null,null,null,null,null,null,null,null,null,null,null,null,null,null,null,null,null,null,null,null,null,null,null,null,null,0,""]
[null,null,null,null,null,null,null,null,null,null,null,null,null,null,null,null,null,null,null,null,null,null,null,null,null,null,null,null,null,null,null,null,null,null,null,null,null,null,null,null,null,null,null,null,null,null,null,null,null,null,null,null,null,null,null,null,null,null,null,null,null,null,null,null,null,null,null,null,null,null,null,null,null,null,null,null,null,0,""]
[null,null,null,null,null,null,null,null,null,null,null,null,null,null,null,null,null,null,null,null,null,null,null,null,null,null,null,null,null,null,null,null,null,null,null,null,null,null,null,null,null,null,null,null,null,null,null,null,null,null,null,null,null,null,null,null,null,null,null,null,null,null,null,null,null,null,null,null,null,null,null,null,null,null,null,null,null,0,""]
[]
[]
[]
[]
[]
[]
[]
[]
[]
[]
[{"$f":"$A$1","v":"2019-07-06"},null,"Mano  #    24",null,null,null,"Dichiarante   "]
["N/S",null,"Contratto","Gioc. da","Att.","Punti NS","NS","EO","E/O",null,"Rank NS"]
[null,{"$f":"IF(A636=\"\",\"\",VLOOKUP(A636,nomi,2))","v":""},null,null,null,null,{"$f":"IF(A636=\"\",\"\",IF(F636=\"\",COUNT(J$636:J$643)-1,2*(COUNT(J$636:J$643)-K636)-COUNTIF(K$636:K$643,K636)+1))","v":""},{"$f":"IF(J636=\"\",\"\",2*(COUNT(J$636:J$643)-1)-G636)","v":""},{"$f":"IF(J636=\"\",\"\",VLOOKUP(J636,nomi,2))","v":""},null,{"$f":"IF(F636=\"\",\"\",RANK(F636,F$636:F$643))","v":""},null,null,null,null,null,null,null,null,null,null,null,null,null,null,null,null,null,null,null,null,null,null,null,null,null,null,null,null,null,null,null,null,null,null,null,null,null,null,null,null,null,null,null,null,null,null,null,null,null,null,null,null,null,null,null,null,null,null,null,null,null,null,null,null,null,null,{"$f":"A636","v":0},{"$f":"G636","v":""}]
[null,"",null,null,null,null,{"$f":"IF(A637=\"\",\"\",IF(F637=\"\",COUNT(J$636:J$643)-1,2*(COUNT(J$636:J$643)-K637)-COUNTIF(K$636:K$643,K637)+1))","v":""},{"$f":"IF(J637=\"\",\"\",2*(COUNT(J$636:J$643)-1)-G637)","v":""},"",null,{"$f":"IF(F637=\"\",\"\",RANK(F637,F$636:F$643))","v":""},null,null,null,null,null,null,null,null,null,null,null,null,null,null,null,null,null,null,null,null,null,null,null,null,null,null,null,null,null,null,null,null,null,null,null,null,null,null,null,null,null,null,null,null,null,null,null,null,null,null,null,null,null,null,null,null,null,null,null,null,null,null,null,null,null,null,{"$f":"A637","v":0},{"$f":"G637","v":""}]
[null,"",null,null,null,null,"","","",null,"",null,null,null,null,null,null,null,null,null,null,null,null,null,null,null,null,null,null,null,null,null,null,null,null,null,null,null,null,null,null,null,null,null,null,null,null,null,null,null,null,null,null,null,null,null,null,null,null,null,null,null,null,null,null,null,null,null,null,null,null,null,null,null,null,null,null,0,""]
[null,"",null,null,null,null,"","","",null,"",null,null,null,null,null,null,null,null,null,null,null,null,null,null,null,null,null,null,null,null,null,null,null,null,null,null,null,null,null,null,null,null,null,null,null,null,null,null,null,null,null,null,null,null,null,null,null,null,null,null,null,null,null,null,null,null,null,null,null,null,null,null,null,null,null,null,0,""]
[null,"",null,null,null,null,"","","",null,"",null,null,null,null,null,null,null,null,null,null,null,null,null,null,null,null,null,null,null,null,null,null,null,null,null,null,null,null,null,null,null,null,null,null,null,null,null,null,null,null,null,null,null,null,null,null,null,null,null,null,null,null,null,null,null,null,null,null,null,null,null,null,null,null,null,null,0,""]
[null,"",null,null,null,null,"","","",null,"",null,null,null,null,null,null,null,null,null,null,null,null,null,null,null,null,null,null,null,null,null,null,null,null,null,null,null,null,null,null,null,null,null,null,null,null,null,null,null,null,null,null,null,null,null,null,null,null,null,null,null,null,null,null,null,null,null,null,null,null,null,null,null,null,null,null,0,""]
[null,"",null,null,null,null,"","","",null,"",null,null,null,null,null,null,null,null,null,null,null,null,null,null,null,null,null,null,null,null,null,null,null,null,null,null,null,null,null,null,null,null,null,null,null,null,null,null,null,null,null,null,null,null,null,null,null,null,null,null,null,null,null,null,null,null,null,null,null,null,null,null,null,null,null,null,0,""]
[null,"",null,null,null,null,"","",{"$f":"IF(J643=\"\",\"\",VLOOKUP(J643,nomi,2))","v":""},null,"",null,null,null,null,null,null,null,null,null,null,null,null,null,null,null,null,null,null,null,null,null,null,null,null,null,null,null,null,null,null,null,null,null,null,null,null,null,null,null,null,null,null,null,null,null,null,null,null,null,null,null,null,null,null,null,null,null,null,null,null,null,null,null,null,null,null,0,""]
[null,null,null,null,null,null,null,null,null,null,null,null,null,null,null,null,null,null,null,null,null,null,null,null,null,null,null,null,null,null,null,null,null,null,null,null,null,null,null,null,null,null,null,null,null,null,null,null,null,null,null,null,null,null,null,null,null,null,null,null,null,null,null,null,null,null,null,null,null,null,null,null,null,null,null,null,null,{"$f":"J636","v":0},{"$f":"H636","v":""}]
[null,null,null,null,null,null,null,null,null,null,null,null,null,null,null,null,null,null,null,null,null,null,null,null,null,null,null,null,null,null,null,null,null,null,null,null,null,null,null,null,null,null,null,null,null,null,null,null,null,null,null,null,null,null,null,null,null,null,null,null,null,null,null,null,null,null,null,null,null,null,null,null,null,null,null,null,null,0,""]
[null,null,null,null,null,null,null,null,null,null,null,null,null,null,null,null,null,null,null,null,null,null,null,null,null,null,null,null,null,null,null,null,null,null,null,null,null,null,null,null,null,null,null,null,null,null,null,null,null,null,null,null,null,null,null,null,null,null,null,null,null,null,null,null,null,null,null,null,null,null,null,null,null,null,null,null,null,0,""]
[null,null,null,null,null,null,null,null,null,null,null,null,null,null,null,null,null,null,null,null,null,null,null,null,null,null,null,null,null,null,null,null,null,null,null,null,null,null,null,null,null,null,null,null,null,null,null,null,null,null,null,null,null,null,null,null,null,null,null,null,null,null,null,null,null,null,null,null,null,null,null,null,null,null,null,null,null,0,""]
[null,null,null,null,null,null,null,null,null,null,null,null,null,null,null,null,null,null,null,null,null,null,null,null,null,null,null,null,null,null,null,null,null,null,null,null,null,null,null,null,null,null,null,null,null,null,null,null,null,null,null,null,null,null,null,null,null,null,null,null,null,null,null,null,null,null,null,null,null,null,null,null,null,null,null,null,null,0,""]
[null,null,null,null,null,null,null,null,null,null,null,null,null,null,null,null,null,null,null,null,null,null,null,null,null,null,null,null,null,null,null,null,null,null,null,null,null,null,null,null,null,null,null,null,null,null,null,null,null,null,null,null,null,null,null,null,null,null,null,null,null,null,null,null,null,null,null,null,null,null,null,null,null,null,null,null,null,0,""]
[null,null,null,null,null,null,null,null,null,null,null,null,null,null,null,null,null,null,null,null,null,null,null,null,null,null,null,null,null,null,null,null,null,null,null,null,null,null,null,null,null,null,null,null,null,null,null,null,null,null,null,null,null,null,null,null,null,null,null,null,null,null,null,null,null,null,null,null,null,null,null,null,null,null,null,null,null,0,""]
[null,null,null,null,null,null,null,null,null,null,null,null,null,null,null,null,null,null,null,null,null,null,null,null,null,null,null,null,null,null,null,null,null,null,null,null,null,null,null,null,null,null,null,null,null,null,null,null,null,null,null,null,null,null,null,null,null,null,null,null,null,null,null,null,null,null,null,null,null,null,null,null,null,null,null,null,null,0,""]
[]
[]
[]
[]
[]
[]
[]
[]
[]
[{"$f":"$A$1","v":"2019-07-06"},null,"Mano  #    25",null,null,null,"Dichiarante   "]
["N/S",null,"Contratto","Gioc. da","Att.","Punti NS","NS","EO","E/O",null,"Rank NS"]
[null,{"$f":"IF(A663=\"\",\"\",VLOOKUP(A663,nomi,2))","v":""},null,null,null,null,{"$f":"IF(A663=\"\",\"\",IF(F663=\"\",COUNT(J$663:J$670)-1,2*(COUNT(J$663:J$670)-K663)-COUNTIF(K$663:K$670,K663)+1))","v":""},{"$f":"IF(J663=\"\",\"\",2*(COUNT(J$663:J$670)-1)-G663)","v":""},{"$f":"IF(J663=\"\",\"\",VLOOKUP(J663,nomi,2))","v":""},null,{"$f":"IF(F663=\"\",\"\",RANK(F663,F$663:F$670))","v":""},null,null,null,null,null,null,null,null,null,null,null,null,null,null,null,null,null,null,null,null,null,null,null,null,null,null,null,null,null,null,null,null,null,null,null,null,null,null,null,null,null,null,null,null,null,null,null,null,null,null,null,null,null,null,null,null,null,null,null,null,null,null,null,null,null,null,{"$f":"A663","v":0},{"$f":"G663","v":""}]
[null,"",null,null,null,null,{"$f":"IF(A664=\"\",\"\",IF(F664=\"\",COUNT(J$663:J$670)-1,2*(COUNT(J$663:J$670)-K664)-COUNTIF(K$663:K$670,K664)+1))","v":""},{"$f":"IF(J664=\"\",\"\",2*(COUNT(J$663:J$670)-1)-G664)","v":""},"",null,{"$f":"IF(F664=\"\",\"\",RANK(F664,F$663:F$670))","v":""},null,null,null,null,null,null,null,null,null,null,null,null,null,null,null,null,null,null,null,null,null,null,null,null,null,null,null,null,null,null,null,null,null,null,null,null,null,null,null,null,null,null,null,null,null,null,null,null,null,null,null,null,null,null,null,null,null,null,null,null,null,null,null,null,null,null,{"$f":"A664","v":0},{"$f":"G664","v":""}]
[null,"",null,null,null,null,"","","",null,"",null,null,null,null,null,null,null,null,null,null,null,null,null,null,null,null,null,null,null,null,null,null,null,null,null,null,null,null,null,null,null,null,null,null,null,null,null,null,null,null,null,null,null,null,null,null,null,null,null,null,null,null,null,null,null,null,null,null,null,null,null,null,null,null,null,null,0,""]
[null,"",null,null,null,null,"","","",null,"",null,null,null,null,null,null,null,null,null,null,null,null,null,null,null,null,null,null,null,null,null,null,null,null,null,null,null,null,null,null,null,null,null,null,null,null,null,null,null,null,null,null,null,null,null,null,null,null,null,null,null,null,null,null,null,null,null,null,null,null,null,null,null,null,null,null,0,""]
[null,"",null,null,null,null,"","","",null,"",null,null,null,null,null,null,null,null,null,null,null,null,null,null,null,null,null,null,null,null,null,null,null,null,null,null,null,null,null,null,null,null,null,null,null,null,null,null,null,null,null,null,null,null,null,null,null,null,null,null,null,null,null,null,null,null,null,null,null,null,null,null,null,null,null,null,0,""]
[null,"",null,null,null,null,"","","",null,"",null,null,null,null,null,null,null,null,null,null,null,null,null,null,null,null,null,null,null,null,null,null,null,null,null,null,null,null,null,null,null,null,null,null,null,null,null,null,null,null,null,null,null,null,null,null,null,null,null,null,null,null,null,null,null,null,null,null,null,null,null,null,null,null,null,null,0,""]
[null,"",null,null,null,null,"","","",null,"",null,null,null,null,null,null,null,null,null,null,null,null,null,null,null,null,null,null,null,null,null,null,null,null,null,null,null,null,null,null,null,null,null,null,null,null,null,null,null,null,null,null,null,null,null,null,null,null,null,null,null,null,null,null,null,null,null,null,null,null,null,null,null,null,null,null,0,""]
[null,"",null,null,null,null,"","",{"$f":"IF(J670=\"\",\"\",VLOOKUP(J670,nomi,2))","v":""},null,"",null,null,null,null,null,null,null,null,null,null,null,null,null,null,null,null,null,null,null,null,null,null,null,null,null,null,null,null,null,null,null,null,null,null,null,null,null,null,null,null,null,null,null,null,null,null,null,null,null,null,null,null,null,null,null,null,null,null,null,null,null,null,null,null,null,null,0,""]
[null,null,null,null,null,null,null,null,null,null,null,null,null,null,null,null,null,null,null,null,null,null,null,null,null,null,null,null,null,null,null,null,null,null,null,null,null,null,null,null,null,null,null,null,null,null,null,null,null,null,null,null,null,null,null,null,null,null,null,null,null,null,null,null,null,null,null,null,null,null,null,null,null,null,null,null,null,{"$f":"J663","v":0},{"$f":"H663","v":""}]
[null,null,null,null,null,null,null,null,null,null,null,null,null,null,null,null,null,null,null,null,null,null,null,null,null,null,null,null,null,null,null,null,null,null,null,null,null,null,null,null,null,null,null,null,null,null,null,null,null,null,null,null,null,null,null,null,null,null,null,null,null,null,null,null,null,null,null,null,null,null,null,null,null,null,null,null,null,0,""]
[null,null,null,null,null,null,null,null,null,null,null,null,null,null,null,null,null,null,null,null,null,null,null,null,null,null,null,null,null,null,null,null,null,null,null,null,null,null,null,null,null,null,null,null,null,null,null,null,null,null,null,null,null,null,null,null,null,null,null,null,null,null,null,null,null,null,null,null,null,null,null,null,null,null,null,null,null,0,""]
[null,null,null,null,null,null,null,null,null,null,null,null,null,null,null,null,null,null,null,null,null,null,null,null,null,null,null,null,null,null,null,null,null,null,null,null,null,null,null,null,null,null,null,null,null,null,null,null,null,null,null,null,null,null,null,null,null,null,null,null,null,null,null,null,null,null,null,null,null,null,null,null,null,null,null,null,null,0,""]
[null,null,null,null,null,null,null,null,null,null,null,null,null,null,null,null,null,null,null,null,null,null,null,null,null,null,null,null,null,null,null,null,null,null,null,null,null,null,null,null,null,null,null,null,null,null,null,null,null,null,null,null,null,null,null,null,null,null,null,null,null,null,null,null,null,null,null,null,null,null,null,null,null,null,null,null,null,0,""]
[null,null,null,null,null,null,null,null,null,null,null,null,null,null,null,null,null,null,null,null,null,null,null,null,null,null,null,null,null,null,null,null,null,null,null,null,null,null,null,null,null,null,null,null,null,null,null,null,null,null,null,null,null,null,null,null,null,null,null,null,null,null,null,null,null,null,null,null,null,null,null,null,null,null,null,null,null,0,""]
[null,null,null,null,null,null,null,null,null,null,null,null,null,null,null,null,null,null,null,null,null,null,null,null,null,null,null,null,null,null,null,null,null,null,null,null,null,null,null,null,null,null,null,null,null,null,null,null,null,null,null,null,null,null,null,null,null,null,null,null,null,null,null,null,null,null,null,null,null,null,null,null,null,null,null,null,null,0,""]
[null,null,null,null,null,null,null,null,null,null,null,null,null,null,null,null,null,null,null,null,null,null,null,null,null,null,null,null,null,null,null,null,null,null,null,null,null,null,null,null,null,null,null,null,null,null,null,null,null,null,null,null,null,null,null,null,null,null,null,null,null,null,null,null,null,null,null,null,null,null,null,null,null,null,null,null,null,0,""]
[]
[]
[]
[]
[]
[]
[]
[]
[]
[]
[{"$f":"$A$1","v":"2019-07-06"},null,"Mano  #    26",null,null,null,"Dichiarante   "]
["N/S",null,"Contratto","Gioc. da","Att.","Punti NS","NS","EO","E/O",null,"Rank NS"]
[null,{"$f":"IF(A691=\"\",\"\",VLOOKUP(A691,nomi,2))","v":""},null,null,null,null,{"$f":"IF(A691=\"\",\"\",IF(F691=\"\",COUNT(J$691:J$698)-1,2*(COUNT(J$691:J$698)-K691)-COUNTIF(K$691:K$698,K691)+1))","v":""},{"$f":"IF(J691=\"\",\"\",2*(COUNT(J$691:J$698)-1)-G691)","v":""},{"$f":"IF(J691=\"\",\"\",VLOOKUP(J691,nomi,2))","v":""},null,{"$f":"IF(F691=\"\",\"\",RANK(F691,F$691:F$698))","v":""},null,null,null,null,null,null,null,null,null,null,null,null,null,null,null,null,null,null,null,null,null,null,null,null,null,null,null,null,null,null,null,null,null,null,null,null,null,null,null,null,null,null,null,null,null,null,null,null,null,null,null,null,null,null,null,null,null,null,null,null,null,null,null,null,null,null,{"$f":"A691","v":0},{"$f":"G691","v":""}]
[null,"",null,null,null,null,{"$f":"IF(A692=\"\",\"\",IF(F692=\"\",COUNT(J$691:J$698)-1,2*(COUNT(J$691:J$698)-K692)-COUNTIF(K$691:K$698,K692)+1))","v":""},{"$f":"IF(J692=\"\",\"\",2*(COUNT(J$691:J$698)-1)-G692)","v":""},"",null,{"$f":"IF(F692=\"\",\"\",RANK(F692,F$691:F$698))","v":""},null,null,null,null,null,null,null,null,null,null,null,null,null,null,null,null,null,null,null,null,null,null,null,null,null,null,null,null,null,null,null,null,null,null,null,null,null,null,null,null,null,null,null,null,null,null,null,null,null,null,null,null,null,null,null,null,null,null,null,null,null,null,null,null,null,null,{"$f":"A692","v":0},{"$f":"G692","v":""}]
[null,"",null,null,null,null,"","","",null,"",null,null,null,null,null,null,null,null,null,null,null,null,null,null,null,null,null,null,null,null,null,null,null,null,null,null,null,null,null,null,null,null,null,null,null,null,null,null,null,null,null,null,null,null,null,null,null,null,null,null,null,null,null,null,null,null,null,null,null,null,null,null,null,null,null,null,0,""]
[null,"",null,null,null,null,"","","",null,"",null,null,null,null,null,null,null,null,null,null,null,null,null,null,null,null,null,null,null,null,null,null,null,null,null,null,null,null,null,null,null,null,null,null,null,null,null,null,null,null,null,null,null,null,null,null,null,null,null,null,null,null,null,null,null,null,null,null,null,null,null,null,null,null,null,null,0,""]
[null,"",null,null,null,null,"","","",null,"",null,null,null,null,null,null,null,null,null,null,null,null,null,null,null,null,null,null,null,null,null,null,null,null,null,null,null,null,null,null,null,null,null,null,null,null,null,null,null,null,null,null,null,null,null,null,null,null,null,null,null,null,null,null,null,null,null,null,null,null,null,null,null,null,null,null,0,""]
[null,"",null,null,null,null,"","","",null,"",null,null,null,null,null,null,null,null,null,null,null,null,null,null,null,null,null,null,null,null,null,null,null,null,null,null,null,null,null,null,null,null,null,null,null,null,null,null,null,null,null,null,null,null,null,null,null,null,null,null,null,null,null,null,null,null,null,null,null,null,null,null,null,null,null,null,0,""]
[null,"",null,null,null,null,"","","",null,"",null,null,null,null,null,null,null,null,null,null,null,null,null,null,null,null,null,null,null,null,null,null,null,null,null,null,null,null,null,null,null,null,null,null,null,null,null,null,null,null,null,null,null,null,null,null,null,null,null,null,null,null,null,null,null,null,null,null,null,null,null,null,null,null,null,null,0,""]
[null,"",null,null,null,null,"","",{"$f":"IF(J698=\"\",\"\",VLOOKUP(J698,nomi,2))","v":""},null,"",null,null,null,null,null,null,null,null,null,null,null,null,null,null,null,null,null,null,null,null,null,null,null,null,null,null,null,null,null,null,null,null,null,null,null,null,null,null,null,null,null,null,null,null,null,null,null,null,null,null,null,null,null,null,null,null,null,null,null,null,null,null,null,null,null,null,0,""]
[null,null,null,null,null,null,null,null,null,null,null,null,null,null,null,null,null,null,null,null,null,null,null,null,null,null,null,null,null,null,null,null,null,null,null,null,null,null,null,null,null,null,null,null,null,null,null,null,null,null,null,null,null,null,null,null,null,null,null,null,null,null,null,null,null,null,null,null,null,null,null,null,null,null,null,null,null,{"$f":"J691","v":0},{"$f":"H691","v":""}]
[null,null,null,null,null,null,null,null,null,null,null,null,null,null,null,null,null,null,null,null,null,null,null,null,null,null,null,null,null,null,null,null,null,null,null,null,null,null,null,null,null,null,null,null,null,null,null,null,null,null,null,null,null,null,null,null,null,null,null,null,null,null,null,null,null,null,null,null,null,null,null,null,null,null,null,null,null,0,""]
[null,null,null,null,null,null,null,null,null,null,null,null,null,null,null,null,null,null,null,null,null,null,null,null,null,null,null,null,null,null,null,null,null,null,null,null,null,null,null,null,null,null,null,null,null,null,null,null,null,null,null,null,null,null,null,null,null,null,null,null,null,null,null,null,null,null,null,null,null,null,null,null,null,null,null,null,null,0,""]
[null,null,null,null,null,null,null,null,null,null,null,null,null,null,null,null,null,null,null,null,null,null,null,null,null,null,null,null,null,null,null,null,null,null,null,null,null,null,null,null,null,null,null,null,null,null,null,null,null,null,null,null,null,null,null,null,null,null,null,null,null,null,null,null,null,null,null,null,null,null,null,null,null,null,null,null,null,0,""]
[null,null,null,null,null,null,null,null,null,null,null,null,null,null,null,null,null,null,null,null,null,null,null,null,null,null,null,null,null,null,null,null,null,null,null,null,null,null,null,null,null,null,null,null,null,null,null,null,null,null,null,null,null,null,null,null,null,null,null,null,null,null,null,null,null,null,null,null,null,null,null,null,null,null,null,null,null,0,""]
[null,null,null,null,null,null,null,null,null,null,null,null,null,null,null,null,null,null,null,null,null,null,null,null,null,null,null,null,null,null,null,null,null,null,null,null,null,null,null,null,null,null,null,null,null,null,null,null,null,null,null,null,null,null,null,null,null,null,null,null,null,null,null,null,null,null,null,null,null,null,null,null,null,null,null,null,null,0,""]
[null,null,null,null,null,null,null,null,null,null,null,null,null,null,null,null,null,null,null,null,null,null,null,null,null,null,null,null,null,null,null,null,null,null,null,null,null,null,null,null,null,null,null,null,null,null,null,null,null,null,null,null,null,null,null,null,null,null,null,null,null,null,null,null,null,null,null,null,null,null,null,null,null,null,null,null,null,0,""]
[null,null,null,null,null,null,null,null,null,null,null,null,null,null,null,null,null,null,null,null,null,null,null,null,null,null,null,null,null,null,null,null,null,null,null,null,null,null,null,null,null,null,null,null,null,null,null,null,null,null,null,null,null,null,null,null,null,null,null,null,null,null,null,null,null,null,null,null,null,null,null,null,null,null,null,null,null,0,""]
[]
[]
[]
[]
[]
[]
[]
[]
[]
[{"$f":"$A$1","v":"2019-07-06"},null,"Mano  #    27",null,null,null,"Dichiarante   "]
["N/S",null,"Contratto","Gioc. da","Att.","Punti NS","NS","EO","E/O",null,"Rank NS"]
[null,{"$f":"IF(A718=\"\",\"\",VLOOKUP(A718,nomi,2))","v":""},null,null,null,null,{"$f":"IF(A718=\"\",\"\",IF(F718=\"\",COUNT(J$718:J$725)-1,2*(COUNT(J$718:J$725)-K718)-COUNTIF(K$718:K$725,K718)+1))","v":""},{"$f":"IF(J718=\"\",\"\",2*(COUNT(J$718:J$725)-1)-G718)","v":""},{"$f":"IF(J718=\"\",\"\",VLOOKUP(J718,nomi,2))","v":""},null,{"$f":"IF(F718=\"\",\"\",RANK(F718,F$718:F$725))","v":""},null,null,null,null,null,null,null,null,null,null,null,null,null,null,null,null,null,null,null,null,null,null,null,null,null,null,null,null,null,null,null,null,null,null,null,null,null,null,null,null,null,null,null,null,null,null,null,null,null,null,null,null,null,null,null,null,null,null,null,null,null,null,null,null,null,null,{"$f":"A718","v":0},{"$f":"G718","v":""}]
[null,"",null,null,null,null,{"$f":"IF(A719=\"\",\"\",IF(F719=\"\",COUNT(J$718:J$725)-1,2*(COUNT(J$718:J$725)-K719)-COUNTIF(K$718:K$725,K719)+1))","v":""},{"$f":"IF(J719=\"\",\"\",2*(COUNT(J$718:J$725)-1)-G719)","v":""},"",null,{"$f":"IF(F719=\"\",\"\",RANK(F719,F$718:F$725))","v":""},null,null,null,null,null,null,null,null,null,null,null,null,null,null,null,null,null,null,null,null,null,null,null,null,null,null,null,null,null,null,null,null,null,null,null,null,null,null,null,null,null,null,null,null,null,null,null,null,null,null,null,null,null,null,null,null,null,null,null,null,null,null,null,null,null,null,{"$f":"A719","v":0},{"$f":"G719","v":""}]
[null,"",null,null,null,null,"","","",null,"",null,null,null,null,null,null,null,null,null,null,null,null,null,null,null,null,null,null,null,null,null,null,null,null,null,null,null,null,null,null,null,null,null,null,null,null,null,null,null,null,null,null,null,null,null,null,null,null,null,null,null,null,null,null,null,null,null,null,null,null,null,null,null,null,null,null,0,""]
[null,"",null,null,null,null,"","","",null,"",null,null,null,null,null,null,null,null,null,null,null,null,null,null,null,null,null,null,null,null,null,null,null,null,null,null,null,null,null,null,null,null,null,null,null,null,null,null,null,null,null,null,null,null,null,null,null,null,null,null,null,null,null,null,null,null,null,null,null,null,null,null,null,null,null,null,0,""]
[null,"",null,null,null,null,"","","",null,"",null,null,null,null,null,null,null,null,null,null,null,null,null,null,null,null,null,null,null,null,null,null,null,null,null,null,null,null,null,null,null,null,null,null,null,null,null,null,null,null,null,null,null,null,null,null,null,null,null,null,null,null,null,null,null,null,null,null,null,null,null,null,null,null,null,null,0,""]
[null,"",null,null,null,null,"","","",null,"",null,null,null,null,null,null,null,null,null,null,null,null,null,null,null,null,null,null,null,null,null,null,null,null,null,null,null,null,null,null,null,null,null,null,null,null,null,null,null,null,null,null,null,null,null,null,null,null,null,null,null,null,null,null,null,null,null,null,null,null,null,null,null,null,null,null,0,""]
[null,"",null,null,null,null,"","","",null,"",null,null,null,null,null,null,null,null,null,null,null,null,null,null,null,null,null,null,null,null,null,null,null,null,null,null,null,null,null,null,null,null,null,null,null,null,null,null,null,null,null,null,null,null,null,null,null,null,null,null,null,null,null,null,null,null,null,null,null,null,null,null,null,null,null,null,0,""]
[null,"",null,null,null,null,"","",{"$f":"IF(J725=\"\",\"\",VLOOKUP(J725,nomi,2))","v":""},null,"",null,null,null,null,null,null,null,null,null,null,null,null,null,null,null,null,null,null,null,null,null,null,null,null,null,null,null,null,null,null,null,null,null,null,null,null,null,null,null,null,null,null,null,null,null,null,null,null,null,null,null,null,null,null,null,null,null,null,null,null,null,null,null,null,null,null,0,""]
[null,null,null,null,null,null,null,null,null,null,null,null,null,null,null,null,null,null,null,null,null,null,null,null,null,null,null,null,null,null,null,null,null,null,null,null,null,null,null,null,null,null,null,null,null,null,null,null,null,null,null,null,null,null,null,null,null,null,null,null,null,null,null,null,null,null,null,null,null,null,null,null,null,null,null,null,null,{"$f":"J718","v":0},{"$f":"H718","v":""}]
[null,null,null,null,null,null,null,null,null,null,null,null,null,null,null,null,null,null,null,null,null,null,null,null,null,null,null,null,null,null,null,null,null,null,null,null,null,null,null,null,null,null,null,null,null,null,null,null,null,null,null,null,null,null,null,null,null,null,null,null,null,null,null,null,null,null,null,null,null,null,null,null,null,null,null,null,null,0,""]
[null,null,null,null,null,null,null,null,null,null,null,null,null,null,null,null,null,null,null,null,null,null,null,null,null,null,null,null,null,null,null,null,null,null,null,null,null,null,null,null,null,null,null,null,null,null,null,null,null,null,null,null,null,null,null,null,null,null,null,null,null,null,null,null,null,null,null,null,null,null,null,null,null,null,null,null,null,0,""]
[null,null,null,null,null,null,null,null,null,null,null,null,null,null,null,null,null,null,null,null,null,null,null,null,null,null,null,null,null,null,null,null,null,null,null,null,null,null,null,null,null,null,null,null,null,null,null,null,null,null,null,null,null,null,null,null,null,null,null,null,null,null,null,null,null,null,null,null,null,null,null,null,null,null,null,null,null,0,""]
[null,null,null,null,null,null,null,null,null,null,null,null,null,null,null,null,null,null,null,null,null,null,null,null,null,null,null,null,null,null,null,null,null,null,null,null,null,null,null,null,null,null,null,null,null,null,null,null,null,null,null,null,null,null,null,null,null,null,null,null,null,null,null,null,null,null,null,null,null,null,null,null,null,null,null,null,null,0,""]
[null,null,null,null,null,null,null,null,null,null,null,null,null,null,null,null,null,null,null,null,null,null,null,null,null,null,null,null,null,null,null,null,null,null,null,null,null,null,null,null,null,null,null,null,null,null,null,null,null,null,null,null,null,null,null,null,null,null,null,null,null,null,null,null,null,null,null,null,null,null,null,null,null,null,null,null,null,0,""]
[null,null,null,null,null,null,null,null,null,null,null,null,null,null,null,null,null,null,null,null,null,null,null,null,null,null,null,null,null,null,null,null,null,null,null,null,null,null,null,null,null,null,null,null,null,null,null,null,null,null,null,null,null,null,null,null,null,null,null,null,null,null,null,null,null,null,null,null,null,null,null,null,null,null,null,null,null,0,""]
[null,null,null,null,null,null,null,null,null,null,null,null,null,null,null,null,null,null,null,null,null,null,null,null,null,null,null,null,null,null,null,null,null,null,null,null,null,null,null,null,null,null,null,null,null,null,null,null,null,null,null,null,null,null,null,null,null,null,null,null,null,null,null,null,null,null,null,null,null,null,null,null,null,null,null,null,null,0,""]
[]
[]
[]
[]
[]
[]
[]
[]
[]
[]
[{"$f":"$A$1","v":"2019-07-06"},null,"Mano  #    28",null,null,null,"Dichiarante   "]
["N/S",null,"Contratto","Gioc. da","Att.","Punti NS","NS","EO","E/O",null,"Rank NS"]
[null,{"$f":"IF(A746=\"\",\"\",VLOOKUP(A746,nomi,2))","v":""},null,null,null,null,{"$f":"IF(A746=\"\",\"\",IF(F746=\"\",COUNT(J$746:J$753)-1,2*(COUNT(J$746:J$753)-K746)-COUNTIF(K$746:K$753,K746)+1))","v":""},{"$f":"IF(J746=\"\",\"\",2*(COUNT(J$746:J$753)-1)-G746)","v":""},{"$f":"IF(J746=\"\",\"\",VLOOKUP(J746,nomi,2))","v":""},null,{"$f":"IF(F746=\"\",\"\",RANK(F746,F$746:F$753))","v":""},null,null,null,null,null,null,null,null,null,null,null,null,null,null,null,null,null,null,null,null,null,null,null,null,null,null,null,null,null,null,null,null,null,null,null,null,null,null,null,null,null,null,null,null,null,null,null,null,null,null,null,null,null,null,null,null,null,null,null,null,null,null,null,null,null,null,{"$f":"A746","v":0},{"$f":"G746","v":""}]
[null,"",null,null,null,null,{"$f":"IF(A747=\"\",\"\",IF(F747=\"\",COUNT(J$746:J$753)-1,2*(COUNT(J$746:J$753)-K747)-COUNTIF(K$746:K$753,K747)+1))","v":""},{"$f":"IF(J747=\"\",\"\",2*(COUNT(J$746:J$753)-1)-G747)","v":""},"",null,{"$f":"IF(F747=\"\",\"\",RANK(F747,F$746:F$753))","v":""},null,null,null,null,null,null,null,null,null,null,null,null,null,null,null,null,null,null,null,null,null,null,null,null,null,null,null,null,null,null,null,null,null,null,null,null,null,null,null,null,null,null,null,null,null,null,null,null,null,null,null,null,null,null,null,null,null,null,null,null,null,null,null,null,null,null,{"$f":"A747","v":0},{"$f":"G747","v":""}]
[null,"",null,null,null,null,"","","",null,"",null,null,null,null,null,null,null,null,null,null,null,null,null,null,null,null,null,null,null,null,null,null,null,null,null,null,null,null,null,null,null,null,null,null,null,null,null,null,null,null,null,null,null,null,null,null,null,null,null,null,null,null,null,null,null,null,null,null,null,null,null,null,null,null,null,null,0,""]
[null,"",null,null,null,null,"","","",null,"",null,null,null,null,null,null,null,null,null,null,null,null,null,null,null,null,null,null,null,null,null,null,null,null,null,null,null,null,null,null,null,null,null,null,null,null,null,null,null,null,null,null,null,null,null,null,null,null,null,null,null,null,null,null,null,null,null,null,null,null,null,null,null,null,null,null,0,""]
[null,"",null,null,null,null,"","","",null,"",null,null,null,null,null,null,null,null,null,null,null,null,null,null,null,null,null,null,null,null,null,null,null,null,null,null,null,null,null,null,null,null,null,null,null,null,null,null,null,null,null,null,null,null,null,null,null,null,null,null,null,null,null,null,null,null,null,null,null,null,null,null,null,null,null,null,0,""]
[null,"",null,null,null,null,"","","",null,"",null,null,null,null,null,null,null,null,null,null,null,null,null,null,null,null,null,null,null,null,null,null,null,null,null,null,null,null,null,null,null,null,null,null,null,null,null,null,null,null,null,null,null,null,null,null,null,null,null,null,null,null,null,null,null,null,null,null,null,null,null,null,null,null,null,null,0,""]
[null,"",null,null,null,null,"","","",null,"",null,null,null,null,null,null,null,null,null,null,null,null,null,null,null,null,null,null,null,null,null,null,null,null,null,null,null,null,null,null,null,null,null,null,null,null,null,null,null,null,null,null,null,null,null,null,null,null,null,null,null,null,null,null,null,null,null,null,null,null,null,null,null,null,null,null,0,""]
[null,"",null,null,null,null,"","",{"$f":"IF(J753=\"\",\"\",VLOOKUP(J753,nomi,2))","v":""},null,"",null,null,null,null,null,null,null,null,null,null,null,null,null,null,null,null,null,null,null,null,null,null,null,null,null,null,null,null,null,null,null,null,null,null,null,null,null,null,null,null,null,null,null,null,null,null,null,null,null,null,null,null,null,null,null,null,null,null,null,null,null,null,null,null,null,null,0,""]
[null,null,null,null,null,null,null,null,null,null,null,null,null,null,null,null,null,null,null,null,null,null,null,null,null,null,null,null,null,null,null,null,null,null,null,null,null,null,null,null,null,null,null,null,null,null,null,null,null,null,null,null,null,null,null,null,null,null,null,null,null,null,null,null,null,null,null,null,null,null,null,null,null,null,null,null,null,{"$f":"J746","v":0},{"$f":"H746","v":""}]
[null,null,null,null,null,null,null,null,null,null,null,null,null,null,null,null,null,null,null,null,null,null,null,null,null,null,null,null,null,null,null,null,null,null,null,null,null,null,null,null,null,null,null,null,null,null,null,null,null,null,null,null,null,null,null,null,null,null,null,null,null,null,null,null,null,null,null,null,null,null,null,null,null,null,null,null,null,0,""]
[null,null,null,null,null,null,null,null,null,null,null,null,null,null,null,null,null,null,null,null,null,null,null,null,null,null,null,null,null,null,null,null,null,null,null,null,null,null,null,null,null,null,null,null,null,null,null,null,null,null,null,null,null,null,null,null,null,null,null,null,null,null,null,null,null,null,null,null,null,null,null,null,null,null,null,null,null,0,""]
[null,null,null,null,null,null,null,null,null,null,null,null,null,null,null,null,null,null,null,null,null,null,null,null,null,null,null,null,null,null,null,null,null,null,null,null,null,null,null,null,null,null,null,null,null,null,null,null,null,null,null,null,null,null,null,null,null,null,null,null,null,null,null,null,null,null,null,null,null,null,null,null,null,null,null,null,null,0,""]
[null,null,null,null,null,null,null,null,null,null,null,null,null,null,null,null,null,null,null,null,null,null,null,null,null,null,null,null,null,null,null,null,null,null,null,null,null,null,null,null,null,null,null,null,null,null,null,null,null,null,null,null,null,null,null,null,null,null,null,null,null,null,null,null,null,null,null,null,null,null,null,null,null,null,null,null,null,0,""]
[null,null,null,null,null,null,null,null,null,null,null,null,null,null,null,null,null,null,null,null,null,null,null,null,null,null,null,null,null,null,null,null,null,null,null,null,null,null,null,null,null,null,null,null,null,null,null,null,null,null,null,null,null,null,null,null,null,null,null,null,null,null,null,null,null,null,null,null,null,null,null,null,null,null,null,null,null,0,""]
[null,null,null,null,null,null,null,null,null,null,null,null,null,null,null,null,null,null,null,null,null,null,null,null,null,null,null,null,null,null,null,null,null,null,null,null,null,null,null,null,null,null,null,null,null,null,null,null,null,null,null,null,null,null,null,null,null,null,null,null,null,null,null,null,null,null,null,null,null,null,null,null,null,null,null,null,null,0,""]
[null,null,null,null,null,null,null,null,null,null,null,null,null,null,null,null,null,null,null,null,null,null,null,null,null,null,null,null,null,null,null,null,null,null,null,null,null,null,null,null,null,null,null,null,null,null,null,null,null,null,null,null,null,null,null,null,null,null,null,null,null,null,null,null,null,null,null,null,null,null,null,null,null,null,null,null,null,0,""]
[]
[]
[]
[]
[]
[]
[]
[]
[]
[{"$f":"$A$1","v":"2019-07-06"},null,"Mano  #    29",null,null,null,"Dichiarante   "]
["N/S",null,"Contratto","Gioc. da","Att.","Punti NS","NS","EO","E/O",null,"Rank NS"]
[null,{"$f":"IF(A773=\"\",\"\",VLOOKUP(A773,nomi,2))","v":""},null,null,null,null,{"$f":"IF(A773=\"\",\"\",IF(F773=\"\",COUNT(J$773:J$780)-1,2*(COUNT(J$773:J$780)-K773)-COUNTIF(K$773:K$780,K773)+1))","v":""},{"$f":"IF(J773=\"\",\"\",2*(COUNT(J$773:J$780)-1)-G773)","v":""},{"$f":"IF(J773=\"\",\"\",VLOOKUP(J773,nomi,2))","v":""},null,{"$f":"IF(F773=\"\",\"\",RANK(F773,F$773:F$780))","v":""},null,null,null,null,null,null,null,null,null,null,null,null,null,null,null,null,null,null,null,null,null,null,null,null,null,null,null,null,null,null,null,null,null,null,null,null,null,null,null,null,null,null,null,null,null,null,null,null,null,null,null,null,null,null,null,null,null,null,null,null,null,null,null,null,null,null,{"$f":"A773","v":0},{"$f":"G773","v":""}]
[null,"",null,null,null,null,{"$f":"IF(A774=\"\",\"\",IF(F774=\"\",COUNT(J$773:J$780)-1,2*(COUNT(J$773:J$780)-K774)-COUNTIF(K$773:K$780,K774)+1))","v":""},{"$f":"IF(J774=\"\",\"\",2*(COUNT(J$773:J$780)-1)-G774)","v":""},"",null,{"$f":"IF(F774=\"\",\"\",RANK(F774,F$773:F$780))","v":""},null,null,null,null,null,null,null,null,null,null,null,null,null,null,null,null,null,null,null,null,null,null,null,null,null,null,null,null,null,null,null,null,null,null,null,null,null,null,null,null,null,null,null,null,null,null,null,null,null,null,null,null,null,null,null,null,null,null,null,null,null,null,null,null,null,null,{"$f":"A774","v":0},{"$f":"G774","v":""}]
[null,"",null,null,null,null,"","","",null,"",null,null,null,null,null,null,null,null,null,null,null,null,null,null,null,null,null,null,null,null,null,null,null,null,null,null,null,null,null,null,null,null,null,null,null,null,null,null,null,null,null,null,null,null,null,null,null,null,null,null,null,null,null,null,null,null,null,null,null,null,null,null,null,null,null,null,0,""]
[null,"",null,null,null,null,"","","",null,"",null,null,null,null,null,null,null,null,null,null,null,null,null,null,null,null,null,null,null,null,null,null,null,null,null,null,null,null,null,null,null,null,null,null,null,null,null,null,null,null,null,null,null,null,null,null,null,null,null,null,null,null,null,null,null,null,null,null,null,null,null,null,null,null,null,null,0,""]
[null,"",null,null,null,null,"","","",null,"",null,null,null,null,null,null,null,null,null,null,null,null,null,null,null,null,null,null,null,null,null,null,null,null,null,null,null,null,null,null,null,null,null,null,null,null,null,null,null,null,null,null,null,null,null,null,null,null,null,null,null,null,null,null,null,null,null,null,null,null,null,null,null,null,null,null,0,""]
[null,"",null,null,null,null,"","","",null,"",null,null,null,null,null,null,null,null,null,null,null,null,null,null,null,null,null,null,null,null,null,null,null,null,null,null,null,null,null,null,null,null,null,null,null,null,null,null,null,null,null,null,null,null,null,null,null,null,null,null,null,null,null,null,null,null,null,null,null,null,null,null,null,null,null,null,0,""]
[null,"",null,null,null,null,"","","",null,"",null,null,null,null,null,null,null,null,null,null,null,null,null,null,null,null,null,null,null,null,null,null,null,null,null,null,null,null,null,null,null,null,null,null,null,null,null,null,null,null,null,null,null,null,null,null,null,null,null,null,null,null,null,null,null,null,null,null,null,null,null,null,null,null,null,null,0,""]
[null,"",null,null,null,null,"","","",null,"",null,null,null,null,null,null,null,null,null,null,null,null,null,null,null,null,null,null,null,null,null,null,null,null,null,null,null,null,null,null,null,null,null,null,null,null,null,null,null,null,null,null,null,null,null,null,null,null,null,null,null,null,null,null,null,null,null,null,null,null,null,null,null,null,null,null,0,""]
[null,null,null,null,null,null,null,null,null,null,null,null,null,null,null,null,null,null,null,null,null,null,null,null,null,null,null,null,null,null,null,null,null,null,null,null,null,null,null,null,null,null,null,null,null,null,null,null,null,null,null,null,null,null,null,null,null,null,null,null,null,null,null,null,null,null,null,null,null,null,null,null,null,null,null,null,null,{"$f":"J773","v":0},{"$f":"H773","v":""}]
[null,null,null,null,null,null,null,null,null,null,null,null,null,null,null,null,null,null,null,null,null,null,null,null,null,null,null,null,null,null,null,null,null,null,null,null,null,null,null,null,null,null,null,null,null,null,null,null,null,null,null,null,null,null,null,null,null,null,null,null,null,null,null,null,null,null,null,null,null,null,null,null,null,null,null,null,null,0,""]
[null,null,null,null,null,null,null,null,null,null,null,null,null,null,null,null,null,null,null,null,null,null,null,null,null,null,null,null,null,null,null,null,null,null,null,null,null,null,null,null,null,null,null,null,null,null,null,null,null,null,null,null,null,null,null,null,null,null,null,null,null,null,null,null,null,null,null,null,null,null,null,null,null,null,null,null,null,0,""]
[null,null,null,null,null,null,null,null,null,null,null,null,null,null,null,null,null,null,null,null,null,null,null,null,null,null,null,null,null,null,null,null,null,null,null,null,null,null,null,null,null,null,null,null,null,null,null,null,null,null,null,null,null,null,null,null,null,null,null,null,null,null,null,null,null,null,null,null,null,null,null,null,null,null,null,null,null,0,""]
[null,null,null,null,null,null,null,null,null,null,null,null,null,null,null,null,null,null,null,null,null,null,null,null,null,null,null,null,null,null,null,null,null,null,null,null,null,null,null,null,null,null,null,null,null,null,null,null,null,null,null,null,null,null,null,null,null,null,null,null,null,null,null,null,null,null,null,null,null,null,null,null,null,null,null,null,null,0,""]
[null,null,null,null,null,null,null,null,null,null,null,null,null,null,null,null,null,null,null,null,null,null,null,null,null,null,null,null,null,null,null,null,null,null,null,null,null,null,null,null,null,null,null,null,null,null,null,null,null,null,null,null,null,null,null,null,null,null,null,null,null,null,null,null,null,null,null,null,null,null,null,null,null,null,null,null,null,0,""]
[null,null,null,null,null,null,null,null,null,null,null,null,null,null,null,null,null,null,null,null,null,null,null,null,null,null,null,null,null,null,null,null,null,null,null,null,null,null,null,null,null,null,null,null,null,null,null,null,null,null,null,null,null,null,null,null,null,null,null,null,null,null,null,null,null,null,null,null,null,null,null,null,null,null,null,null,null,0,""]
[null,null,null,null,null,null,null,null,null,null,null,null,null,null,null,null,null,null,null,null,null,null,null,null,null,null,null,null,null,null,null,null,null,null,null,null,null,null,null,null,null,null,null,null,null,null,null,null,null,null,null,null,null,null,null,null,null,null,null,null,null,null,null,null,null,null,null,null,null,null,null,null,null,null,null,null,null,0,""]
[]
[]
[]
[]
[]
[]
[]
[]
[]
[]
[{"$f":"$A$1","v":"2019-07-06"},null,"Mano  #    30",null,null,null,"Dichiarante   "]
["N/S",null,"Contratto","Gioc. da","Att.","Punti NS","NS","EO","E/O",null,"Rank NS"]
[null,{"$f":"IF(A801=\"\",\"\",VLOOKUP(A801,nomi,2))","v":""},null,null,null,null,{"$f":"IF(A801=\"\",\"\",IF(F801=\"\",COUNT(J$801:J$808)-1,2*(COUNT(J$801:J$808)-K801)-COUNTIF(K$801:K$808,K801)+1))","v":""},{"$f":"IF(J801=\"\",\"\",2*(COUNT(J$801:J$808)-1)-G801)","v":""},{"$f":"IF(J801=\"\",\"\",VLOOKUP(J801,nomi,2))","v":""},null,{"$f":"IF(F801=\"\",\"\",RANK(F801,F$801:F$808))","v":""},null,null,null,null,null,null,null,null,null,null,null,null,null,null,null,null,null,null,null,null,null,null,null,null,null,null,null,null,null,null,null,null,null,null,null,null,null,null,null,null,null,null,null,null,null,null,null,null,null,null,null,null,null,null,null,null,null,null,null,null,null,null,null,null,null,null,{"$f":"A801","v":0},{"$f":"G801","v":""}]
[null,"",null,null,null,null,{"$f":"IF(A802=\"\",\"\",IF(F802=\"\",COUNT(J$801:J$808)-1,2*(COUNT(J$801:J$808)-K802)-COUNTIF(K$801:K$808,K802)+1))","v":""},{"$f":"IF(J802=\"\",\"\",2*(COUNT(J$801:J$808)-1)-G802)","v":""},"",null,{"$f":"IF(F802=\"\",\"\",RANK(F802,F$801:F$808))","v":""},null,null,null,null,null,null,null,null,null,null,null,null,null,null,null,null,null,null,null,null,null,null,null,null,null,null,null,null,null,null,null,null,null,null,null,null,null,null,null,null,null,null,null,null,null,null,null,null,null,null,null,null,null,null,null,null,null,null,null,null,null,null,null,null,null,null,{"$f":"A802","v":0},{"$f":"G802","v":""}]
[null,"",null,null,null,null,"","","",null,"",null,null,null,null,null,null,null,null,null,null,null,null,null,null,null,null,null,null,null,null,null,null,null,null,null,null,null,null,null,null,null,null,null,null,null,null,null,null,null,null,null,null,null,null,null,null,null,null,null,null,null,null,null,null,null,null,null,null,null,null,null,null,null,null,null,null,0,""]
[null,"",null,null,null,null,"","","",null,"",null,null,null,null,null,null,null,null,null,null,null,null,null,null,null,null,null,null,null,null,null,null,null,null,null,null,null,null,null,null,null,null,null,null,null,null,null,null,null,null,null,null,null,null,null,null,null,null,null,null,null,null,null,null,null,null,null,null,null,null,null,null,null,null,null,null,0,""]
[null,"",null,null,null,null,"","","",null,"",null,null,null,null,null,null,null,null,null,null,null,null,null,null,null,null,null,null,null,null,null,null,null,null,null,null,null,null,null,null,null,null,null,null,null,null,null,null,null,null,null,null,null,null,null,null,null,null,null,null,null,null,null,null,null,null,null,null,null,null,null,null,null,null,null,null,0,""]
[null,"",null,null,null,null,"","","",null,"",null,null,null,null,null,null,null,null,null,null,null,null,null,null,null,null,null,null,null,null,null,null,null,null,null,null,null,null,null,null,null,null,null,null,null,null,null,null,null,null,null,null,null,null,null,null,null,null,null,null,null,null,null,null,null,null,null,null,null,null,null,null,null,null,null,null,0,""]
[null,"",null,null,null,null,"","","",null,"",null,null,null,null,null,null,null,null,null,null,null,null,null,null,null,null,null,null,null,null,null,null,null,null,null,null,null,null,null,null,null,null,null,null,null,null,null,null,null,null,null,null,null,null,null,null,null,null,null,null,null,null,null,null,null,null,null,null,null,null,null,null,null,null,null,null,0,""]
[null,"",null,null,null,null,"","","",null,"",null,null,null,null,null,null,null,null,null,null,null,null,null,null,null,null,null,null,null,null,null,null,null,null,null,null,null,null,null,null,null,null,null,null,null,null,null,null,null,null,null,null,null,null,null,null,null,null,null,null,null,null,null,null,null,null,null,null,null,null,null,null,null,null,null,null,0,""]
[null,null,null,null,null,null,null,null,null,null,null,null,null,null,null,null,null,null,null,null,null,null,null,null,null,null,null,null,null,null,null,null,null,null,null,null,null,null,null,null,null,null,null,null,null,null,null,null,null,null,null,null,null,null,null,null,null,null,null,null,null,null,null,null,null,null,null,null,null,null,null,null,null,null,null,null,null,{"$f":"J801","v":0},{"$f":"H801","v":""}]
[null,null,null,null,null,null,null,null,null,null,null,null,null,null,null,null,null,null,null,null,null,null,null,null,null,null,null,null,null,null,null,null,null,null,null,null,null,null,null,null,null,null,null,null,null,null,null,null,null,null,null,null,null,null,null,null,null,null,null,null,null,null,null,null,null,null,null,null,null,null,null,null,null,null,null,null,null,0,""]
[null,null,null,null,null,null,null,null,null,null,null,null,null,null,null,null,null,null,null,null,null,null,null,null,null,null,null,null,null,null,null,null,null,null,null,null,null,null,null,null,null,null,null,null,null,null,null,null,null,null,null,null,null,null,null,null,null,null,null,null,null,null,null,null,null,null,null,null,null,null,null,null,null,null,null,null,null,0,""]
[null,null,null,null,null,null,null,null,null,null,null,null,null,null,null,null,null,null,null,null,null,null,null,null,null,null,null,null,null,null,null,null,null,null,null,null,null,null,null,null,null,null,null,null,null,null,null,null,null,null,null,null,null,null,null,null,null,null,null,null,null,null,null,null,null,null,null,null,null,null,null,null,null,null,null,null,null,0,""]
[null,null,null,null,null,null,null,null,null,null,null,null,null,null,null,null,null,null,null,null,null,null,null,null,null,null,null,null,null,null,null,null,null,null,null,null,null,null,null,null,null,null,null,null,null,null,null,null,null,null,null,null,null,null,null,null,null,null,null,null,null,null,null,null,null,null,null,null,null,null,null,null,null,null,null,null,null,0,""]
[null,null,null,null,null,null,null,null,null,null,null,null,null,null,null,null,null,null,null,null,null,null,null,null,null,null,null,null,null,null,null,null,null,null,null,null,null,null,null,null,null,null,null,null,null,null,null,null,null,null,null,null,null,null,null,null,null,null,null,null,null,null,null,null,null,null,null,null,null,null,null,null,null,null,null,null,null,0,""]
[null,null,null,null,null,null,null,null,null,null,null,null,null,null,null,null,null,null,null,null,null,null,null,null,null,null,null,null,null,null,null,null,null,null,null,null,null,null,null,null,null,null,null,null,null,null,null,null,null,null,null,null,null,null,null,null,null,null,null,null,null,null,null,null,null,null,null,null,null,null,null,null,null,null,null,null,null,0,""]
[null,null,null,null,null,null,null,null,null,null,null,null,null,null,null,null,null,null,null,null,null,null,null,null,null,null,null,null,null,null,null,null,null,null,null,null,null,null,null,null,null,null,null,null,null,null,null,null,null,null,null,null,null,null,null,null,null,null,null,null,null,null,null,null,null,null,null,null,null,null,null,null,null,null,null,null,null,0,""]

{"sheet":"Sheet1","index":1,"n_rows":4,"n_cols":1,"rows_kept":4,"cut":false,"hidden":false,"merged":[[0,0,0,1],[1,0,1,1],[2,0,2,1],[3,0,3,1]]}
["N/S"]
["E/O"]
["N/S (v)"]
["E/O (v)"]

{"sheet":"Istruzioni","index":2,"n_rows":31,"n_cols":1,"rows_kept":31,"cut":false,"hidden":false,"merged":[]}
["Nel Foglio 1_30:"]
[]
["Operazioni generali preliminari:"]
["  - nella cella A1B1 inserire a mano la data nella forma gg-mm-aa (viene copiata automaticamente in tutti gli scores)"]
["  - ctrl+v (cancella i vecchi numeri di coppia in Q1:Q16, se eventualmente presenti)"]
["  - se una nuova coppia gioca per la prima volta, inserirla a mano nella prima cella libera della colonna R (sotto alle altre coppie)"]
["  - inserire a mano i numeri di coppia nella colonna Q"]
["  - ctrl+c (ordina le coppie secondo il numero di coppia)"]
[]
["Operazioni per ciascuno score:"]
["  - inserire dati solo nelle celle a fondo bianco (nelle celle colorate ci sono formule che non devono essere alterate)"]
["  - inserire a mano il Dichiarante (N o S o E o O) nella prima riga (colonna J)"]
["  - se NS sono in prima (zona) selezionare la cella N/S e digitare ctrl+n (ctrl+s)"]
["  - se EO sono in prima (zona) selezionare la cella E/O e digitare ctrl+e (ctrl+o)"]
["  - inserire a mano i numeri di coppia nelle colonne A (coppie N/S) e J (coppie E/O)"]
["  - inserire a mano: contratto, giocato da e attacco."]
["  - inserire a mano i Punti NS in colonna F (col segno \"meno\" se sullo scores i punti sono di EO: es. -200)"]
["  - se Tutti Passano, in colonna F inserire 0 (zero)"]
["  - NON inserire i Punti Mano (vengono calcolati automaticamente mediante formule)"]
[]
["Nel range S1:AX18 ci sono dei dati di controllo. In particolare:"]
["Nel range U1:AX16 vengono copiati automaticamente i Punti Mano quando si inserisce un carattere nelle celle gialle poste sotto gli scores in colonna F"]
["Le celle U17:AX17 contengono la somma \"per mano\"  dei suddetti Punti Mano"]
["Le celle U18:AX18 contengono i numeri identificativi delle mani/scores."]
["Le celle S1:S16 contengono i Punti Mano totali di ciascuna coppia (la somma di detti totali è in P21)"]
["Le celle T1:T16 contengono i Punti Incontro (media 50) di ciascuna coppia (la somma di detti Punti Incontro è in T17)"]
[]
["Le colonne K, BZ e CA contengono formule \"di servizio\" (non alterarle)"]
[]
["Aggiornamento Classifica"]
["Si effettua in modo semiautomatico: dopo aver inserito i punteggi di una mano, premere ctrl+x"]